{"text_format":"1","workbook":"xlsx","n_sheets":7,"sheets":["COVER","0 - NAVIGATION","QUESTIONNAIRE","OVERALL ASSESSMENT","PROJECT2LOAD","DATABASE","Lists"],"not_rendered":{"charts":0,"images":1,"macros":1,"external_links":2,"defined_names":18,"comments":0,"pivot_tables":0},"unopened":[],"bounds":{"document_bytes":16777216,"sheet_cells":100000,"rows_first":2000,"rows_last":500,"rows_between":2000,"halvings":0,"cell_chars":16384,"cell_head_chars":4096},"cells_cut":0,"cells_raw":0,"read":"whole","date_system":"1900"}

{"sheet":"COVER","index":0,"n_rows":4,"n_cols":9,"rows_kept":4,"cut":false,"hidden":false,"merged":[]}
[]
[]
[null,null,null,null,null,null,null,null,"Alat za Status pripreme projekta JPP-a"]
[null,null,null,null,null,null,null,null,"Verzija - Srpanj (July) 2014"]

{"sheet":"0 - NAVIGATION","index":1,"n_rows":2,"n_cols":9,"rows_kept":2,"cut":false,"hidden":false,"merged":[]}
[]
[null,null,null,null,null,null,null,null,"GLAVNI IZBORNIK"]

{"sheet":"QUESTIONNAIRE","index":2,"n_rows":486,"n_cols":13,"rows_kept":486,"cut":false,"hidden":false,"merged":[[233,3,233,4],[272,2,272,4],[305,3,305,4],[303,3,303,4],[313,2,313,4],[266,2,266,4],[6,1,7,2],[211,3,211,4],[213,3,213,4],[207,3,207,4],[10,1,10,4],[67,3,67,4],[73,3,73,4],[71,3,71,4],[69,3,69,4],[104,3,104,4],[37,3,37,4],[209,3,209,4],[167,2,167,4],[192,3,192,4],[472,2,472,4],[414,3,414,4],[348,2,348,4],[335,3,335,4],[408,2,408,4],[412,3,412,4],[367,2,367,4],[373,3,373,4],[371,3,371,4],[295,3,295,4],[285,2,285,4],[227,3,227,4],[333,3,333,4],[323,2,323,4],[264,2,264,4],[341,3,341,4],[484,2,484,4],[474,2,474,4],[476,2,476,4],[478,2,478,4],[480,2,480,4],[482,2,482,4],[384,3,384,4],[380,2,380,4]]}
[]
[null,"UPITNIK"]
[]
[]
[]
[null,null,"Trenutno radimo na projektu:",null,{"$f":"+F18&\"_\"&YEAR(F20)&\"-\"&MONTH(F20)&\"-\"&DAY(F20)","v":"NAZIV_2011-11-11"}]
[]
[]
[]
[null,null,null,null,null,null,null,"Project's scoring"]
[null,"NAPOMENA: Znak ∞ služi da signalizira korisniku međuovisnost pitanja s ostalim dijelovima upitnika označenim masnim slovima (bold)."]
["Osnovne informacije"]
[]
[]
[]
[]
[]
[null,null,"Naziv projekta",null,null,"NAZIV"]
[null,null,null,null,null,"DD/MM/GGGG"]
[null,null,"Datum procjene",null,null,"2011-11-11"]
[]
[null,null,"Naziv javnog tijela",null,null,"Upišite ovdje"]
[]
[null,null,"Kratki opis projekta",null,null,"Upišite ovdje"]
[]
[]
["Izbor i definiranje investicije"]
[]
[]
[null,null,null,null,null,null,null,"Score","Importance","Weight 2","Weight 1",null,"You said"]
[null,null,null,null,null,null,null,{"$f":"+H34*K34+H46*K46+H56*K56+H66*K66","v":0.99999999999999989},null,null,null,null,{"$f":"+AVERAGE(M34,M46,M56,M66)","v":10}]
[null,null,null,null,null,null,null,null,{"$f":"+IF($F$40=\"DA\",SUM($I$36:$I$44),SUM($I$36,$I$38,$I$44))","v":9}]
[]
[null,null,"Je li investicijska potreba identificirana u lokalnom/nacionalnom planu izgradnje infrastrukturnih objekata ili sektorskom investicijskom programu?",null,null,"DA",null,{"$f":"+IF(F34=\"DA\",1+SUM(H36:H44),0)","v":1},1,{"$f":"SUM(J36:J44)","v":-1},{"$f":"+I34/+SUM($I$34,$I$46,$I$56,$I$66)","v":0.1111111111111111},null,{"$f":"+IF(F34=\"DA\",10,0)","v":10}]
[null,null,"Ako DA:"]
[null,null,null,"Je li plan izgradnje infrastrukturnih objekata/sektorski investicijski program odobren od središnje ili lokalne vlasti?",null,"DA",null,{"$f":"+IF(F36=\"DA\",0,J36)","v":0},3,{"$f":"-I36/$I$32","v":-0.33333333333333331}]
[]
[null,null,null,"Jesu li potencijalna sredstva (uključivo bilo koja proračunska sredstva) potrebna za implementaciju investicije identificirana u planu izgradnje infrastrukturnih objekata/investicijskom programu?",null,"DA",null,{"$f":"+IF(F38=\"DA\",0,J38)","v":0},2,{"$f":"-I38/$I$32","v":-0.22222222222222221}]
[]
[null,null,null,"Postoji li bilo koja druga povezana infrastruktura koja je neophodna za završetak investicije? ",null,"DA"]
[]
[null,null,null,null,"Ako DA, jesu li druge povezane infrastrukturne investicije planirane/odobrene da budu dovršene u koordinaciji s predmetnom investicijom?","DA",null,{"$f":"+IF(OR(AND(F42=\"DA\",F40=\"DA\"),F40=\"NE\",F40=\"--Molimo odaberite--\"),0,J42)","v":0},3,{"$f":"-I42/$I$32","v":-0.33333333333333331}]
[]
[null,null,null,"Je li izvršena provjera da li je investicija dio EU programa razvoja infrastrukture (npr. TEN-T, TEN-E)?",null,"DA",null,{"$f":"+IF(F44=\"DA\",0,J44)","v":0},1,{"$f":"-I44/$I$32","v":-0.1111111111111111}]
[]
[null,null,"Je li napravljena preliminarna studija potreba za predmetnom investicijom?",null,null,"DA",null,{"$f":"+IF(F46=\"DA\",1+SUM(H48:H54),0)","v":1},3,{"$f":"SUM(J47:J54)","v":-1},{"$f":"+I46/+SUM($I$34,$I$46,$I$56,$I$66)","v":0.33333333333333331},null,{"$f":"+IF(F46=\"DA\",10,0)","v":10}]
[null,null,"Ako DA:"]
[null,null,null,"Je li u novije vrijeme provedena analiza pomoću općenito priznate metodologije analize troškova-koristi?",null,"DA",null,{"$f":"+IF(F48=\"DA\",0,J48)","v":0},3,{"$f":"-+I48/SUM($I$48:$I$54)","v":-0.3}]
[]
[null,null,null,"Jesu li druge projektne opcije procijenjene i prioritizirane? ",null,"DA",null,{"$f":"+IF(F50=\"DA\",0,J50)","v":0},2,{"$f":"-+I50/SUM($I$48:$I$54)","v":-0.2}]
[]
[null,null,null,"Je li odabrana investicijska opcija odobrena od odgovarajućeg tijela?",null,"DA",null,{"$f":"+IF(F52=\"DA\",0,J52)","v":0},3,{"$f":"-+I52/SUM($I$48:$I$54)","v":-0.3}]
[]
[null,null,null,"Postoji li jasna politička potpora za odabranu investicijsku opciju?",null,"DA",null,{"$f":"+IF(F54=\"DA\",0,J54)","v":0},2,{"$f":"-+I54/SUM($I$48:$I$54)","v":-0.2}]
[]
[null,null,"Jesu li procijenjeni interesi pojedinaca/organizacija?",null,null,"DA",null,{"$f":"+IF(F56=\"DA\",1+SUM(H58:H64),0)","v":1},3,{"$f":"SUM(J58:J64)","v":-1},{"$f":"+I56/+SUM($I$34,$I$46,$I$56,$I$66)","v":0.33333333333333331},null,{"$f":"+IF(F56=\"DA\",10,0)","v":10}]
[null,null,"Ako DA:"]
[null,null,null,"Jesu li identificirani pojedinci/organizacije na koje bi investicija mogla utjecati (npr. korisnici, lokalni stanovnici)?",null,"DA",null,{"$f":"+IF(F58=\"DA\",0,J58)","v":0},3,{"$f":"-+I58/SUM($I$58:$I$64)","v":-0.25}]
[]
[null,null,null,"Jesu li ti pojedinci/organizacije konzultirani?",null,"DA",null,{"$f":"+IF(F60=\"DA\",0,J60)","v":0},3,{"$f":"-+I60/SUM($I$58:$I$64)","v":-0.25}]
[]
[null,null,null,"Postoji li proces koji će osigurati da se povratne informacije dobivene konzultacijama uzimaju u obzir kroz cijelo vrijeme procesa pripreme projekta?",null,"DA",null,{"$f":"+IF(F62=\"DA\",0,J62)","v":0},3,-0.25]
[]
[null,null,null,"Je li pripremljen plan rada i komunikacije s pojedincima/organizacijama?",null,"DA",null,{"$f":"+IF(F64=\"DA\",0,J64)","v":0},3,-0.25]
[]
[null,null,"Je li provedena prethodna procjena jesu li tehnički i pravni aspekti investicije pogodni za JPP?",null,null,"DA",null,{"$f":"+IF(F66=\"DA\",1+SUM(H68:H74),0)","v":1},2,{"$f":"SUM(J67:J74)","v":-1},{"$f":"+I66/+SUM($I$34,$I$46,$I$56,$I$66)","v":0.22222222222222221},null,{"$f":"+IF(F66=\"DA\",10,0)","v":10}]
[null,null,"Ako DA:"]
[null,null,null,"Je li procijenjena stabilnost investicijskog okvira i izlaznih specifikacija kroz kraće/srednjoročno vrijeme?",null,"DA",null,{"$f":"+IF(F68=\"DA\",0,J68)","v":0},2,{"$f":"-+I68/SUM($I$68:$I$74)","v":-0.2}]
[]
[null,null,null,"Ja li provedena analiza koja pokazuje da se investicijske potrebe mogu izraziti u obliku izlaznih specifikacija usluge te definirati u ugovornim odredbama?",null,"DA",null,{"$f":"+IF(F70=\"DA\",0,J70)","v":0},3,{"$f":"-+I70/SUM($I$68:$I$74)","v":-0.3}]
[]
[null,null,null,"Jesu li te izlazne specifikacije usluge razvijene uzimajući u obzir postojeće slučajeve ili raspoložive sektorske upute/praksu?",null,"DA",null,{"$f":"+IF(F72=\"DA\",0,J72)","v":0},2,{"$f":"-+I72/SUM($I$68:$I$74)","v":-0.2}]
[]
[null,null,null,"Je li provedena prethodna analiza da li je javno tijelo nadležno za nabavu usluga i zaključenje ugovora o JPP-u te povezanih ugovora?",null,"DA",null,{"$f":"+IF(F74=\"DA\",0,J74)","v":0},3,{"$f":"-+I74/SUM($I$68:$I$74)","v":-0.3}]
[]
[]
[null,null,null,null,null,null,null,{"$f":"+H34*K34+H46*K46+H56*K56+H66*K66","v":0.99999999999999989}]
[]
[]
[null,null,null,"SPREMNOST ZA POČETAK PRIPREME PROJEKTA U OBLIKU JPP-a"]
[]
[]
[]
[null,null,"Da li je analiza troškova i koristi pokazala potrebu za investicijom?",null,null,"DA"]
[]
[null,null,"Postoji li suglasnost o okviru i zahtjevima investicije?",null,null,"DA"]
[]
[null,null,"Postoji li potrebno odobrenje za nastavak razvoja investicije kao potencijalnog JPP-a?",null,null,"DA"]
[null,null,null,null,null,null,null,{"$f":"+IF(AND(F84=\"DA\",F88=\"DA\",F86=\"DA\"),1,0)","v":1}]
[]
[]
["Priprema projekta u obliku JPP-a"]
[]
[]
[null,"Upravljanje i planiranje procesom"]
[]
[null,"Osnivanje i struktura projektnog tima",null,null,null,null,null,"Score","Importance","Weight 2","Weight 1",null,"You said"]
[null,null,null,null,null,null,null,{"$f":"H101*K101+H109*K109+H135*K135","v":1},null,null,null,null,{"$f":"+AVERAGE(M101,M109,M119)","v":10}]
[null,null,null,null,null,null,null,null,{"$f":"SUM(I101,I109,I135)","v":9}]
[]
[null,null,"Je li osnovano stručno povjerenstvo (stručna komisija) koja će nadgledati pripremu projekta i proces javne nabave?",null,null,"DA",null,{"$f":"+IF(F101=\"DA\",1+SUM(H103:H107),0)","v":1},3,{"$f":"SUM(J102:J107)","v":-1},{"$f":"I101/$I$99","v":0.33333333333333331},null,{"$f":"+IF(F101=\"DA\",10,0)","v":10}]
[null,null,"Ako DA:"]
[null,null,null,"Je li u javnom tijelu odabrana osoba odgovarajućih ovlasti koja ce voditi stručno povjerenstvo (stručnu komisiju) te preuzeti ukupnu odgovornost za realizaciju projekta?",null,"DA",null,{"$f":"+IF(F103<>\"DA\",J103,0)","v":0},3,{"$f":"-I103/SUM($I$103:$I$107)","v":-0.375}]
[]
[null,null,null,"Jesu li odabrani ostali članovi stručnog povjerenstva (stručne komisije) u skladu s njihovom raspolozivošću te sposobnošću da upravljaju i donose odluke za vrijeme faza pripreme i nabave projekta do potpisa ugovora.",null,"DA",null,{"$f":"+IF(F105<>\"DA\",J105,0)","v":0},3,{"$f":"-I105/SUM($I$103:$I$107)","v":-0.375}]
[]
[null,null,null,"Jesu li pravila postupanja stručnog povjerenstva (stručne komisije) dogovorena u nadležnom javnom tijelu?",null,"DA",null,{"$f":"+IF(F107=\"DA\",0,J107)","v":0},2,{"$f":"-I107/SUM($I$103:$I$107)","v":-0.25}]
[]
[null,null,"Je li za projekt osnovan Projektni tim?",null,null,"DA",null,{"$f":"+IF(F109=\"DA\",H111*K111+H119*K119+H133*K133,0)","v":1},3,{"$f":"H111*K111+H119*K119+H133*K133","v":1},{"$f":"I109/$I$99","v":0.33333333333333331},null,{"$f":"+IF(F109=\"DA\",10,0)","v":10}]
[null,null,"Ako DA:"]
[null,null,null,"Je li odabran Voditelj projektnog tima?",null,"DA",null,{"$f":"+IF(F111=\"DA\",1+SUM(H113:H117),0)","v":1},3,{"$f":"SUM(J112:J117)","v":-1},{"$f":"I111/SUM($I$111,$I$119,$I$133)","v":0.375}]
[]
[null,null,null,null,"Je li Voditelj projektnog tima radio na sličnim projektima (sektor, veličina i tehnička zahtjevnost) u prošlosti?","DA",null,{"$f":"+IF(F113<>\"DA\",J113,0)","v":0},2,{"$f":"-I113/SUM($I$113:$I$117)","v":-0.25}]
[]
[null,null,null,null,"Je li Voditelj projektnog tima već radio na jednom ili više projekata JPP-a?","DA",null,{"$f":"+IF(F115<>\"DA\",J115,0)","v":0},3,{"$f":"-I115/SUM($I$113:$I$117)","v":-0.375}]
[]
[null,null,null,null,"Je li Voditelj projektnog tima posvećen projektu puno radno vrijeme?","DA",null,{"$f":"+IF(F117<>\"DA\",J117,0)","v":0},3,{"$f":"-I117/SUM($I$113:$I$117)","v":-0.375}]
[]
[null,null,null,"Jesu li procijenjeni ljudski resursi potrebni za pripremu i nabavu projekta?",null,"DA",null,{"$f":"+IF(F119=\"DA\",1+SUM(H121:H131),0)","v":1},3,{"$f":"SUM(J121:J131)","v":-1},{"$f":"I119/SUM($I$111,$I$119,$I$133)","v":0.375}]
[]
[null,null,null,null,"Da li ta procjena uzima u obzir potrebnu razinu stručnosti i količinu ljudskih resursa? ","DA",null,{"$f":"+IF(F121=\"DA\",0,J121)","v":0},3,{"$f":"-I121/SUM($I$121:$I$131)","v":-0.21428571428571427}]
[]
[null,null,null,null,"Da li se ta procjena temelji na analizi ljudskih resursa u ranijim sličnim projektima?","DA",null,{"$f":"+IF(F123=\"DA\",0,J123)","v":0},2,{"$f":"-I123/SUM($I$121:$I$131)","v":-0.14285714285714285}]
[]
[null,null,null,null,"Da li ova analiza sadrži ljudske resurse dostupne u javnom tijelu i javnom sektoru te vanjske usluge konzultanata koje trebaju biti ugovorene?","DA",null,{"$f":"+IF(F125=\"DA\",0,J125)","v":0},2,{"$f":"-I125/SUM($I$121:$I$131)","v":-0.14285714285714285}]
[]
[null,null,null,null,"Jesu li procijenjeni ukupni troškovi potrebnih internih i vanjskih aktivnosti?","DA",null,{"$f":"+IF(F127=\"DA\",0,J127)","v":0},2,{"$f":"-I127/SUM($I$121:$I$131)","v":-0.14285714285714285}]
[]
[null,null,null,"Je li odobren proračun koji će pokriti potrebne ljudske resurse?",null,"DA",null,{"$f":"+IF(F129=\"DA\",0,J129)","v":0},3,{"$f":"-I129/SUM($I$121:$I$131)","v":-0.21428571428571427}]
[]
[null,null,null,null,"Je li proračun za vanjske usluge konzultanata utemeljen na procjeni tržisnih troškova?","DA",null,{"$f":"+IF(F131=\"DA\",0,J131)","v":0},2,{"$f":"-I131/SUM($I$121:$I$131)","v":-0.14285714285714285}]
[]
[null,null,null,"Jesu li Projektnom timu dodijeljene ovlasti potrebne za provođenje pripreme i nabave projekta?",null,"DA",null,{"$f":"+IF(F133=\"DA\",1,0)","v":1},2,null,{"$f":"I133/SUM($I$111,$I$119,$I$133)","v":0.25}]
[]
[null,null,"Jesu li ugovoreni iskusni pravni, financijski i tehnički konzultanti?",null,null,"DA",null,{"$f":"+IF(F135=\"DA\",1+SUM(H137:H145),0)","v":1},3,{"$f":"SUM(J137:J145)","v":-0.99999999999999989},{"$f":"I135/$I$99","v":0.33333333333333331},null,{"$f":"+IF(F135=\"DA\",10,0)","v":10}]
[null,null,"Ako DA:"]
[null,null,null,"Jesu li konzultanti odabrani u postupku javnog nadmetanja?",null,"DA",null,{"$f":"+IF(F137=\"DA\",0,J137)","v":0},1,{"$f":"-I137/SUM($I$137:$I$145)","v":-8.3333333333333329E-2}]
[]
[null,null,null,"Da li je javno tijelo konzultantima dalo jasan projektni zadatak za konzultantske usluge? ",null,"DA",null,{"$f":"+IF(F139=\"DA\",0,J139)","v":0},3,{"$f":"-I139/SUM($I$137:$I$145)","v":-0.25}]
[]
[null,null,null,"Jesu li mogući sukobi interesa između konzultanata i potencijalnih ponuditelja uzeti u obzir?",null,"DA",null,{"$f":"+IF(F141=\"DA\",0,J141)","v":0},3,{"$f":"-I141/SUM($I$137:$I$145)","v":-0.25}]
[]
[null,null,null,"Imaju li pojedinci iz konzultantskih kompanija, koji će raditi na projektu, dokazano iskustvo i stručnost u svojim područjima?",null,"DA",null,{"$f":"+IF(F143=\"DA\",0,J143)","v":0},3,{"$f":"-I143/SUM($I$137:$I$145)","v":-0.25}]
[]
[null,null,null,"Jesu li procijenjene potrebe za ostalim konzultantskim uslugama (npr. pitanje osiguranja, porezna pitanja, financijsko modeliranje, zaštita okoliša)? ",null,"DA",null,{"$f":"+IF(F145=\"DA\",0,J145)","v":0},2,{"$f":"-I145/SUM($I$137:$I$145)","v":-0.16666666666666666}]
[]
[]
[]
[null,"Dobivanje potrebnih dozvola i odobrenja",null,null,null,null,null,"Score","Importance","Weight 2","Weight 1",null,"You said"]
[null,null,null,null,null,null,null,{"$f":"H153","v":1}]
[]
[]
[null,null,"Je li izvršena procjena svih neophodnih autorizacija, dozvola i odobrenja potrebnih za implementaciju projekta?",null,null,"DA",null,{"$f":"+IF(F153=\"DA\",1+SUM(H155:H161),0)","v":1},null,{"$f":"SUM(J155:J161)","v":-0.99999999999999989},null,null,{"$f":"+IF(F153=\"DA\",10,0)","v":10}]
[null,null,"Ako DA:"]
[null,null,null,"Da li ta procjena uključuje dostupnost zemljišta, eksproprijaciju, pitanja zaštite okoliša, zdravlja i sigurnosti? ",null,"DA",null,{"$f":"+IF(F155=\"DA\",0,J155)","v":0},3,{"$f":"-I155/SUM($I$155:$I$161)","v":-0.5}]
[]
[null,"∞ ",null,"Da li proračun za pripremu projekta uključuje troškove dobivanja dozvola i odobrenja? (Pogledajte Osnivanje i struktura projektnog tima)",null,"DA",null,{"$f":"+IF(F157=\"DA\",0,J157)","v":0},1,{"$f":"-I157/SUM($I$155:$I$161)","v":-0.16666666666666666}]
[]
[null,null,null,"Da li procjena identificira osobe/tijela koja su zadužena za dobivanje dozvola i odobrenja?",null,"DA",null,{"$f":"+IF(F159=\"DA\",0,J159)","v":0},1,{"$f":"-I159/SUM($I$155:$I$161)","v":-0.16666666666666666}]
[null,null,null,null," "]
[null,null,null,"Jesu li procijenjeni rizici povezani s dobivanjem dozvola i odobrenja te jesu li ti rizici uneseni u tablicu rizika?",null,"DA",null,{"$f":"+IF(F161=\"DA\",0,J161)","v":0},1,{"$f":"-I161/SUM($I$155:$I$161)","v":-0.16666666666666666}]
[]
[]
[null,"Razvoj plana i rasporeda aktivnosti",null,null,null,null,null,"Score","Importance","Weight 2","Weight 1",null,"You said"]
[null,null,null,null,null,null,null,{"$f":"H168*K168+H176*K176","v":1},null,null,null,null,{"$f":"+AVERAGE(M168,M176)","v":10}]
[null,null,null,null,null,null,null,null,{"$f":"I168+I176","v":6}]
[]
[null,null,"Ima li javno tijelo usvojen plan za upravljanje pripremom i nabavom projekta?",null,null,"DA",null,{"$f":"+IF(F168=\"DA\",1+SUM(H170:H174),0)","v":1},3,{"$f":"SUM(J169:J174)","v":-1},{"$f":"I168/$I$166","v":0.5},null,{"$f":"+IF(F168=\"DA\",10,0)","v":10}]
[null,null,"Ako DA:"]
[null,null,null,"Jesu li definirane uloge svih članova projektnog tima?",null,"DA",null,{"$f":"+IF(F170<>\"DA\",J170,0)","v":0},3,{"$f":"-I170/SUM($I$170:$I$174)","v":-0.5}]
[]
[null,null,null,"Postoji li postupak za zapisivanje bilo koje izmjene tehničkih karakteristika i ugovornih odredbi projekta za vrijeme njegove pripreme?",null,"DA",null,{"$f":"+IF(F172<>\"DA\",J172,0)","v":0},1,{"$f":"-I172/SUM($I$170:$I$174)","v":-0.16666666666666666}]
[]
[null,null,null,"Postoji li plan za dobivanje svih potrebnih autorizacija, dozvola i odobrenja za vrijeme procesa pripreme i nabave projekta?",null,"DA",null,{"$f":"+IF(F174<>\"DA\",J174,0)","v":0},2,{"$f":"-I174/SUM($I$170:$I$174)","v":-0.33333333333333331}]
[]
[null,null,"Je li donesen raspored aktivnosti koji odražava zahtjeve pripreme i nabave projekta? ",null,null,"DA",null,{"$f":"+IF(F176=\"DA\",1+SUM(H178:H193),0)","v":1},3,{"$f":"SUM(J178:J193)","v":-1},{"$f":"I176/$I$166","v":0.5},null,{"$f":"+IF(F176=\"DA\",10,0)","v":10}]
[null,null,"Ako DA:"]
[null,null,null,"Da li raspored aktivnosti uključuje bilo koji neophodan postupak javnih konzultacija?",null,"DA",null,{"$f":"+IF(F178<>\"DA\",J178,0)","v":0},3,{"$f":"-I178/SUM($I$178:$I$193)","v":-0.17647058823529413}]
[]
[null,"∞ ",null,"Da li raspored aktivnosti omogućava dovoljno vremena za dobivanje svih potrebnih dozvola i odobrenja?",null,"DA",null,{"$f":"+IF(F180<>\"DA\",J180,0)","v":0},3,{"$f":"-I180/SUM($I$178:$I$193)","v":-0.17647058823529413}]
[null,null,null,"(Pogledaje Dobivanje potrebnih dozvola i odobrenja)"]
[]
[null,"∞ ",null,"Da li raspored aktivnosti omogućava dovoljno vremena za dobivanje odobrenja za bilo koje vanjske izvore sredstava (npr.nepovratna sredstva - \"grants\")?",null,"DA",null,{"$f":"+IF(F183<>\"DA\",J183,0)","v":0},3,{"$f":"-I183/SUM($I$178:$I$193)","v":-0.17647058823529413}]
[null,null,null,"Pogledajte Razvoj analize priuštivosti"]
[]
[null,"∞ ",null,"Da li raspored aktivnosti omogućava dovoljno vremena za adekvatno provođenje procesa nabave, uključujući prikupljanje financijskih sredstava?",null,"DA",null,0,3,{"$f":"-I186/SUM($I$178:$I$193)","v":-0.17647058823529413}]
[null,null,null,"(Pogledajte Provođenje ispitivanja tržišta i analize bankabilnosti)"]
[]
[null,null,null,"Da li raspored aktivnosti identificira ključne korake u postupku pripreme i nabave te prikazuje odnose između zadataka?",null,"DA",null,{"$f":"+IF(F189<>\"DA\",J189,0)","v":0},2,{"$f":"-I189/SUM($I$178:$I$193)","v":-0.11764705882352941}]
[]
[null,null,null,"Da li je raspored aktivnosti u potpunosti prihvaćen i odobren od stručnog povjerenstva (stručne komisije) te odgovarajućeg javnog tijela?",null,"DA",null,{"$f":"+IF(F191<>\"DA\",J191,0)","v":0},1,{"$f":"-I191/SUM($I$178:$I$193)","v":-5.8823529411764705E-2}]
[]
[null,null,null,"Da li je razvijen početni plan za vođenje projeka u fazi nakon potpisivanja ugovora, uključujući upravljanje ugovorom, identifikaciju i obuku ključnih pojedinaca te osiguravanje učinkovitog podnošenja izvještaja i informacija o projektu?",null,"DA",null,{"$f":"+IF(F193<>\"DA\",J193,0)","v":0},2,{"$f":"-I193/SUM($I$178:$I$193)","v":-0.11764705882352941}]
[]
[]
[null,null,null,null,null,null,null,{"$f":"AVERAGE(H165,H150,H98)","v":1}]
[]
[null,"Razvoj JPP projekta"]
[]
[null,"Razvoj analize priuštivosti",null,null,null,null,null,"Score","Importance","Weight 2","Weight 1",null,"You said"]
[null,null,null,null,null,null,null,{"$f":"+H204","v":1},null,null,null,null,{"$f":"+M204","v":10}]
[null,null,null,null,null,null,null,null,{"$f":"(+IF(F230=\"DA\",I232,0)+SUM(I240,I238,I236,I206:I228))","v":35}]
[]
[null,null,"Je li pripremljena analiza priuštivosti da bi se dokazalo da su javno tijelo i/ili krajnji korisnici sposobni plaćati za projekt?",null,null,"DA",null,{"$f":"+IF(F204=\"DA\",1+SUM(H206:H240),0)","v":1},null,{"$f":"SUM(J206:J240)","v":-1.0000000000000002},null,null,{"$f":"+IF(F204=\"DA\",10,0)","v":10}]
[null,null,"Ako DA:"]
[null,null,null,"Jesu li procijenjeni ukupni životni troškovi projekta?",null,"DA",null,{"$f":"+IF(F206=\"DA\",0,J206)","v":0},3,{"$f":"-I206/$I$202","v":-8.5714285714285715E-2}]
[]
[null,null,null,"Da li analiza troškova uključuje kapitalne troškove, troškove poslovanja i održavanja, troškove životnog ciklusa građevine, troškove financiranja, troškove dostupnosti zemljišta, troškove javnog sektora za upravljanje projektom, troškove osiguranja, troškove pripreme projekta, transakcijske troškove i poreze?",null,"DA",null,{"$f":"+IF(F208=\"DA\",0,J208)","v":0},3,{"$f":"-I208/$I$202","v":-8.5714285714285715E-2}]
[]
[null,null,null,"Da li analiza troškova financiranja odražava trenutne tržišne uvjete za cijenu duga, rok dospijeća duga, povrat na kapital, odnos duga i kapitala - \"gearing\" i koeficijent pokrića duga?",null,"DA",null,{"$f":"+IF(F210=\"DA\",0,J210)","v":0},2,{"$f":"-I210/$I$202","v":-5.7142857142857141E-2}]
[]
[null,"∞ ",null,"Je li procjena troškova usklađena s nalazima ispitivanja tržišta i analize bankabilnosti,  analize pojedinaca/organizacija te traženim izlaznim specifikacijama projekta?",null,"DA",null,{"$f":"+IF(F212=\"DA\",0,J212)","v":0},2,{"$f":"-I212/$I$202","v":-5.7142857142857141E-2}]
[]
[null,"∞ ",null,"Jesu li za pomoć u pripremi procjene troškova i financijskih pretpostavki korišteni konzultanti? (Pogledajte Osnivanje i struktura projektnog tima)",null,"DA",null,{"$f":"+IF(F214=\"DA\",0,J214)","v":0},2,{"$f":"-I214/$I$202","v":-5.7142857142857141E-2}]
[]
[null,null,null,"Jesu li identificirani izvori sredstava za projekt? (npr. plaćanja korisnika, nepovratna sredstva za kapitalne troškove - \"capital grants\", proračunska sredstva javnog tijela)",null,"DA",null,{"$f":"+IF(F216=\"DA\",0,J216)","v":0},3,{"$f":"-I216/$I$202","v":-8.5714285714285715E-2}]
[]
[null,null,null,"Je li provedena analiza da se utvrdi izvodljivost bilo kakvog plaćanja krajnjih korisnika?",null,"DA"]
[]
[null,null,null,null,"Ako DA, da li analiza pokriva spremnost krajnjih korisnika da plaćaju usluge?","DA",null,{"$f":"+IF(AND(F220=\"DA\",F218=\"DA\"),0,J220)","v":0},3,{"$f":"-I220/$I$202","v":-8.5714285714285715E-2}]
[]
[null,null,null,null,"Ako DA, da li analiza slijedi priznatu sektorsku medodologiju?","DA",null,{"$f":"+IF(AND(F222=\"DA\",F218=\"DA\"),0,J222)","v":0},2,{"$f":"-I222/$I$202","v":-5.7142857142857141E-2}]
[]
[null,null,null,"Je li procijenjena dostupnost, vjerojatnost i pravovremenost - \"tajming\" nepovratnih sredstava - \"grants\" trećih strana?",null,"DA",null,{"$f":"+IF(F224=\"DA\",0,J224)","v":0},2,{"$f":"-I224/$I$202","v":-5.7142857142857141E-2}]
[]
[null,null,null,"Je li procijenjena dostupnost i pravovremenost - \"tajming\" unutarnjih proračunskih sredstava za financiranje dijela kapitalnih troškova projekta?",null,"DA",null,{"$f":"+IF(F226=\"DA\",0,J226)","v":0},3,{"$f":"-I226/$I$202","v":-8.5714285714285715E-2}]
[]
[null,null,null,"Je li procijenjena dostupnost i pravovremenost - \"tajming\" javnih sredstava (osim sredstava samog javnog partnera) za podršku redovnom plaćanju naknade tijekom cjelokupnog životnog vijeka projekta?",null,"DA",null,{"$f":"+IF(F228=\"DA\",0,J228)","v":0},3,{"$f":"-I228/$I$202","v":-8.5714285714285715E-2}]
[]
[null,null,null,"Je li raspolaganje postojećom imovinom javnog tijela predviđeno kao potencijalni izvor financiranja?",null,"DA"]
[]
[null,null,null,null,"Ako DA, je li provedena analiza radi procjene vrijednosti i pravovremenosti - \"tajminga\" povezanih prihoda?","DA",null,{"$f":"+IF(OR(AND(F232=\"DA\",F230=\"DA\"),F230=\"NE\",F230=\"--Molimo odaberite--\"),0,J232)","v":0},1,{"$f":"-I232/$I$202","v":-2.8571428571428571E-2}]
[]
[null,null,null,"Je li pripremljen financijski model radi procjene hoće li identificirani izvori financiranja pokriti troškove projekta, kada bude potrebno, za vrijeme cjelokupnog životnog vijeka projekta?",null,"DA"]
[]
[null,"∞ ",null,null,"Ako DA, jesu li konzultanti bili uključeni u pripremu financijskog modela? (pogledajte Osnivanje i struktura projektnog tima)","DA",null,{"$f":"+IF(AND(F236=\"DA\",F234=\"DA\"),0,J236)","v":0},1,{"$f":"-I236/$I$202","v":-2.8571428571428571E-2}]
[]
[null,null,null,"Je li provedena analiza osjetljivosti radi testiranja opstojnosti (robustnosti) priuštivosti projekta?",null,"DA",null,{"$f":"+IF(F238=\"DA\",0,J238)","v":0},2,{"$f":"-I238/$I$202","v":-5.7142857142857141E-2}]
[]
[null,null,null,"Je li analiza priuštivosti uzela u obzir skrivene (potencijalne) obveze plaćanja javnog tijela (npr. garanciju prihoda)?",null,"DA",null,{"$f":"+IF(F240=\"DA\",0,J240)","v":0},3,{"$f":"-I240/$I$202","v":-8.5714285714285715E-2}]
[]
[]
[null,"Razvoj analize rizika",null,null,null,null,null,"Score","Importance","Weight 2","Weight 1",null,"You said"]
[null,null,null,null,null,null,null,{"$f":"H247*K247+H257*K257+H263*K263+H265*K265+H267*K267+H269*K269+H271*K271+H273*K273","v":1},null,null,null,null,{"$f":"+AVERAGE(M247,M257,M263,M265,M267,M269,M271,M273)","v":10}]
[null,null,null,null,null,null,null,null,{"$f":"I247+I257+SUM(I263:I273)","v":21}]
[]
[null,null,"Jesu li identificirani rizici povezani s projektom?",null,null,"DA",null,{"$f":"+IF(F247=\"DA\",1+SUM(H249:H255),0)","v":1},3,{"$f":"SUM(J249:J255)","v":-0.99999999999999978},{"$f":"I247/$I$245","v":0.14285714285714285},null,{"$f":"+IF(F247=\"DA\",10,0)","v":10}]
[null,null,"Ako DA:"]
[null,null,null,"Da li analiza pokriva sve faze projekta i sve grupe rizika (npr. pravni, tehnički, financijski, rizici okoliša)?",null,"DA",null,{"$f":"+IF(F249=\"DA\",0,J249)","v":0},3,{"$f":"-I249/SUM($I$249:$I$255)","v":-0.42857142857142855}]
[]
[null,null,null,"Da li analiza pokriva rizike povezane s obvezama javnog sektora i njegovom sposobnošću da realizira projekt?",null,"DA",null,{"$f":"+IF(F251=\"DA\",0,J251)","v":0},2,{"$f":"-I251/SUM($I$249:$I$255)","v":-0.2857142857142857}]
[]
[null,null,null,"Da li je pripremljena detaljna matrica rizika da se zabilježe ti rizici?",null,"DA",null,{"$f":"+IF(F253=\"DA\",0,J253)","v":0},1,{"$f":"-I253/SUM($I$249:$I$255)","v":-0.14285714285714285}]
[]
[null,null,null,"Jesu li rizici podijeljeni u odgovarajuće podrizike da bi se osiguralo potpuno i jasno razumijevanje opsega svakog rizika?",null,"DA",null,{"$f":"+IF(F255=\"DA\",0,J255)","v":0},1,{"$f":"-I255/SUM($I$249:$I$255)","v":-0.14285714285714285}]
[]
[null,null,"Je li provedena procjena rizika?",null,null,"DA",null,{"$f":"+IF(F257=\"DA\",1+SUM(H259:H261),0)","v":1},3,{"$f":"+SUM(J259:J261)","v":-1},{"$f":"I257/$I$245","v":0.14285714285714285},null,{"$f":"+IF(F257=\"DA\",10,0)","v":10}]
[null,null,"Ako DA:"]
[null,null,null,"Je li procijenjena vjerojatnost svakog rizika?",null,"DA",null,{"$f":"+IF(F259=\"DA\",0,J259)","v":0},2,{"$f":"-I259/SUM($I$259:$I$261)","v":-0.5}]
[]
[null,null,null,"Je li utjecaj rizika procijenjen u smislu troškova i vremena?",null,"DA",null,{"$f":"+IF(F261=\"DA\",0,J261)","v":0},2,{"$f":"-I261/SUM($I$259:$I$261)","v":-0.5}]
[]
[null,null,"Je li provedena preliminarna alokacija/podjela rizika na temelju alokacije svakog rizika na stranku koja je sposobna najbolje upravljati rizikom (javnog ili privatnog partnera)?",null,null,"DA",null,{"$f":"+IF(F263=\"DA\",1,0)","v":1},3,null,{"$f":"I263/$I$245","v":0.14285714285714285},null,{"$f":"+IF(F263=\"DA\",10,0)","v":10}]
[]
[null,null,"Jesu li mjere za ublažavanje bilo kojeg rizika projekta procijenjene i uključene u projektni plan te tehničke karakteristike i ugovorne odredbe projekta?",null,null,"DA",null,{"$f":"+IF(F265=\"DA\",1,0)","v":1},3,null,{"$f":"I265/$I$245","v":0.14285714285714285},null,{"$f":"+IF(F265=\"DA\",10,0)","v":10}]
[]
[null,"∞ ","Je li ukupna analiza rizika uključila konzultante, posebno prilikom zadatka identifikacije, procjene i alokacije? (pogledajte Osnivanje i struktura projektnog tima)",null,null,"DA",null,{"$f":"+IF(F267=\"DA\",1,0)","v":1},2,null,{"$f":"I267/$I$245","v":9.5238095238095233E-2},null,{"$f":"+IF(F267=\"DA\",10,0)","v":10}]
[]
[null,"∞ ","Da li je analiza rizika utemeljena na procjeni izlaznih specifikacija usluge, ispitivanju tržišta & bankabilnosti te procjeni priuštivosti?",null,null,"DA",null,{"$f":"+IF(F269=\"DA\",1,0)","v":1},3,null,{"$f":"I269/$I$245","v":0.14285714285714285},null,{"$f":"+IF(F269=\"DA\",10,0)","v":10}]
[]
[null,null,"Da li je analiza rizika utemeljena na relevantnom presedanu (sličnom projektu)?",null,null,"DA",null,{"$f":"+IF(F271=\"DA\",1,0)","v":1},2,null,{"$f":"I271/$I$245","v":9.5238095238095233E-2},null,{"$f":"+IF(F271=\"DA\",10,0)","v":10}]
[]
[null,null,"Je li uspostavljen proces upravljanja rizicima koji će omogućiti da rizici projekta  budu praćeni, ponovno sagledani i ažurirani za vrijeme razvoja i poslovanja projekta?",null,null,"DA",null,{"$f":"+IF(F273=\"DA\",1,0)","v":1},2,null,{"$f":"I273/$I$245","v":9.5238095238095233E-2},null,{"$f":"+IF(F273=\"DA\",10,0)","v":10}]
[]
[]
[null,"Provođenje ispitivanja tržišta i analize bankabilnosti",null,null,null,null,null,"Score","Importance","Weight 2","Weight 1",null,"You said"]
[null,null,null,null,null,null,null,{"$f":"H280*K280+H286*K286+H288*K288+H294*K294+H308*K308+H310*K310+H312*K312+H314*K314+H316*K316","v":1},null,null,null,null,{"$f":"+AVERAGE(M280,M286,M288,M294,M308,M314,M312)","v":10}]
[null,null,null,null,null,null,null,null,{"$f":"I280+I286+I288+I294+SUM(I308:I316)","v":22}]
[]
[null,null,"Je li procijenjena razina interesa/kapaciteta privatnog sektora (npr. izvoditelja radova, kreditora) za sudjelovanje u projektu?",null,null,"DA",null,{"$f":"+IF(F280=\"DA\",1+SUM(H282:H284),0)","v":1},3,{"$f":"+SUM(J282:J284)","v":-1},{"$f":"I280/$I$278","v":0.13636363636363635},null,{"$f":"+IF(F280=\"DA\",10,0)","v":10}]
[null,null,"Ako DA:"]
[null,null,null,"Je li razvijen plan ispitivanja tržišta koji identificira ključne karakteristike projekta (npr. profil rizika, trajanje ugovora) koje će biti testirane na tržištu?",null,"DA",null,{"$f":"+IF(F282=\"DA\",0,J282)","v":0},3,{"$f":"-I282/SUM($I$282:$I$284)","v":-0.6}]
[]
[null,null,null,"Da li je planom definiran jasan pristup za suradnju sa svim relevantnim tržišnim igračima u odgovarajuće vrijeme?",null,"DA",null,{"$f":"+IF(F284=\"DA\",0,J284)","v":0},2,{"$f":"-I284/SUM($I$282:$I$284)","v":-0.4}]
[]
[null,null,"Je li provedeno istraživanje radi identificiranja usporedivih projekata (npr. veličina, sektor, profil rizika) koji su nedavno financirani u zemlji ili širem okruženju?",null,null,"DA",null,{"$f":"+IF(F286=\"DA\",1,0)","v":1},2,null,{"$f":"I286/$I$278","v":9.0909090909090912E-2},null,{"$f":"+IF(F286=\"DA\",10,0)","v":10}]
[]
[null,null,"Je li provedena analiza radi procjene sposobnosti izvoditelja radova i pružatelja usluga da izgrade i upravljaju projektom?",null,null,"DA",null,{"$f":"+IF(F288=\"DA\",1+SUM(H290:H292),0)","v":1},3,{"$f":"+SUM(J290:J292)","v":-1},{"$f":"I288/$I$278","v":0.13636363636363635},null,{"$f":"+IF(F288=\"DA\",10,0)","v":10}]
[null,null,"Ako DA:"]
[null,null,null,"Da li analiza pokriva njihovo prethodno iskustvo u projektima JPP-a?",null,"DA",null,{"$f":"+IF(F290=\"DA\",0,J290)","v":0},2,{"$f":"-I290/SUM($I$290:$I$292)","v":-0.4}]
[]
[null,null,null,"Da li opseg analize uključuje kapacitet tržišta da realizira tražene izlazne specifikacije projekta u skladu s očekivanom kvalitetom, troškovima i rasporedom aktivnosti?",null,"DA",null,{"$f":"+IF(F292=\"DA\",0,J292)","v":0},3,{"$f":"-I292/SUM($I$290:$I$292)","v":-0.6}]
[]
[null,null,"Je li provedena analiza da bi se procijenio kapacitet/želja potencijalnih kreditora da financiraju projekt?",null,null,"DA",null,{"$f":"+IF(F294=\"DA\",1+SUM(H296:H306),0)","v":1},3,{"$f":"+SUM(J296:J306)","v":-1},{"$f":"I294/$I$278","v":0.13636363636363635},null,{"$f":"+IF(F294=\"DA\",10,0)","v":10}]
[null,null,"Ako DA:"]
[null,null,null,"Da li analiza pokriva sve potencijalne izvore financiranja (npr. komercijalne banke, međunarodne ili domaće javne financijske institucije, kapitalne ulagače) za projekt?",null,"DA",null,{"$f":"+IF(F296=\"DA\",0,J296)","v":0},2,{"$f":"-I296/SUM($I$296:$I$306)","v":-0.14285714285714285}]
[]
[null,null,null,"Da li se analiza fokusira na njihovo iskustvo u financiranju projekata JPP-a (npr. projektno financiranje - \"non-recourse project financing\")?",null,"DA",null,{"$f":"+IF(F298=\"DA\",0,J298)","v":0},2,{"$f":"-I298/SUM($I$296:$I$306)","v":-0.14285714285714285}]
[]
[null,null,null,"Da li analiza ocjenjuje hoće li karakteristike projekta (npr. profil rizika) vjerojatno privući financiranje po razumnim uvjetima (npr. dugotrajno dospijeće duga)?",null,"DA",null,{"$f":"+IF(F300=\"DA\",0,J300)","v":0},3,{"$f":"-I300/SUM($I$296:$I$306)","v":-0.21428571428571427}]
[]
[null,null,null,"Da li analiza ocjenjuje hoće li kreditori vjerojatno zahtijevati garancije javnog tijela (npr. garanciju minimalne potražnje)?",null,"DA",null,{"$f":"+IF(F302=\"DA\",0,J302)","v":0},2,{"$f":"-I302/SUM($I$296:$I$306)","v":-0.14285714285714285}]
[]
[null,null,null,"U slučajevima kad se očekuje da ce nastati obveze plaćanja javnog sektora, da li analiza ocjenjuje hoće li kreditori biti zadovoljni sa sposobnošću nadležnih javnih tijela da podmire te obveze?",null,"DA",null,{"$f":"+IF(F304=\"DA\",0,J304)","v":0},3,{"$f":"-I304/SUM($I$296:$I$306)","v":-0.21428571428571427}]
[]
[null,null,null,"Da li analiza ocjenjuje hoće li kreditori biti zadovoljni s financijskim stanjem i tehničkim kapacitetima potencijalnih izvoditelja radova i pružatelja usluga?",null,"DA",null,{"$f":"+IF(F306=\"DA\",0,J306)","v":0},2,{"$f":"-I306/SUM($I$296:$I$306)","v":-0.14285714285714285}]
[]
[null,"∞ ","Da li su konzultanti bili uključeni u Ispitivanje tržišta i analizu bankabilnosti? (pogledajte Osnivanje i struktura projektnog tima)",null,null,"DA",null,{"$f":"+IF(F308=\"DA\",1,0)","v":1},2,null,{"$f":"I308/$I$278","v":9.0909090909090912E-2},null,{"$f":"+IF(F308=\"DA\",10,0)","v":10}]
[]
[null,null,"Da li analiza osigurava da je broj i opseg kontaktiranih organizacija dovoljno širok?",null,null,"DA",null,{"$f":"+IF(F310=\"DA\",1,0)","v":1},1,null,{"$f":"I310/$I$278","v":4.5454545454545456E-2}]
[]
[null,null,"Jesu li rezultati analize uzeti u obzir u tehničkim karakteristikama i ugovornim odredbama projekta?",null,null,"DA",null,{"$f":"+IF(F312=\"DA\",1,0)","v":1},2,null,{"$f":"I312/$I$278","v":9.0909090909090912E-2},null,{"$f":"+IF(F312=\"DA\",10,0)","v":10}]
[]
[null,null,"Da li sveukupna analiza tržišta ocjenjuje je li vjerojatno da će postojati jaka razina konkurencije između ponuditelja u nabavi projekta?",null,null,"DA",null,{"$f":"+IF(F314=\"DA\",1,0)","v":1},3,null,{"$f":"I314/$I$278","v":0.13636363636363635},null,{"$f":"+IF(F314=\"DA\",10,0)","v":10}]
[]
[null,null,"Je li analiza uključila fokusiranje na identificiranje zapreka jakoj konkurenciji?",null,null,"DA",null,{"$f":"+IF(F316=\"DA\",1,0)","v":1},3,null,{"$f":"I316/$I$278","v":0.13636363636363635},null,{"$f":"+IF(F316=\"DA\",10,0)","v":10}]
[]
[]
[]
[null,"Procjena JPP opcije u odnosu na alternativne opcije isporuke projekta",null,null,null,null,null,"Score","Importance","Weight 2","Weight 1",null,"You said"]
[null,null,null,null,null,null,null,{"$f":"H324","v":1},null,null,null,null,{"$f":"+M324","v":10}]
[null,null,null,null,null,null,null,null,{"$f":"IF($F$326=\"DA\",I328,0)+SUM($I$330:$I$342)","v":20}]
[]
[null,null,"Da li je JPP opcija bila uspoređena s alternativnim privatnim i javnim opcijama isporuke projekta?",null,null,"DA",null,{"$f":"+IF(F324=\"DA\",1+SUM(H328:H342),0)","v":1},null,{"$f":"SUM(J326:J342)","v":-1},null,null,{"$f":"+IF(F324=\"DA\",10,0)","v":10}]
[null,null,"Ako DA:"]
[null,null,null,"Postoji li propisana metodologija za takvu usporedbu? ",null,"DA"]
[]
[null,null,null,null,"Ako DA, je li ta metodologija bila primijenjena?","DA",null,{"$f":"+IF(OR(AND(F328=\"DA\",F326=\"DA\"),F326=\"--Molimo odaberite--\"),0,J328)","v":0},3,{"$f":"-I328/$I$322","v":-0.15}]
[]
[null,null,null,"Da li je procjena uključila uspoređivanje sveukupnih dugoročnih troškova različitih opcija isporuke projekta sličnog opsega i zahtjeva za uslugom?",null,"DA",null,{"$f":"+IF(F330=\"DA\",0,J330)","v":0},3,{"$f":"-I330/$I$322","v":-0.15}]
[]
[null,null,null,"Da li je ta procjena ocijenila vrijednost utjecaja rizika povezanih sa svakom od opcija isporuke projekta?",null,"DA",null,{"$f":"+IF(F332=\"DA\",0,J332)","v":0},3,{"$f":"-I332/$I$322","v":-0.15}]
[]
[null,null,null,"Da li je ta procjena uzela u obzir kvalitativne faktore za svaku opciju isporuke projekta, kao što su prostor za fleksibilnost, mogućnosti za inovacije, upravljačke i organizacijske posljedice za javno tijelo, raniji početak usluge?",null,"DA",null,{"$f":"+IF(F334=\"DA\",0,J334)","v":0},3,{"$f":"-I334/$I$322","v":-0.15}]
[]
[null,null,null,"Da li je ta procjena bila utemeljena na podacima dostupnim iz ranijih projekata?",null,"DA",null,{"$f":"+IF(F336=\"DA\",0,J336)","v":0},1,{"$f":"-I336/$I$322","v":-0.05}]
[]
[null,"∞ ",null,"Da li je procjena uključila razinu konkurencije na tržištu za svaku od opcija isporuke projekta? (pogledajte Provođenje ispitivanja tržišta i analize bankabilnosti)",null,"DA",null,{"$f":"+IF(F338=\"DA\",0,J338)","v":0},2,{"$f":"-I338/$I$322","v":-0.1}]
[]
[null,"∞ ",null,"Jesu li procijenjeni kapacitet i ljudski resursi projektnog tima da upravlja svakom opcijom isporuke projekta? (pogledajte Osnivanje i struktura projektnog tima)",null,"DA",null,{"$f":"+IF(F340=\"DA\",0,J340)","v":0},3,{"$f":"-I340/$I$322","v":-0.15}]
[]
[null,"∞ ",null,"Da li je procijenjen raspored aktivnosti za svaku opciju isporuke projekta s obzirom na vrijeme potrebno za početak pružanja usluge?  (pogledajte Razvoj plana i rasporeda aktivnosti)",null,"DA",null,{"$f":"+IF(F342=\"DA\",0,J342)","v":0},2,{"$f":"-I342/$I$322","v":-0.1}]
[]
[]
[null,"Kreiranje proračuna, računovodstveni i statistički tretman",null,null,null,null,null,"Score","Importance","Weight 2","Weight 1",null,"You said"]
[null,null,null,null,null,null,null,{"$f":"H349*K349+H351*K351+IF(F353=\"DA\",H355*K355+H357*K357,0)","v":1},null,null,null,null,{"$f":"+AVERAGE(M349:M354)","v":10}]
[null,null,null,null,null,null,null,null,{"$f":"IF(F353=\"DA\",SUM($I$355,$I$357),0)+SUM($I$349:$I$351)","v":8}]
[]
[null,null,"Da li je provedena procjena utjecaja projekta na proračun javnog tijela u skladu s internim proračunskim pravilima javnog tijela?",null,null,"DA",null,{"$f":"+IF(F349=\"DA\",1,0)","v":1},3,null,{"$f":"I349/$I$347","v":0.375},null,{"$f":"+IF(F349=\"DA\",10,0)","v":10}]
[]
[null,null,"Da li je provedena analiza vjerojatnog računovodstvenog tretmana projekta u financijskim izvještajima javnog tijela?",null,null,"DA",null,{"$f":"+IF(F351=\"DA\",1,0)","v":1},2,null,{"$f":"I351/$I$347","v":0.25},null,{"$f":"+IF(F351=\"DA\",10,0)","v":10}]
[]
[null,null,"Da li je država dužna podnositi izvještaj Eurostat-u u skladu s Europskim računovodstvenim sustavom?",null,null,"DA",null,null,null,null,null,null,{"$f":"+IF((AND(F353=\"DA\",F355=\"DA\",F357=\"DA\")),10,\"\")","v":10}]
[]
[null,null,null,"Ako DA, je li provedena analiza vjerojatnog statističkog tretmana projekta (u skladu s Eurostatovim pravilima za JPP i koncesije)?",null,"DA",null,{"$f":"+IF(AND(F355=\"DA\",F353=\"DA\"),1,0)","v":1},2,null,{"$f":"I355/$I$347","v":0.25}]
[]
[null,"∞ ",null,"Ako DA, je li ta analiza provedena uz podršku konzultanata ili nacionalnog statističkog ureda? (pogledajte Osnivanje i struktura projektnog tima)",null,"DA",null,{"$f":"+IF(AND(F357=\"DA\",F353=\"DA\"),1,0)","v":1},1,null,{"$f":"I357/$I$347","v":0.125}]
[]
[]
[]
[null,"Priprema za nabavu"]
[]
[]
[null,"Odabiranje oblika nabave",null,null,null,null,null,"Score","Importance","Weight 2","Weight 1",null,"You said"]
[null,null,null,null,null,null,null,{"$f":"+H368","v":1},null,null,null,null,{"$f":"+M409","v":10}]
[]
[]
[null,null,"Je li provedena analiza da bi se odabrao najprikladniji oblik nabave (npr. natjecateljski dijalog, pregovarački postupak) za projekt?",null,null,"DA",null,{"$f":"+IF(F368=\"DA\",1+SUM(H370:H374),0)","v":1},null,{"$f":"SUM(J370:J374)","v":-1},null,null,{"$f":"+IF(F368=\"DA\",10,0)","v":10}]
[null,null,"Ako DA:"]
[null,null,null,"Da li je ta analiza uzela u obzir zahtjeve nadležnog zakonodavstva (npr. nacionalno zakonodavstvo za javnu nabavu)?",null,"DA",null,{"$f":"+IF(F370=\"DA\",0,J370)","v":0},3,{"$f":"-I370/SUM($I$370:$I$374)","v":-0.33333333333333331}]
[]
[null,null,null,"Da li je ta analiza uzela u obzir karakteristike projekta (npr. složenost, veličinu) kao i volju i kapacitet javnog tijela da preddefinira tehnička i ugovorna rješenja?",null,"DA",null,{"$f":"+IF(F372=\"DA\",0,J372)","v":0},3,{"$f":"-I372/SUM($I$370:$I$374)","v":-0.33333333333333331}]
[]
[null,"∞ ",null,"Da li je ta analiza uzela u obzir kapacitet javnog tijela da vodi odabrani oblik nabave (pogledajte Osnivanje i struktura projektnog tima)?",null,"DA",null,{"$f":"+IF(F374=\"DA\",0,J374)","v":0},3,{"$f":"-I374/SUM($I$370:$I$374)","v":-0.33333333333333331}]
[]
[]
[null,"Definiranje postupka nabave",null,null,null,null,null,"Score","Importance","Weight 2","Weight 1",null,"You said"]
[null,null,null,null,null,null,null,{"$f":"H381*K381+H389*K389+H399*K399+H409*K409+H411*K411","v":1},null,null,null,null,{"$f":"+AVERAGE(M389,M399)","v":10}]
[null,null,null,null,null,null,null,null,{"$f":"I381+I389+I399+I409+I411","v":10}]
[]
[null,null,"Je li provedena analiza da bi se definirali kriteriji za pretkvalifikaciju koji će biti korišteni u izboru potencijalnih ponuditelja?",null,null,"DA",null,{"$f":"+IF(F381=\"DA\",1+SUM(H383:H387),0)","v":1},2,{"$f":"SUM(J383:J387)","v":-0.99999999999999989},{"$f":"I381/$I$379","v":0.2},null,{"$f":"+IF(F381=\"DA\",10,0)","v":10}]
[null,null,"Ako DA:"]
[null,null,null,"Ja li ta analiza uzela u obzir kako će se ocjenjivati tehnički, financijski i pravni kapaciteti potencijalnih ponuditelja?",null,"DA",null,{"$f":"+IF(F383=\"DA\",0,J383)","v":0},3,{"$f":"-I383/SUM($I$383:$I$387)","v":-0.5}]
[]
[null,null,null,"Da li je pripremljen pretkvalifikacijski upitnik koji opisuje informacije koje moraju pružiti potencijalni ponuditelji?",null,"DA",null,{"$f":"+IF(F385=\"DA\",0,J385)","v":0},2,{"$f":"-I385/SUM($I$383:$I$387)","v":-0.33333333333333331}]
[]
[null,null,null,"Da li je ta analiza uzela u obzir maksimalni broj potencijalnih ponuditelja koji mogu biti pretkvalificirani?",null,"DA",null,{"$f":"+IF(F387=\"DA\",0,J387)","v":0},1,{"$f":"-I387/SUM($I$383:$I$387)","v":-0.16666666666666666}]
[]
[null,null,"Je li provedena analiza da bi se definirao odabir kriterija za ocjenjivanje ponuda?",null,null,"DA",null,{"$f":"+IF(F389=\"DA\",1+SUM(H391:H397),0)","v":1},3,{"$f":"SUM(J391:J397)","v":-1},{"$f":"I389/$I$379","v":0.3},null,{"$f":"+IF(F389=\"DA\",10,0)","v":10}]
[null,null,"Ako DA:"]
[null,null,null,"Da li je ta analiza uzela u obzir tehničke, financijske i pravne aspekte kao područja za ocjenjivanje?",null,"DA",null,{"$f":"+IF(F391=\"DA\",0,J391)","v":0},3,{"$f":"-I391/SUM($I$391:$I$397)","v":-0.33333333333333331}]
[]
[null,null,null,"Da li je ta analiza identificirala sustav bodovanja i ponderiranja za svaki od kriterija za ocjenjivanje?",null,"DA",null,{"$f":"+IF(F393=\"DA\",0,J393)","v":0},2,{"$f":"-I393/SUM($I$391:$I$397)","v":-0.22222222222222221}]
[]
[null,null,null,"Jesu li kriteriji, bodovanje i ponderiranje provjereni da odražavaju prioritete javnog tijela (npr. funkcionalnost, cijenu, izgled)?",null,"DA",null,{"$f":"+IF(F395=\"DA\",0,J395)","v":0},2,{"$f":"-I395/SUM($I$391:$I$397)","v":-0.22222222222222221}]
[]
[null,null,null,"Da li je stručno povjerenstvo (stručna komisija)/viši menadžment odobrilo kriterije za odabir?",null,"DA",null,{"$f":"+IF(F397=\"DA\",0,J397)","v":0},2,{"$f":"-I397/SUM($I$391:$I$397)","v":-0.22222222222222221}]
[]
[null,null,"Je li osnovan tim za ocjenjivanje ponuda?",null,null,"DA",null,{"$f":"+IF(F399=\"DA\",1+SUM(H401:H407),0)","v":1},1,{"$f":"SUM(J401:J407)","v":-1},{"$f":"I399/$I$379","v":0.1},null,{"$f":"+IF(F399=\"DA\",10,0)","v":10}]
[null,null,"Ako DA:"]
[null,null,null,"Jesu li članovi tima za ocjenjivanje ponuda identificirani uzimajući u obzir njihove sposobnosti?",null,"DA",null,{"$f":"+IF(F401=\"DA\",0,J401)","v":0},3,{"$f":"-I401/SUM($I$401:$I$407)","v":-0.3}]
[]
[null,null,null,"Jesu li imenovane osobe u timu koje će biti nadležne za ocjenjivanje svakog od kriterija?",null,"DA",null,{"$f":"+IF(F403=\"DA\",0,J403)","v":0},2,{"$f":"-I403/SUM($I$401:$I$407)","v":-0.2}]
[]
[null,null,null,"Jesu li prilikom osnivanja tima za ocjenjivanje ponuda riješena pitanja potencijalnog sukoba interesa?",null,"DA",null,{"$f":"+IF(F405=\"DA\",0,J405)","v":0},3,{"$f":"-I405/SUM($I$401:$I$407)","v":-0.3}]
[]
[null,null,null,"Jesu li uspostavljeni i odobreni proces upravljanja radom tima za ocjenjivanje ponuda i proces donošenja odluka?",null,"DA",null,{"$f":"+IF(F407=\"DA\",0,J407)","v":0},2,{"$f":"-I407/SUM($I$401:$I$407)","v":-0.2}]
[]
[null,null,"Jesu li plan za promociju projekta (npr.  turneja) i obavijest o nabavi pripremljeni uzimajući u obzir tehničke karakteristike i ugovorne odredbe projekta kako bi se povećao interes tržišta?",null,null,"DA",null,{"$f":"+IF(F409=\"DA\",1,0)","v":1},2,null,{"$f":"I409/$I$379","v":0.2},null,{"$f":"+IF(F409=\"DA\",10,0)","v":10}]
[]
[null,null,"Je li pripremljen nacrt dokumentacije koju sadrži poziv za nadmetanje?",null,null,"DA",null,{"$f":"+IF(F411=\"DA\",1+SUM(H413:H415),0)","v":1},2,{"$f":"SUM(J413:J415)","v":-1},{"$f":"I411/$I$379","v":0.2},null,{"$f":"+IF(F411=\"DA\",10,0)","v":10}]
[null,null,"Ako DA:"]
[null,null,null,"Da li ta dokumentacija opisuje ključna pravila, korake i zahtjeve koji moraju biti zadovoljeni (npr. odredbe o povjerljivosti, rokovi i glavni elementi ključnih ugovora)?",null,"DA",null,{"$f":"+IF(F413=\"DA\",0,J413)","v":0},3,{"$f":"-I413/SUM($I$413:$I$415)","v":-0.5}]
[]
[null,null,null,"Da li ta dokumentacija pruža potencijalnim ponuditeljima dovoljno suštinskih informacija da im pomogne u razumijevanju karakteristika projekta i zahtjeva javnog tijela (npr. memorandum informacija o projektu, prostorija za dokumentaciju - \"document dataroom\")?",null,"DA",null,{"$f":"+IF(F415=\"DA\",0,J415)","v":0},3,{"$f":"-I415/SUM($I$413:$I$415)","v":-0.5}]
[]
[]
[null,"Razvoj izlaznih specifikacija usluge i priprema nacrta ugovora o JPP",null,null,null,null,null,"Score","Importance","Weight 2","Weight 1",null,"You said"]
[null,null,null,null,null,null,null,{"$f":"H422*K422+H430*K430","v":1},null,null,null,null,{"$f":"+M430","v":0}]
[]
[]
[null,null,"Jesu li razvijene izlazne specifikacije usluge i mehanizam plaćanja? ",null,null,"DA",null,{"$f":"+IF(F422=\"DA\",1+SUM(H424:H428),0)","v":1},3,{"$f":"SUM(J424:J428)","v":-1},{"$f":"I422/($I$422+$I$430)","v":0.5},null,{"$f":"+IF(F422=\"DA\",10,0)","v":10}]
[null,null,"Ako DA:"]
[null,null,null,"Jesu li izlazne specifikacije usluge provjerene da se osigura da one i dalje odražavaju potrebu za investicijom?",null,"DA",null,{"$f":"+IF(F424=\"DA\",0,J424)","v":0},3,{"$f":"-I424/SUM($I$424:$I$428)","v":-0.375}]
[]
[null,null,null,"Da li je mehanizam plaćanja dizajniran na način na pruži odgovarajuće poticaje privatnom partneru da ostvari izlazne specifikacije usluge?",null,"DA",null,{"$f":"+IF(F426=\"DA\",0,J426)","v":0},3,{"$f":"-I426/SUM($I$424:$I$428)","v":-0.375}]
[]
[null,null,null,"Je li procijenjen mehanizam plaćanja da bi bio u skladu s analizom priuštivosti, ispitivanjem tržišta i analizom bankabilnosti?",null,"DA",null,{"$f":"+IF(F428=\"DA\",0,J428)","v":0},2,{"$f":"-I428/SUM($I$424:$I$428)","v":-0.25}]
[]
[null,null,"Jesu li prilikom pripreme nacrta ugovora o JPP-u slijedeća pitanja uzeta u obzir:",null,null,null,null,{"$f":"1+SUM(H432:H462)","v":1},3,{"$f":"SUM(J432:J462)","v":-1},{"$f":"I430/($I$422+$I$430)","v":0.5},null,{"$f":"+IF(F430=\"DA\",10,0)","v":0}]
[]
[null,null,null,"Trajanje ugovora o JPP?",null,"DA",null,{"$f":"+IF(F432=\"DA\",0,J432)","v":0},2,{"$f":"-I432/SUM($I$432:$I$462)","v":-5.4054054054054057E-2}]
[]
[null,"∞ ",null,"Alokacija i podjela rizika? (pogledajte Razvoj analize rizika)",null,"DA",null,{"$f":"+IF(F434=\"DA\",0,J434)","v":0},3,{"$f":"-I434/SUM($I$432:$I$462)","v":-8.1081081081081086E-2}]
[]
[null,null,null,"Izlazne specifikacije usluge zadane od javnog tijela?",null,"DA",null,{"$f":"+IF(F436=\"DA\",0,J436)","v":0},3,{"$f":"-I436/SUM($I$432:$I$462)","v":-8.1081081081081086E-2}]
[]
[null,null,null,"Mehanizam plaćanja?",null,"DA",null,{"$f":"+IF(F438=\"DA\",0,J438)","v":0},3,{"$f":"-I438/SUM($I$432:$I$462)","v":-8.1081081081081086E-2}]
[]
[null,null,null,"Pravila za postupanje s izmjenama (npr. indeksacija cijena,  izmjene izlaznih specifikacija usluge)?",null,"DA",null,{"$f":"+IF(F440=\"DA\",0,J440)","v":0},3,{"$f":"-I440/SUM($I$432:$I$462)","v":-8.1081081081081086E-2}]
[]
[null,null,null,"Postupak za završetak građenja?",null,"DA",null,{"$f":"+IF(F442=\"DA\",0,J442)","v":0},2,{"$f":"-I442/SUM($I$432:$I$462)","v":-5.4054054054054057E-2}]
[]
[null,null,null,"Događaji više sile?",null,"DA",null,{"$f":"+IF(F444=\"DA\",0,J444)","v":0},2,{"$f":"-I444/SUM($I$432:$I$462)","v":-5.4054054054054057E-2}]
[]
[null,null,null,"Prelazak osoblja kod privatnog partnera?",null,"DA",null,{"$f":"+IF(F446=\"DA\",0,J446)","v":0},2,{"$f":"-I446/SUM($I$432:$I$462)","v":-5.4054054054054057E-2}]
[]
[null,null,null,"Obaveze javnog tijela u praćenju (nadzoru) ugovora za vrijeme cjelokupnog životnog vijeka ugovora?",null,"DA",null,{"$f":"+IF(F448=\"DA\",0,J448)","v":0},2,{"$f":"-I448/SUM($I$432:$I$462)","v":-5.4054054054054057E-2}]
[]
[null,null,null,"Direktni sporazum s kreditorima i pravo kreditora na preuzimanje projekta (\"step-in\")?",null,"DA",null,{"$f":"+IF(F450=\"DA\",0,J450)","v":0},2,{"$f":"-I450/SUM($I$432:$I$462)","v":-5.4054054054054057E-2}]
[]
[null,null,null,"Pravo javnog tijela na preuzimanje projekta (\"step-in\")?",null,"DA",null,{"$f":"+IF(F452=\"DA\",0,J452)","v":0},2,{"$f":"-I452/SUM($I$432:$I$462)","v":-5.4054054054054057E-2}]
[]
[null,null,null,"Rješavanje sporova?",null,"DA",null,{"$f":"+IF(F454=\"DA\",0,J454)","v":0},2,{"$f":"-I454/SUM($I$432:$I$462)","v":-5.4054054054054057E-2}]
[]
[null,null,null,"Osiguranje?",null,"DA",null,{"$f":"+IF(F456=\"DA\",0,J456)","v":0},2,{"$f":"-I456/SUM($I$432:$I$462)","v":-5.4054054054054057E-2}]
[]
[null,null,null,"Podjela koristi koje proizlaze iz refinanciranja?",null,"DA",null,{"$f":"+IF(F458=\"DA\",0,J458)","v":0},2,{"$f":"-I458/SUM($I$432:$I$462)","v":-5.4054054054054057E-2}]
[]
[null,null,null,"Raniji prestanak ugovora o JPP-u i plaćanje naknada za slučaj raskida ugovora?",null,"DA",null,{"$f":"+IF(F460=\"DA\",0,J460)","v":0},3,{"$f":"-I460/SUM($I$432:$I$462)","v":-8.1081081081081086E-2}]
[]
[null,null,null,"Vraćanje imovine projekta javnom tijelu prilikom isteka ugovora o JPP-u?",null,"DA",null,{"$f":"+IF(F462=\"DA\",0,J462)","v":0},2,{"$f":"-I462/SUM($I$432:$I$462)","v":-5.4054054054054057E-2}]
[]
[]
[null,null,null,null,null,null,null,{"$f":"+AVERAGE(H419,H378,H365)","v":1}]
[]
[]
[null,null,null,"SPREMNOST ZA NABAVU PROJEKTA"]
[]
[]
[]
[]
[null,null,"Da li je analiza pokazala da je projekt priuštiv?",null,null,"DA"]
[]
[null,null,"Jesu li ispitivanje tržišta i analiza bankabilnosti potvrdili jaki potencijalni interes tržišta za projekt?",null,null,"DA"]
[]
[null,null,"Da li procjena potvrđuje da ce JPP opcija ostvariti najbolju vrijednost za novac?",null,null,"DA"]
[]
[null,null,"Da li je projektni tim, uključujući konzultante, u poziciji da provodi nabavu?",null,null,"DA"]
[]
[null,null,"Jesu li sva relevantna ovlaštenja, autorizacije, dozvole, ugovori, odobrenja za provedbu projekta pribavljena ili se mogu pribaviti u skladu sa zadanim rasporedom aktivnosti?",null,null,"DA"]
[]
[null,null,"Jesu li sve procjene ažurirane i međusobno usklađene, posebno povratne informacije od zainteresiranih pojedinaca/organizacija, priuštivost, postupanje s rizicima, ispitivanje tržišta, bankabilnost, vrijednost za novac, kapacitet/dostupnost tima, raspored aktivnosti te izlazne specifikacije usluge?",null,null,"DA"]
[]
[null,null,"Jesu li stručno povjerenstvo (stručna komisija) i/ili drugi relevantni donosioci odluka odobrili pokretanje nabave projekta?",null,null,"DA"]
[null,null,null,null,null,null,null,{"$f":"+IF(AND(F473=\"DA\",F475=\"DA\",F477=\"DA\",F479=\"DA\",F481=\"DA\",F485=\"DA\",F483=\"DA\"),1,0)","v":1}]

{"sheet":"OVERALL ASSESSMENT","index":3,"n_rows":34,"n_cols":7,"rows_kept":34,"cut":false,"hidden":false,"merged":[]}
[]
[null,"STRANICA CJELOKUPNA PROCJENA"]
[]
[]
[]
[null,"Trenutno radimo na projektu:",{"$f":"QUESTIONNAIRE!E6","v":"NAZIV_2011-11-11"}]
[]
[]
[]
[null,null,null,null,null,null,1]
[null,"AKTIVNOST",null,"STATUS",null,"section","Score"]
[]
[null,{"$f":"QUESTIONNAIRE!A27","v":"Izbor i definiranje investicije"},null,{"$f":"IF($G$10=1,G13,0)","v":0.99999999999999989},null,1,{"$f":"QUESTIONNAIRE!H77","v":0.99999999999999989}]
[]
[null,null,"Spremnost za početak pripreme projekta u obliku JPP-a",{"$f":"IF(AND(G15=1,G13=1)=TRUE,1,0)","v":1},null,{"$f":"IF(G15=1,1,0)","v":1},{"$f":"+QUESTIONNAIRE!H89","v":1}]
[]
[null,{"$f":"QUESTIONNAIRE!B95","v":"Upravljanje i planiranje procesom"},null,{"$f":"IF($G$10=1,G17,0)","v":1},null,2,{"$f":"QUESTIONNAIRE!H196","v":1}]
[]
[null,{"$f":"QUESTIONNAIRE!$B$198","v":"Razvoj JPP projekta"}]
[null,{"$f":"\"       - \"&QUESTIONNAIRE!B200","v":"       - Razvoj analize priuštivosti"},null,{"$f":"IF($G$10=1,G20,0)","v":1},null,2,{"$f":"QUESTIONNAIRE!H201","v":1}]
[null,{"$f":"\"       - \"&QUESTIONNAIRE!B243","v":"       - Razvoj analize rizika"},null,{"$f":"IF($G$10=1,G21,0)","v":1},null,2,{"$f":"QUESTIONNAIRE!H244","v":1}]
[null,{"$f":"\"       - \"&QUESTIONNAIRE!B276","v":"       - Provođenje ispitivanja tržišta i analize bankabilnosti"},null,{"$f":"IF($G$10=1,G22,0)","v":1},null,2,{"$f":"QUESTIONNAIRE!H277","v":1}]
[null,{"$f":"\"       - \"&QUESTIONNAIRE!B320","v":"       - Procjena JPP opcije u odnosu na alternativne opcije isporuke projekta"},null,{"$f":"IF($G$10=1,G23,0)","v":1},null,2,{"$f":"QUESTIONNAIRE!H321","v":1}]
[null,{"$f":"\"       - \"&QUESTIONNAIRE!B345","v":"       - Kreiranje proračuna, računovodstveni i statistički tretman"},null,{"$f":"IF($G$10=1,G24,0)","v":1},null,2,{"$f":"QUESTIONNAIRE!H346","v":1}]
[]
[null,{"$f":"QUESTIONNAIRE!B361","v":"Priprema za nabavu"},null,{"$f":"IF($G$10=1,G26,0)","v":1},null,2,{"$f":"QUESTIONNAIRE!H465","v":1}]
[]
[null,null,"Spremnost za nabavu projekta",{"$f":"IF(AND(D15=1,G17=1,G20=1,G21=1,G22=1,G23=1,G24=1,G26=1,G28=1)=TRUE,1,0)","v":1},null,{"$f":"IF(G28=1,2,0)","v":2},{"$f":"QUESTIONNAIRE!H486","v":1}]
[]
[]
[null,null,"Sva područja u predmetnoj aktivnosti su vjerojatno dovršena",{"$f":"+G31","v":1},null,null,1]
[null,null,"Neka područja u predmetnoj aktivnosti još uvijek trebaju biti dovršena",{"$f":"+G32","v":0.7},null,null,0.7]
[null,null,"Mnoga područja u predmetnoj aktivnosti još uvijek trebaju biti dovršena",0.4,null,null,0.4]
[null,null,"Nijedno područje u predmetnoj aktivnosti trenutno nije dovršeno",{"$f":"+G34","v":0},null,null,0]

{"sheet":"PROJECT2LOAD","index":4,"n_rows":5,"n_cols":2,"rows_kept":5,"cut":false,"hidden":false,"merged":[]}
[]
[]
[null,"Odaberite projekt koji želite učitati"]
[]
[null,"NOVI PROJEKT"]

{"sheet":"DATABASE","index":5,"n_rows":506,"n_cols":13,"rows_kept":506,"cut":false,"hidden":false,"merged":[[132,3,132,4],[108,2,108,4],[134,2,134,4],[100,2,100,4],[133,3,133,4],[110,3,110,4],[118,3,118,4],[197,1,197,3],[152,2,152,4],[136,3,136,4],[137,3,137,4],[138,3,138,4],[139,3,139,4],[140,3,140,4],[141,3,141,4],[142,3,142,4],[143,3,143,4],[144,3,144,4],[154,3,154,4],[155,3,155,4],[156,3,156,4],[157,3,157,4],[158,3,158,4],[159,3,159,4],[91,0,91,4],[53,3,53,4],[45,2,45,4],[35,3,35,4],[37,3,37,4],[38,3,38,4],[43,3,43,4],[47,3,47,4],[49,3,49,4],[50,3,50,4],[51,3,51,4],[52,3,52,4],[73,3,73,4],[65,2,65,4],[54,2,54,4],[55,2,55,4],[57,3,57,4],[160,3,160,4],[175,2,175,4],[167,2,167,4],[203,2,203,4],[177,3,177,4],[178,3,178,4],[179,3,179,4],[180,3,180,4],[181,3,181,4],[182,3,182,4],[183,3,183,4],[184,3,184,4],[185,3,185,4],[186,3,186,4],[187,3,187,4],[188,3,188,4],[189,3,189,4],[190,3,190,4],[191,3,191,4],[192,3,192,4],[264,2,264,4],[205,3,205,4],[206,3,206,4],[208,3,208,4],[209,3,209,4],[210,3,210,4],[232,3,232,4],[233,3,233,4],[223,3,223,4],[224,3,224,4],[225,3,225,4],[226,3,226,4],[228,3,228,4],[218,3,218,4],[219,3,219,4],[220,3,220,4],[221,3,221,4],[222,3,222,4],[229,3,229,4],[230,3,230,4],[231,3,231,4],[207,3,207,4],[211,3,211,4],[212,3,212,4],[214,3,214,4],[215,3,215,4],[216,3,216,4],[217,3,217,4],[239,3,239,4],[234,3,234,4],[235,3,235,4],[236,3,236,4],[237,3,237,4],[238,3,238,4],[213,3,213,4],[227,3,227,4],[323,2,323,4],[293,2,293,4],[279,2,279,4],[281,3,281,4],[282,3,282,4],[283,3,283,4],[289,3,289,4],[290,3,290,4],[291,3,291,4],[295,3,295,4],[303,3,303,4],[305,3,305,4],[296,3,296,4],[297,3,297,4],[298,3,298,4],[299,3,299,4],[300,3,300,4],[301,3,301,4],[302,3,302,4],[307,2,307,4],[308,2,308,4],[309,2,309,4],[310,2,310,4],[311,2,311,4],[312,2,312,4],[314,2,314,4],[315,2,315,4],[313,2,313,4],[349,2,349,4],[350,2,350,4],[351,2,351,4],[352,2,352,4],[325,3,325,4],[326,3,326,4],[327,3,327,4],[328,3,328,4],[329,3,329,4],[330,3,330,4],[331,3,331,4],[332,3,332,4],[334,3,334,4],[336,3,336,4],[337,3,337,4],[338,3,338,4],[333,3,333,4],[335,3,335,4],[348,2,348,4],[340,3,340,4],[341,3,341,4],[339,3,339,4],[369,3,369,4],[370,3,370,4],[372,3,372,4],[354,3,354,4],[355,3,355,4],[356,3,356,4],[393,3,393,4],[394,3,394,4],[395,3,395,4],[367,2,367,4],[371,3,371,4],[373,3,373,4],[380,2,380,4],[396,3,396,4],[382,3,382,4],[383,3,383,4],[385,3,385,4],[386,3,386,4],[384,3,384,4],[457,3,457,4],[458,3,458,4],[459,3,459,4],[388,2,388,4],[400,3,400,4],[401,3,401,4],[402,3,402,4],[403,3,403,4],[404,3,404,4],[405,3,405,4],[406,3,406,4],[390,3,390,4],[391,3,391,4],[392,3,392,4],[460,3,460,4],[446,3,446,4],[447,3,447,4],[448,3,448,4],[449,3,449,4],[450,3,450,4],[451,3,451,4],[408,2,408,4],[461,3,461,4],[452,3,452,4],[453,3,453,4],[454,3,454,4],[455,3,455,4],[456,3,456,4],[423,3,423,4],[424,3,424,4],[425,3,425,4],[426,3,426,4],[410,2,410,4],[444,3,444,4],[445,3,445,4],[478,2,478,4],[480,2,480,4],[482,2,482,4],[484,2,484,4],[398,2,398,4],[427,3,427,4],[431,3,431,4],[432,3,432,4],[433,3,433,4],[434,3,434,4],[435,3,435,4],[436,3,436,4],[437,3,437,4],[438,3,438,4],[439,3,439,4],[440,3,440,4],[412,3,412,4],[414,3,414,4],[472,2,472,4],[474,2,474,4],[476,2,476,4],[441,3,441,4],[442,3,442,4],[443,3,443,4],[6,1,7,2],[39,3,39,4],[10,1,10,4],[67,3,67,4],[104,3,104,4],[87,2,87,4],[83,2,83,4],[84,2,84,4],[85,2,85,4],[69,3,69,4],[70,3,70,4],[71,3,71,4],[72,3,72,4],[59,3,59,4],[60,3,60,4],[61,3,61,4],[62,3,62,4],[63,3,63,4],[17,2,17,4],[19,2,19,4],[21,2,21,4],[23,2,23,4],[26,0,26,4],[33,2,33,4],[272,2,272,4],[285,2,285,4],[287,2,287,4],[262,2,262,4],[269,2,269,4],[270,2,270,4],[271,2,271,4],[246,2,246,4],[256,2,256,4],[248,3,248,4],[249,3,249,4],[250,3,250,4],[251,3,251,4],[252,3,252,4],[253,3,253,4],[254,3,254,4],[258,3,258,4],[259,3,259,4],[260,3,260,4],[263,2,263,4],[265,2,265,4],[266,2,266,4],[267,2,267,4],[268,2,268,4]]}
[]
[]
[]
[null,"DATABASE"]
[]
[null,"NOW READING:",null,{"$f":"+PROJECT2LOAD!B5","v":"NOVI PROJEKT"}]
[]
[]
[null,null,null,null,null,null,null,null,null,"DO NOT DELETE COLUMN","DO NOT DELETE COLUMN",null,"DO NOT DELETE COLUMN"]
[null,null,null,null,null,null,null,null,"Number of ROW"]
[]
[{"$f":"+QUESTIONNAIRE!A12","v":"Osnovne informacije"},{"$f":"+QUESTIONNAIRE!B12","v":0},{"$f":"+QUESTIONNAIRE!C12","v":0},{"$f":"+QUESTIONNAIRE!D12","v":0},{"$f":"+QUESTIONNAIRE!E12","v":0}]
[{"$f":"+QUESTIONNAIRE!A13","v":0},{"$f":"+QUESTIONNAIRE!B13","v":0},{"$f":"+QUESTIONNAIRE!C13","v":0},{"$f":"+QUESTIONNAIRE!D13","v":0},{"$f":"+QUESTIONNAIRE!E13","v":0},null,null,{"$f":"+QUESTIONNAIRE!$F$18&\"_\"&YEAR(QUESTIONNAIRE!$F$20)&\"-\"&MONTH(QUESTIONNAIRE!$F$20)&\"-\"&DAY(QUESTIONNAIRE!$F$20)","v":"NAZIV_2011-11-11"},1,"NOVI PROJEKT","Primjer1_2014-1-1","NAZIV_2014-5-15","Primjer2_2014-1-1"]
[{"$f":"+QUESTIONNAIRE!A14","v":0},{"$f":"+QUESTIONNAIRE!B14","v":0},{"$f":"+QUESTIONNAIRE!C14","v":0},{"$f":"+QUESTIONNAIRE!D14","v":0},{"$f":"+QUESTIONNAIRE!E14","v":0},null,null,null,{"$f":"+I13+1","v":2}]
[{"$f":"+QUESTIONNAIRE!A15","v":0},{"$f":"+QUESTIONNAIRE!B15","v":0},{"$f":"+QUESTIONNAIRE!C15","v":0},{"$f":"+QUESTIONNAIRE!D15","v":0},{"$f":"+QUESTIONNAIRE!E15","v":0},null,null,null,{"$f":"+I14+1","v":3}]
[{"$f":"+QUESTIONNAIRE!A16","v":0},{"$f":"+QUESTIONNAIRE!B16","v":0},{"$f":"+QUESTIONNAIRE!C16","v":0},{"$f":"+QUESTIONNAIRE!D16","v":0},{"$f":"+QUESTIONNAIRE!E16","v":0},null,null,null,4]
[{"$f":"+QUESTIONNAIRE!A17","v":0},{"$f":"+QUESTIONNAIRE!B17","v":0},{"$f":"+QUESTIONNAIRE!C17","v":0},{"$f":"+QUESTIONNAIRE!D17","v":0},{"$f":"+QUESTIONNAIRE!E17","v":0},null,null,null,5]
[{"$f":"+QUESTIONNAIRE!A18","v":0},{"$f":"+QUESTIONNAIRE!B18","v":0},{"$f":"+QUESTIONNAIRE!C18","v":"Naziv projekta"},null,null,{"$f":"+HLOOKUP($D$6,$J$13:$S$488,I18,FALSE)","v":"NAZIV"},null,null,6,"NAZIV","Primjer1","NAZIV","Primjer1"]
[{"$f":"+QUESTIONNAIRE!A19","v":0},{"$f":"+QUESTIONNAIRE!B19","v":0},{"$f":"+QUESTIONNAIRE!C19","v":0},{"$f":"+QUESTIONNAIRE!D19","v":0},{"$f":"+QUESTIONNAIRE!E19","v":0},null,null,null,7,"DD/MM/YY","DD/MM/YY","DD/MM/YYYY","DD/MM/YY"]
[{"$f":"+QUESTIONNAIRE!A20","v":0},{"$f":"+QUESTIONNAIRE!B20","v":0},{"$f":"+QUESTIONNAIRE!C20","v":"Datum procjene"},{"$f":"+QUESTIONNAIRE!D20","v":0},{"$f":"+QUESTIONNAIRE!E20","v":0},{"$f":"+HLOOKUP($D$6,$J$13:$S$488,I20,FALSE)","v":"2014-01-01"},null,null,8,"2014-01-01","2014-01-01","15/05/2014","2014-01-01"]
[{"$f":"+QUESTIONNAIRE!A21","v":0},{"$f":"+QUESTIONNAIRE!B21","v":0},{"$f":"+QUESTIONNAIRE!C21","v":0},{"$f":"+QUESTIONNAIRE!D21","v":0},{"$f":"+QUESTIONNAIRE!E21","v":0},null,null,null,9]
[{"$f":"+QUESTIONNAIRE!A22","v":0},{"$f":"+QUESTIONNAIRE!B22","v":0},{"$f":"+QUESTIONNAIRE!C22","v":"Naziv javnog tijela"},{"$f":"+QUESTIONNAIRE!D22","v":0},{"$f":"+QUESTIONNAIRE!E22","v":0},{"$f":"+HLOOKUP($D$6,$J$13:$S$488,I22,FALSE)","v":"Upišite ovdje"},null,null,10,"Upišite ovdje","Upišite ovdje","Upišite ovdje","Upišite ovdje"]
[{"$f":"+QUESTIONNAIRE!A23","v":0},{"$f":"+QUESTIONNAIRE!B23","v":0},{"$f":"+QUESTIONNAIRE!C23","v":0},{"$f":"+QUESTIONNAIRE!D23","v":0},{"$f":"+QUESTIONNAIRE!E23","v":0},null,null,null,11]
[{"$f":"+QUESTIONNAIRE!A24","v":0},{"$f":"+QUESTIONNAIRE!B24","v":0},{"$f":"+QUESTIONNAIRE!C24","v":"Kratki opis projekta"},{"$f":"+QUESTIONNAIRE!D24","v":0},{"$f":"+QUESTIONNAIRE!E24","v":0},{"$f":"+HLOOKUP($D$6,$J$13:$S$488,I24,FALSE)","v":"Upišite ovdje"},null,null,12,"Upišite ovdje","Upišite ovdje","Upišite ovdje","Upišite ovdje"]
[{"$f":"+QUESTIONNAIRE!A25","v":0},{"$f":"+QUESTIONNAIRE!B25","v":0},{"$f":"+QUESTIONNAIRE!C25","v":0},{"$f":"+QUESTIONNAIRE!D25","v":0},{"$f":"+QUESTIONNAIRE!E25","v":0},null,null,null,13]
[{"$f":"+QUESTIONNAIRE!A26","v":0},{"$f":"+QUESTIONNAIRE!B26","v":0},{"$f":"+QUESTIONNAIRE!C26","v":0},{"$f":"+QUESTIONNAIRE!D26","v":0},{"$f":"+QUESTIONNAIRE!E26","v":0},null,null,null,14]
[{"$f":"+QUESTIONNAIRE!A27","v":"Izbor i definiranje investicije"},null,null,null,null,null,null,null,15]
[{"$f":"+QUESTIONNAIRE!A28","v":0},{"$f":"+QUESTIONNAIRE!B28","v":0},{"$f":"+QUESTIONNAIRE!C28","v":0},{"$f":"+QUESTIONNAIRE!D28","v":0},{"$f":"+QUESTIONNAIRE!E28","v":0},null,null,null,16]
[{"$f":"+QUESTIONNAIRE!A29","v":0},{"$f":"+QUESTIONNAIRE!B29","v":0},{"$f":"+QUESTIONNAIRE!C29","v":0},{"$f":"+QUESTIONNAIRE!D29","v":0},{"$f":"+QUESTIONNAIRE!E29","v":0},null,null,null,17]
[{"$f":"+QUESTIONNAIRE!A30","v":0},{"$f":"+QUESTIONNAIRE!B30","v":0},{"$f":"+QUESTIONNAIRE!C30","v":0},{"$f":"+QUESTIONNAIRE!D30","v":0},{"$f":"+QUESTIONNAIRE!E30","v":0},null,null,null,18]
[{"$f":"+QUESTIONNAIRE!A31","v":0},{"$f":"+QUESTIONNAIRE!B31","v":0},{"$f":"+QUESTIONNAIRE!C31","v":0},{"$f":"+QUESTIONNAIRE!D31","v":0},{"$f":"+QUESTIONNAIRE!E31","v":0},null,null,null,19]
[{"$f":"+QUESTIONNAIRE!A32","v":0},{"$f":"+QUESTIONNAIRE!B32","v":0},{"$f":"+QUESTIONNAIRE!C32","v":0},{"$f":"+QUESTIONNAIRE!D32","v":0},{"$f":"+QUESTIONNAIRE!E32","v":0},null,null,null,20]
[{"$f":"+QUESTIONNAIRE!A33","v":0},{"$f":"+QUESTIONNAIRE!B33","v":0},{"$f":"+QUESTIONNAIRE!C33","v":0},{"$f":"+QUESTIONNAIRE!D33","v":0},{"$f":"+QUESTIONNAIRE!E33","v":0},null,null,null,21]
[{"$f":"+QUESTIONNAIRE!A34","v":0},{"$f":"+QUESTIONNAIRE!B34","v":0},{"$f":"+QUESTIONNAIRE!C34","v":"Je li investicijska potreba identificirana u lokalnom/nacionalnom planu izgradnje infrastrukturnih objekata ili sektorskom investicijskom programu?"},{"$f":"+QUESTIONNAIRE!D34","v":0},{"$f":"+QUESTIONNAIRE!E34","v":0},{"$f":"+HLOOKUP($D$6,$J$13:$S$488,I34,FALSE)","v":"--Molimo odaberite--"},null,null,22,"--Molimo odaberite--","NE","DA","DA"]
[{"$f":"+QUESTIONNAIRE!A35","v":0},{"$f":"+QUESTIONNAIRE!B35","v":0},{"$f":"+QUESTIONNAIRE!C35","v":"Ako DA:"},{"$f":"+QUESTIONNAIRE!D35","v":0},{"$f":"+QUESTIONNAIRE!E35","v":0},null,null,null,23]
[{"$f":"+QUESTIONNAIRE!A36","v":0},{"$f":"+QUESTIONNAIRE!B36","v":0},{"$f":"+QUESTIONNAIRE!C36","v":0},{"$f":"+QUESTIONNAIRE!D36","v":"Je li plan izgradnje infrastrukturnih objekata/sektorski investicijski program odobren od središnje ili lokalne vlasti?"},{"$f":"+QUESTIONNAIRE!E36","v":0},{"$f":"+HLOOKUP($D$6,$J$13:$S$488,I36,FALSE)","v":"--Molimo odaberite--"},null,null,24,"--Molimo odaberite--","DA","DA","DA"]
[{"$f":"+QUESTIONNAIRE!A37","v":0},{"$f":"+QUESTIONNAIRE!B37","v":0},{"$f":"+QUESTIONNAIRE!C37","v":0},{"$f":"+QUESTIONNAIRE!D37","v":0},{"$f":"+QUESTIONNAIRE!E37","v":0},null,null,null,25]
[{"$f":"+QUESTIONNAIRE!A38","v":0},{"$f":"+QUESTIONNAIRE!B38","v":0},{"$f":"+QUESTIONNAIRE!C38","v":0},{"$f":"+QUESTIONNAIRE!D38","v":"Jesu li potencijalna sredstva (uključivo bilo koja proračunska sredstva) potrebna za implementaciju investicije identificirana u planu izgradnje infrastrukturnih objekata/investicijskom programu?"},{"$f":"+QUESTIONNAIRE!E38","v":0},{"$f":"+HLOOKUP($D$6,$J$13:$S$488,I38,FALSE)","v":"--Molimo odaberite--"},null,null,26,"--Molimo odaberite--","DA","DA","DA"]
[{"$f":"+QUESTIONNAIRE!A39","v":0},{"$f":"+QUESTIONNAIRE!B39","v":0},{"$f":"+QUESTIONNAIRE!C39","v":0},{"$f":"+QUESTIONNAIRE!D39","v":0},{"$f":"+QUESTIONNAIRE!E39","v":0},null,null,null,27]
[{"$f":"+QUESTIONNAIRE!A40","v":0},{"$f":"+QUESTIONNAIRE!B40","v":0},{"$f":"+QUESTIONNAIRE!C40","v":0},{"$f":"+QUESTIONNAIRE!D40","v":"Postoji li bilo koja druga povezana infrastruktura koja je neophodna za završetak investicije? "},{"$f":"+QUESTIONNAIRE!E40","v":0},{"$f":"+HLOOKUP($D$6,$J$13:$S$488,I40,FALSE)","v":"--Molimo odaberite--"},null,null,28,"--Molimo odaberite--","DA","DA","DA"]
[{"$f":"+QUESTIONNAIRE!A41","v":0},{"$f":"+QUESTIONNAIRE!B41","v":0},{"$f":"+QUESTIONNAIRE!C41","v":0},{"$f":"+QUESTIONNAIRE!D41","v":0},{"$f":"+QUESTIONNAIRE!E41","v":0},null,null,null,29]
[{"$f":"+QUESTIONNAIRE!A42","v":0},{"$f":"+QUESTIONNAIRE!B42","v":0},{"$f":"+QUESTIONNAIRE!C42","v":0},{"$f":"+QUESTIONNAIRE!D42","v":0},{"$f":"+QUESTIONNAIRE!E42","v":"Ako DA, jesu li druge povezane infrastrukturne investicije planirane/odobrene da budu dovršene u koordinaciji s predmetnom investicijom?"},{"$f":"+HLOOKUP($D$6,$J$13:$S$488,I42,FALSE)","v":"--Molimo odaberite--"},null,null,30,"--Molimo odaberite--","DA","DA","DA"]
[{"$f":"+QUESTIONNAIRE!A43","v":0},{"$f":"+QUESTIONNAIRE!B43","v":0},{"$f":"+QUESTIONNAIRE!C43","v":0},{"$f":"+QUESTIONNAIRE!D43","v":0},{"$f":"+QUESTIONNAIRE!E43","v":0},null,null,null,31]
[{"$f":"+QUESTIONNAIRE!A44","v":0},{"$f":"+QUESTIONNAIRE!B44","v":0},{"$f":"+QUESTIONNAIRE!C44","v":0},{"$f":"+QUESTIONNAIRE!D44","v":"Je li izvršena provjera da li je investicija dio EU programa razvoja infrastrukture (npr. TEN-T, TEN-E)?"},{"$f":"+QUESTIONNAIRE!E44","v":0},{"$f":"+HLOOKUP($D$6,$J$13:$S$488,I44,FALSE)","v":"--Molimo odaberite--"},null,null,32,"--Molimo odaberite--","DA","DA","DA"]
[{"$f":"+QUESTIONNAIRE!A45","v":0},{"$f":"+QUESTIONNAIRE!B45","v":0},{"$f":"+QUESTIONNAIRE!C45","v":0},{"$f":"+QUESTIONNAIRE!D45","v":0},{"$f":"+QUESTIONNAIRE!E45","v":0},null,null,null,33]
[{"$f":"+QUESTIONNAIRE!A46","v":0},{"$f":"+QUESTIONNAIRE!B46","v":0},{"$f":"+QUESTIONNAIRE!C46","v":"Je li napravljena preliminarna studija potreba za predmetnom investicijom?"},{"$f":"+QUESTIONNAIRE!D46","v":0},{"$f":"+QUESTIONNAIRE!E46","v":0},{"$f":"+HLOOKUP($D$6,$J$13:$S$488,I46,FALSE)","v":"--Molimo odaberite--"},null,null,34,"--Molimo odaberite--","DA","DA","DA"]
[{"$f":"+QUESTIONNAIRE!A47","v":0},{"$f":"+QUESTIONNAIRE!B47","v":0},{"$f":"+QUESTIONNAIRE!C47","v":"Ako DA:"},{"$f":"+QUESTIONNAIRE!D47","v":0},{"$f":"+QUESTIONNAIRE!E47","v":0},null,null,null,35]
[{"$f":"+QUESTIONNAIRE!A48","v":0},{"$f":"+QUESTIONNAIRE!B48","v":0},{"$f":"+QUESTIONNAIRE!C48","v":0},{"$f":"+QUESTIONNAIRE!D48","v":"Je li u novije vrijeme provedena analiza pomoću općenito priznate metodologije analize troškova-koristi?"},{"$f":"+QUESTIONNAIRE!E48","v":0},{"$f":"+HLOOKUP($D$6,$J$13:$S$488,I48,FALSE)","v":"--Molimo odaberite--"},null,null,36,"--Molimo odaberite--","DA","DA","DA"]
[{"$f":"+QUESTIONNAIRE!A49","v":0},{"$f":"+QUESTIONNAIRE!B49","v":0},{"$f":"+QUESTIONNAIRE!C49","v":0},{"$f":"+QUESTIONNAIRE!D49","v":0},{"$f":"+QUESTIONNAIRE!E49","v":0},null,null,null,37]
[{"$f":"+QUESTIONNAIRE!A50","v":0},{"$f":"+QUESTIONNAIRE!B50","v":0},{"$f":"+QUESTIONNAIRE!C50","v":0},{"$f":"+QUESTIONNAIRE!D50","v":"Jesu li druge projektne opcije procijenjene i prioritizirane? "},{"$f":"+QUESTIONNAIRE!E50","v":0},{"$f":"+HLOOKUP($D$6,$J$13:$S$488,I50,FALSE)","v":"--Molimo odaberite--"},null,null,38,"--Molimo odaberite--","DA","DA","DA"]
[{"$f":"+QUESTIONNAIRE!A51","v":0},{"$f":"+QUESTIONNAIRE!B51","v":0},{"$f":"+QUESTIONNAIRE!C51","v":0},{"$f":"+QUESTIONNAIRE!D51","v":0},{"$f":"+QUESTIONNAIRE!E51","v":0},null,null,null,39]
[{"$f":"+QUESTIONNAIRE!A52","v":0},{"$f":"+QUESTIONNAIRE!B52","v":0},{"$f":"+QUESTIONNAIRE!C52","v":0},{"$f":"+QUESTIONNAIRE!D52","v":"Je li odabrana investicijska opcija odobrena od odgovarajućeg tijela?"},{"$f":"+QUESTIONNAIRE!E52","v":0},{"$f":"+HLOOKUP($D$6,$J$13:$S$488,I52,FALSE)","v":"--Molimo odaberite--"},null,null,40,"--Molimo odaberite--","DA","DA","DA"]
[{"$f":"+QUESTIONNAIRE!A53","v":0},{"$f":"+QUESTIONNAIRE!B53","v":0},{"$f":"+QUESTIONNAIRE!C53","v":0},{"$f":"+QUESTIONNAIRE!D53","v":0},{"$f":"+QUESTIONNAIRE!E53","v":0},null,null,null,41]
[{"$f":"+QUESTIONNAIRE!A54","v":0},{"$f":"+QUESTIONNAIRE!B54","v":0},{"$f":"+QUESTIONNAIRE!C54","v":0},{"$f":"+QUESTIONNAIRE!D54","v":"Postoji li jasna politička potpora za odabranu investicijsku opciju?"},{"$f":"+QUESTIONNAIRE!E54","v":0},{"$f":"+HLOOKUP($D$6,$J$13:$S$488,I54,FALSE)","v":"--Molimo odaberite--"},null,null,42,"--Molimo odaberite--","DA","DA","DA"]
[{"$f":"+QUESTIONNAIRE!A55","v":0},{"$f":"+QUESTIONNAIRE!B55","v":0},{"$f":"+QUESTIONNAIRE!C55","v":0},{"$f":"+QUESTIONNAIRE!D55","v":0},{"$f":"+QUESTIONNAIRE!E55","v":0},null,null,null,43]
[{"$f":"+QUESTIONNAIRE!A56","v":0},{"$f":"+QUESTIONNAIRE!B56","v":0},{"$f":"+QUESTIONNAIRE!C56","v":"Jesu li procijenjeni interesi pojedinaca/organizacija?"},{"$f":"+QUESTIONNAIRE!D56","v":0},{"$f":"+QUESTIONNAIRE!E56","v":0},{"$f":"+HLOOKUP($D$6,$J$13:$S$488,I56,FALSE)","v":"--Molimo odaberite--"},null,null,44,"--Molimo odaberite--","DA","--Molimo odaberite--","DA"]
[{"$f":"+QUESTIONNAIRE!A57","v":0},{"$f":"+QUESTIONNAIRE!B57","v":0},{"$f":"+QUESTIONNAIRE!C57","v":"Ako DA:"},{"$f":"+QUESTIONNAIRE!D57","v":0},{"$f":"+QUESTIONNAIRE!E57","v":0},null,null,null,45]
[{"$f":"+QUESTIONNAIRE!A58","v":0},{"$f":"+QUESTIONNAIRE!B58","v":0},{"$f":"+QUESTIONNAIRE!C58","v":0},{"$f":"+QUESTIONNAIRE!D58","v":"Jesu li identificirani pojedinci/organizacije na koje bi investicija mogla utjecati (npr. korisnici, lokalni stanovnici)?"},{"$f":"+QUESTIONNAIRE!E58","v":0},{"$f":"+HLOOKUP($D$6,$J$13:$S$488,I58,FALSE)","v":"--Molimo odaberite--"},null,null,46,"--Molimo odaberite--","DA","--Molimo odaberite--","DA"]
[{"$f":"+QUESTIONNAIRE!A59","v":0},{"$f":"+QUESTIONNAIRE!B59","v":0},{"$f":"+QUESTIONNAIRE!C59","v":0},{"$f":"+QUESTIONNAIRE!D59","v":0},{"$f":"+QUESTIONNAIRE!E59","v":0},null,null,null,47]
[{"$f":"+QUESTIONNAIRE!A60","v":0},{"$f":"+QUESTIONNAIRE!B60","v":0},{"$f":"+QUESTIONNAIRE!C60","v":0},{"$f":"+QUESTIONNAIRE!D60","v":"Jesu li ti pojedinci/organizacije konzultirani?"},{"$f":"+QUESTIONNAIRE!E60","v":0},{"$f":"+HLOOKUP($D$6,$J$13:$S$488,I60,FALSE)","v":"--Molimo odaberite--"},null,null,48,"--Molimo odaberite--","DA","--Molimo odaberite--","DA"]
[{"$f":"+QUESTIONNAIRE!A61","v":0},{"$f":"+QUESTIONNAIRE!B61","v":0},{"$f":"+QUESTIONNAIRE!C61","v":0},{"$f":"+QUESTIONNAIRE!D61","v":0},{"$f":"+QUESTIONNAIRE!E61","v":0},null,null,null,49]
[{"$f":"+QUESTIONNAIRE!A62","v":0},{"$f":"+QUESTIONNAIRE!B62","v":0},{"$f":"+QUESTIONNAIRE!C62","v":0},{"$f":"+QUESTIONNAIRE!D62","v":"Postoji li proces koji će osigurati da se povratne informacije dobivene konzultacijama uzimaju u obzir kroz cijelo vrijeme procesa pripreme projekta?"},{"$f":"+QUESTIONNAIRE!E62","v":0},{"$f":"+HLOOKUP($D$6,$J$13:$S$488,I62,FALSE)","v":"--Molimo odaberite--"},null,null,50,"--Molimo odaberite--","DA","--Molimo odaberite--","DA"]
[{"$f":"+QUESTIONNAIRE!A63","v":0},{"$f":"+QUESTIONNAIRE!B63","v":0},{"$f":"+QUESTIONNAIRE!C63","v":0},{"$f":"+QUESTIONNAIRE!D63","v":0},{"$f":"+QUESTIONNAIRE!E63","v":0},null,null,null,51]
[{"$f":"+QUESTIONNAIRE!A64","v":0},{"$f":"+QUESTIONNAIRE!B64","v":0},{"$f":"+QUESTIONNAIRE!C64","v":0},{"$f":"+QUESTIONNAIRE!D64","v":"Je li pripremljen plan rada i komunikacije s pojedincima/organizacijama?"},{"$f":"+QUESTIONNAIRE!E64","v":0},{"$f":"+HLOOKUP($D$6,$J$13:$S$488,I64,FALSE)","v":"--Molimo odaberite--"},null,null,52,"--Molimo odaberite--","DA","--Molimo odaberite--","DA"]
[{"$f":"+QUESTIONNAIRE!A65","v":0},{"$f":"+QUESTIONNAIRE!B65","v":0},{"$f":"+QUESTIONNAIRE!C65","v":0},{"$f":"+QUESTIONNAIRE!D65","v":0},{"$f":"+QUESTIONNAIRE!E65","v":0},null,null,null,53]
[{"$f":"+QUESTIONNAIRE!A66","v":0},{"$f":"+QUESTIONNAIRE!B66","v":0},{"$f":"+QUESTIONNAIRE!C66","v":"Je li provedena prethodna procjena jesu li tehnički i pravni aspekti investicije pogodni za JPP?"},null,null,{"$f":"+HLOOKUP($D$6,$J$13:$S$488,I66,FALSE)","v":"--Molimo odaberite--"},null,null,54,"--Molimo odaberite--","DA","--Molimo odaberite--","DA"]
[{"$f":"+QUESTIONNAIRE!A67","v":0},{"$f":"+QUESTIONNAIRE!B67","v":0},{"$f":"+QUESTIONNAIRE!C67","v":"Ako DA:"},{"$f":"+QUESTIONNAIRE!D67","v":0},{"$f":"+QUESTIONNAIRE!E67","v":0},null,null,null,55]
[{"$f":"+QUESTIONNAIRE!A68","v":0},{"$f":"+QUESTIONNAIRE!B68","v":0},{"$f":"+QUESTIONNAIRE!C68","v":0},{"$f":"+QUESTIONNAIRE!D68","v":"Je li procijenjena stabilnost investicijskog okvira i izlaznih specifikacija kroz kraće/srednjoročno vrijeme?"},{"$f":"+QUESTIONNAIRE!E68","v":0},{"$f":"+HLOOKUP($D$6,$J$13:$S$488,I68,FALSE)","v":"--Molimo odaberite--"},null,null,56,"--Molimo odaberite--","DA","--Molimo odaberite--","DA"]
[{"$f":"+QUESTIONNAIRE!A69","v":0},{"$f":"+QUESTIONNAIRE!B69","v":0},{"$f":"+QUESTIONNAIRE!C69","v":0},{"$f":"+QUESTIONNAIRE!D69","v":0},{"$f":"+QUESTIONNAIRE!E69","v":0},null,null,null,57]
[{"$f":"+QUESTIONNAIRE!A70","v":0},{"$f":"+QUESTIONNAIRE!B70","v":0},{"$f":"+QUESTIONNAIRE!C70","v":0},{"$f":"+QUESTIONNAIRE!D70","v":"Ja li provedena analiza koja pokazuje da se investicijske potrebe mogu izraziti u obliku izlaznih specifikacija usluge te definirati u ugovornim odredbama?"},{"$f":"+QUESTIONNAIRE!E70","v":0},{"$f":"+HLOOKUP($D$6,$J$13:$S$488,I70,FALSE)","v":"--Molimo odaberite--"},null,null,58,"--Molimo odaberite--","DA","--Molimo odaberite--","DA"]
[{"$f":"+QUESTIONNAIRE!A71","v":0},{"$f":"+QUESTIONNAIRE!B71","v":0},{"$f":"+QUESTIONNAIRE!C71","v":0},{"$f":"+QUESTIONNAIRE!D71","v":0},{"$f":"+QUESTIONNAIRE!E71","v":0},null,null,null,59]
[{"$f":"+QUESTIONNAIRE!A72","v":0},{"$f":"+QUESTIONNAIRE!B72","v":0},{"$f":"+QUESTIONNAIRE!C72","v":0},{"$f":"+QUESTIONNAIRE!D72","v":"Jesu li te izlazne specifikacije usluge razvijene uzimajući u obzir postojeće slučajeve ili raspoložive sektorske upute/praksu?"},{"$f":"+QUESTIONNAIRE!E72","v":0},{"$f":"+HLOOKUP($D$6,$J$13:$S$488,I72,FALSE)","v":"--Molimo odaberite--"},null,null,60,"--Molimo odaberite--","DA","--Molimo odaberite--","DA"]
[{"$f":"+QUESTIONNAIRE!A73","v":0},{"$f":"+QUESTIONNAIRE!B73","v":0},{"$f":"+QUESTIONNAIRE!C73","v":0},{"$f":"+QUESTIONNAIRE!D73","v":0},{"$f":"+QUESTIONNAIRE!E73","v":0},null,null,null,61]
[{"$f":"+QUESTIONNAIRE!A74","v":0},{"$f":"+QUESTIONNAIRE!B74","v":0},{"$f":"+QUESTIONNAIRE!C74","v":0},{"$f":"+QUESTIONNAIRE!D74","v":"Je li provedena prethodna analiza da li je javno tijelo nadležno za nabavu usluga i zaključenje ugovora o JPP-u te povezanih ugovora?"},{"$f":"+QUESTIONNAIRE!E74","v":0},{"$f":"+HLOOKUP($D$6,$J$13:$S$488,I74,FALSE)","v":"--Molimo odaberite--"},null,null,62,"--Molimo odaberite--","DA","--Molimo odaberite--","DA"]
[{"$f":"+QUESTIONNAIRE!A75","v":0},{"$f":"+QUESTIONNAIRE!B75","v":0},{"$f":"+QUESTIONNAIRE!C75","v":0},{"$f":"+QUESTIONNAIRE!D75","v":0},{"$f":"+QUESTIONNAIRE!E75","v":0},null,null,null,63]
[{"$f":"+QUESTIONNAIRE!A76","v":0},{"$f":"+QUESTIONNAIRE!B76","v":0},{"$f":"+QUESTIONNAIRE!C76","v":0},{"$f":"+QUESTIONNAIRE!D76","v":0},{"$f":"+QUESTIONNAIRE!E76","v":0},null,null,null,64]
[{"$f":"+QUESTIONNAIRE!A77","v":0},{"$f":"+QUESTIONNAIRE!B77","v":0},{"$f":"+QUESTIONNAIRE!C77","v":0},{"$f":"+QUESTIONNAIRE!D77","v":0},{"$f":"+QUESTIONNAIRE!E77","v":0},null,null,null,65]
[{"$f":"+QUESTIONNAIRE!A78","v":0},{"$f":"+QUESTIONNAIRE!B78","v":0},{"$f":"+QUESTIONNAIRE!C78","v":0},{"$f":"+QUESTIONNAIRE!D78","v":0},{"$f":"+QUESTIONNAIRE!E78","v":0},null,null,null,66]
[{"$f":"+QUESTIONNAIRE!A79","v":0},{"$f":"+QUESTIONNAIRE!B79","v":0},{"$f":"+QUESTIONNAIRE!C79","v":0},{"$f":"+QUESTIONNAIRE!D79","v":0},{"$f":"+QUESTIONNAIRE!E79","v":0},null,null,null,{"$f":"+I78+1","v":67}]
[{"$f":"+QUESTIONNAIRE!A80","v":0},{"$f":"+QUESTIONNAIRE!B80","v":0},{"$f":"+QUESTIONNAIRE!C80","v":0},{"$f":"+QUESTIONNAIRE!D80","v":"SPREMNOST ZA POČETAK PRIPREME PROJEKTA U OBLIKU JPP-a"},{"$f":"+QUESTIONNAIRE!E80","v":0},null,null,null,68]
[{"$f":"+QUESTIONNAIRE!A81","v":0},{"$f":"+QUESTIONNAIRE!B81","v":0},{"$f":"+QUESTIONNAIRE!C81","v":0},{"$f":"+QUESTIONNAIRE!D81","v":0},{"$f":"+QUESTIONNAIRE!E81","v":0},null,null,null,69]
[{"$f":"+QUESTIONNAIRE!A82","v":0},{"$f":"+QUESTIONNAIRE!B82","v":0},{"$f":"+QUESTIONNAIRE!C82","v":0},{"$f":"+QUESTIONNAIRE!D82","v":0},{"$f":"+QUESTIONNAIRE!E82","v":0},null,null,null,70]
[{"$f":"+QUESTIONNAIRE!A83","v":0},{"$f":"+QUESTIONNAIRE!B83","v":0},{"$f":"+QUESTIONNAIRE!C83","v":0},{"$f":"+QUESTIONNAIRE!D83","v":0},{"$f":"+QUESTIONNAIRE!E83","v":0},null,null,null,71]
[{"$f":"+QUESTIONNAIRE!A84","v":0},{"$f":"+QUESTIONNAIRE!B84","v":0},{"$f":"+QUESTIONNAIRE!C84","v":"Da li je analiza troškova i koristi pokazala potrebu za investicijom?"},{"$f":"+QUESTIONNAIRE!D84","v":0},{"$f":"+QUESTIONNAIRE!E84","v":0},{"$f":"+HLOOKUP($D$6,$J$13:$S$488,I84,FALSE)","v":"--Molimo odaberite--"},null,null,72,"--Molimo odaberite--","DA","--Molimo odaberite--","DA"]
[{"$f":"+QUESTIONNAIRE!A85","v":0},{"$f":"+QUESTIONNAIRE!B85","v":0},{"$f":"+QUESTIONNAIRE!C85","v":0},{"$f":"+QUESTIONNAIRE!D85","v":0},{"$f":"+QUESTIONNAIRE!E85","v":0},null,null,null,73]
[{"$f":"+QUESTIONNAIRE!A86","v":0},{"$f":"+QUESTIONNAIRE!B86","v":0},{"$f":"+QUESTIONNAIRE!C86","v":"Postoji li suglasnost o okviru i zahtjevima investicije?"},{"$f":"+QUESTIONNAIRE!D86","v":0},{"$f":"+QUESTIONNAIRE!E86","v":0},{"$f":"+HLOOKUP($D$6,$J$13:$S$488,I86,FALSE)","v":"--Molimo odaberite--"},null,null,74,"--Molimo odaberite--","DA","--Molimo odaberite--","DA"]
[{"$f":"+QUESTIONNAIRE!A87","v":0},{"$f":"+QUESTIONNAIRE!B87","v":0},{"$f":"+QUESTIONNAIRE!C87","v":0},{"$f":"+QUESTIONNAIRE!D87","v":0},{"$f":"+QUESTIONNAIRE!E87","v":0},null,null,null,75]
[{"$f":"+QUESTIONNAIRE!A88","v":0},{"$f":"+QUESTIONNAIRE!B88","v":0},{"$f":"+QUESTIONNAIRE!C88","v":"Postoji li potrebno odobrenje za nastavak razvoja investicije kao potencijalnog JPP-a?"},null,null,{"$f":"+HLOOKUP($D$6,$J$13:$S$488,I88,FALSE)","v":"--Molimo odaberite--"},null,null,76,"--Molimo odaberite--","DA","--Molimo odaberite--","DA"]
[{"$f":"+QUESTIONNAIRE!A89","v":0},{"$f":"+QUESTIONNAIRE!B89","v":0},{"$f":"+QUESTIONNAIRE!C89","v":0},{"$f":"+QUESTIONNAIRE!D89","v":0},{"$f":"+QUESTIONNAIRE!E89","v":0},null,null,null,77]
[{"$f":"+QUESTIONNAIRE!A90","v":0},{"$f":"+QUESTIONNAIRE!B90","v":0},{"$f":"+QUESTIONNAIRE!C90","v":0},{"$f":"+QUESTIONNAIRE!D90","v":0},{"$f":"+QUESTIONNAIRE!E90","v":0},null,null,null,78]
[{"$f":"+QUESTIONNAIRE!A91","v":0},{"$f":"+QUESTIONNAIRE!B91","v":0},{"$f":"+QUESTIONNAIRE!C91","v":0},{"$f":"+QUESTIONNAIRE!D91","v":0},{"$f":"+QUESTIONNAIRE!E91","v":0},null,null,null,79]
[{"$f":"+QUESTIONNAIRE!A92","v":"Priprema projekta u obliku JPP-a"},null,null,null,null,null,null,null,80]
[{"$f":"+QUESTIONNAIRE!A93","v":0},{"$f":"+QUESTIONNAIRE!B93","v":0},{"$f":"+QUESTIONNAIRE!C93","v":0},{"$f":"+QUESTIONNAIRE!D93","v":0},{"$f":"+QUESTIONNAIRE!E93","v":0},null,null,null,81]
[{"$f":"+QUESTIONNAIRE!A94","v":0},{"$f":"+QUESTIONNAIRE!B94","v":0},{"$f":"+QUESTIONNAIRE!C94","v":0},{"$f":"+QUESTIONNAIRE!D94","v":0},{"$f":"+QUESTIONNAIRE!E94","v":0},null,null,null,82]
[{"$f":"+QUESTIONNAIRE!A95","v":0},{"$f":"+QUESTIONNAIRE!B95","v":"Upravljanje i planiranje procesom"},{"$f":"+QUESTIONNAIRE!C95","v":0},{"$f":"+QUESTIONNAIRE!D95","v":0},{"$f":"+QUESTIONNAIRE!E95","v":0},null,null,null,83]
[{"$f":"+QUESTIONNAIRE!A96","v":0},{"$f":"+QUESTIONNAIRE!B96","v":0},{"$f":"+QUESTIONNAIRE!C96","v":0},{"$f":"+QUESTIONNAIRE!D96","v":0},{"$f":"+QUESTIONNAIRE!E96","v":0},null,null,null,84]
[{"$f":"+QUESTIONNAIRE!A97","v":0},{"$f":"+QUESTIONNAIRE!B97","v":"Osnivanje i struktura projektnog tima"},{"$f":"+QUESTIONNAIRE!C97","v":0},{"$f":"+QUESTIONNAIRE!D97","v":0},{"$f":"+QUESTIONNAIRE!E97","v":0},null,null,null,85]
[{"$f":"+QUESTIONNAIRE!A98","v":0},{"$f":"+QUESTIONNAIRE!B98","v":0},{"$f":"+QUESTIONNAIRE!C98","v":0},{"$f":"+QUESTIONNAIRE!D98","v":0},{"$f":"+QUESTIONNAIRE!E98","v":0},null,null,null,86]
[{"$f":"+QUESTIONNAIRE!A99","v":0},{"$f":"+QUESTIONNAIRE!B99","v":0},{"$f":"+QUESTIONNAIRE!C99","v":0},{"$f":"+QUESTIONNAIRE!D99","v":0},{"$f":"+QUESTIONNAIRE!E99","v":0},null,null,null,87]
[{"$f":"+QUESTIONNAIRE!A100","v":0},{"$f":"+QUESTIONNAIRE!B100","v":0},{"$f":"+QUESTIONNAIRE!C100","v":0},{"$f":"+QUESTIONNAIRE!D100","v":0},{"$f":"+QUESTIONNAIRE!E100","v":0},null,null,null,88]
[{"$f":"+QUESTIONNAIRE!A101","v":0},{"$f":"+QUESTIONNAIRE!B101","v":0},{"$f":"+QUESTIONNAIRE!C101","v":"Je li osnovano stručno povjerenstvo (stručna komisija) koja će nadgledati pripremu projekta i proces javne nabave?"},{"$f":"+QUESTIONNAIRE!D101","v":0},{"$f":"+QUESTIONNAIRE!E101","v":0},{"$f":"+HLOOKUP($D$6,$J$13:$S$488,I101,FALSE)","v":"--Molimo odaberite--"},null,null,89,"--Molimo odaberite--","DA","--Molimo odaberite--","DA"]
[{"$f":"+QUESTIONNAIRE!A102","v":0},{"$f":"+QUESTIONNAIRE!B102","v":0},{"$f":"+QUESTIONNAIRE!C102","v":"Ako DA:"},{"$f":"+QUESTIONNAIRE!D102","v":0},{"$f":"+QUESTIONNAIRE!E102","v":0},null,null,null,90]
[{"$f":"+QUESTIONNAIRE!A103","v":0},{"$f":"+QUESTIONNAIRE!B103","v":0},{"$f":"+QUESTIONNAIRE!C103","v":0},{"$f":"+QUESTIONNAIRE!D103","v":"Je li u javnom tijelu odabrana osoba odgovarajućih ovlasti koja ce voditi stručno povjerenstvo (stručnu komisiju) te preuzeti ukupnu odgovornost za realizaciju projekta?"},{"$f":"+QUESTIONNAIRE!E103","v":0},{"$f":"+HLOOKUP($D$6,$J$13:$S$488,I103,FALSE)","v":"--Molimo odaberite--"},null,null,91,"--Molimo odaberite--","DA","--Molimo odaberite--","DA"]
[{"$f":"+QUESTIONNAIRE!A104","v":0},{"$f":"+QUESTIONNAIRE!B104","v":0},{"$f":"+QUESTIONNAIRE!C104","v":0},{"$f":"+QUESTIONNAIRE!D104","v":0},{"$f":"+QUESTIONNAIRE!E104","v":0},null,null,null,92]
[{"$f":"+QUESTIONNAIRE!A105","v":0},{"$f":"+QUESTIONNAIRE!B105","v":0},{"$f":"+QUESTIONNAIRE!C105","v":0},{"$f":"+QUESTIONNAIRE!D105","v":"Jesu li odabrani ostali članovi stručnog povjerenstva (stručne komisije) u skladu s njihovom raspolozivošću te sposobnošću da upravljaju i donose odluke za vrijeme faza pripreme i nabave projekta do potpisa ugovora."},{"$f":"+QUESTIONNAIRE!E105","v":0},{"$f":"+HLOOKUP($D$6,$J$13:$S$488,I105,FALSE)","v":"--Molimo odaberite--"},null,null,93,"--Molimo odaberite--","DA","--Molimo odaberite--","DA"]
[{"$f":"+QUESTIONNAIRE!A106","v":0},{"$f":"+QUESTIONNAIRE!B106","v":0},{"$f":"+QUESTIONNAIRE!C106","v":0},{"$f":"+QUESTIONNAIRE!D106","v":0},{"$f":"+QUESTIONNAIRE!E106","v":0},null,null,null,94]
[{"$f":"+QUESTIONNAIRE!A107","v":0},{"$f":"+QUESTIONNAIRE!B107","v":0},{"$f":"+QUESTIONNAIRE!C107","v":0},{"$f":"+QUESTIONNAIRE!D107","v":"Jesu li pravila postupanja stručnog povjerenstva (stručne komisije) dogovorena u nadležnom javnom tijelu?"},{"$f":"+QUESTIONNAIRE!E107","v":0},{"$f":"+HLOOKUP($D$6,$J$13:$S$488,I107,FALSE)","v":"--Molimo odaberite--"},null,null,95,"--Molimo odaberite--","DA","--Molimo odaberite--","DA"]
[{"$f":"+QUESTIONNAIRE!A108","v":0},{"$f":"+QUESTIONNAIRE!B108","v":0},{"$f":"+QUESTIONNAIRE!C108","v":0},{"$f":"+QUESTIONNAIRE!D108","v":0},{"$f":"+QUESTIONNAIRE!E108","v":0},null,null,null,96]
[{"$f":"+QUESTIONNAIRE!A109","v":0},{"$f":"+QUESTIONNAIRE!B109","v":0},{"$f":"+QUESTIONNAIRE!C109","v":"Je li za projekt osnovan Projektni tim?"},{"$f":"+QUESTIONNAIRE!D109","v":0},{"$f":"+QUESTIONNAIRE!E109","v":0},{"$f":"+HLOOKUP($D$6,$J$13:$S$488,I109,FALSE)","v":"--Molimo odaberite--"},null,null,97,"--Molimo odaberite--","DA","--Molimo odaberite--","DA"]
[{"$f":"+QUESTIONNAIRE!A110","v":0},{"$f":"+QUESTIONNAIRE!B110","v":0},{"$f":"+QUESTIONNAIRE!C110","v":"Ako DA:"},{"$f":"+QUESTIONNAIRE!D110","v":0},{"$f":"+QUESTIONNAIRE!E110","v":0},null,null,null,98]
[{"$f":"+QUESTIONNAIRE!A111","v":0},{"$f":"+QUESTIONNAIRE!B111","v":0},{"$f":"+QUESTIONNAIRE!C111","v":0},{"$f":"+QUESTIONNAIRE!D111","v":"Je li odabran Voditelj projektnog tima?"},{"$f":"+QUESTIONNAIRE!E111","v":0},{"$f":"+HLOOKUP($D$6,$J$13:$S$488,I111,FALSE)","v":"--Molimo odaberite--"},null,null,99,"--Molimo odaberite--","DA","--Molimo odaberite--","DA"]
[{"$f":"+QUESTIONNAIRE!A112","v":0},{"$f":"+QUESTIONNAIRE!B112","v":0},{"$f":"+QUESTIONNAIRE!C112","v":0},{"$f":"+QUESTIONNAIRE!D112","v":0},{"$f":"+QUESTIONNAIRE!E112","v":0},null,null,null,100]
[{"$f":"+QUESTIONNAIRE!A113","v":0},{"$f":"+QUESTIONNAIRE!B113","v":0},{"$f":"+QUESTIONNAIRE!C113","v":0},{"$f":"+QUESTIONNAIRE!D113","v":0},{"$f":"+QUESTIONNAIRE!E113","v":"Je li Voditelj projektnog tima radio na sličnim projektima (sektor, veličina i tehnička zahtjevnost) u prošlosti?"},{"$f":"+HLOOKUP($D$6,$J$13:$S$488,I113,FALSE)","v":"--Molimo odaberite--"},null,null,101,"--Molimo odaberite--","DA","--Molimo odaberite--","DA"]
[{"$f":"+QUESTIONNAIRE!A114","v":0},{"$f":"+QUESTIONNAIRE!B114","v":0},{"$f":"+QUESTIONNAIRE!C114","v":0},{"$f":"+QUESTIONNAIRE!D114","v":0},{"$f":"+QUESTIONNAIRE!E114","v":0},null,null,null,102]
[{"$f":"+QUESTIONNAIRE!A115","v":0},{"$f":"+QUESTIONNAIRE!B115","v":0},{"$f":"+QUESTIONNAIRE!C115","v":0},{"$f":"+QUESTIONNAIRE!D115","v":0},{"$f":"+QUESTIONNAIRE!E115","v":"Je li Voditelj projektnog tima već radio na jednom ili više projekata JPP-a?"},{"$f":"+HLOOKUP($D$6,$J$13:$S$488,I115,FALSE)","v":"--Molimo odaberite--"},null,null,103,"--Molimo odaberite--","DA","--Molimo odaberite--","DA"]
[{"$f":"+QUESTIONNAIRE!A116","v":0},{"$f":"+QUESTIONNAIRE!B116","v":0},{"$f":"+QUESTIONNAIRE!C116","v":0},{"$f":"+QUESTIONNAIRE!D116","v":0},{"$f":"+QUESTIONNAIRE!E116","v":0},null,null,null,104]
[{"$f":"+QUESTIONNAIRE!A117","v":0},{"$f":"+QUESTIONNAIRE!B117","v":0},{"$f":"+QUESTIONNAIRE!C117","v":0},{"$f":"+QUESTIONNAIRE!D117","v":0},{"$f":"+QUESTIONNAIRE!E117","v":"Je li Voditelj projektnog tima posvećen projektu puno radno vrijeme?"},{"$f":"+HLOOKUP($D$6,$J$13:$S$488,I117,FALSE)","v":"--Molimo odaberite--"},null,null,105,"--Molimo odaberite--","DA","--Molimo odaberite--","DA"]
[{"$f":"+QUESTIONNAIRE!A118","v":0},{"$f":"+QUESTIONNAIRE!B118","v":0},{"$f":"+QUESTIONNAIRE!C118","v":0},{"$f":"+QUESTIONNAIRE!D118","v":0},{"$f":"+QUESTIONNAIRE!E118","v":0},null,null,null,106]
[{"$f":"+QUESTIONNAIRE!A119","v":0},{"$f":"+QUESTIONNAIRE!B119","v":0},{"$f":"+QUESTIONNAIRE!C119","v":0},{"$f":"+QUESTIONNAIRE!D119","v":"Jesu li procijenjeni ljudski resursi potrebni za pripremu i nabavu projekta?"},{"$f":"+QUESTIONNAIRE!E119","v":0},{"$f":"+HLOOKUP($D$6,$J$13:$S$488,I119,FALSE)","v":"--Molimo odaberite--"},null,null,107,"--Molimo odaberite--","DA","--Molimo odaberite--","DA"]
[{"$f":"+QUESTIONNAIRE!A120","v":0},{"$f":"+QUESTIONNAIRE!B120","v":0},{"$f":"+QUESTIONNAIRE!C120","v":0},{"$f":"+QUESTIONNAIRE!D120","v":0},{"$f":"+QUESTIONNAIRE!E120","v":0},null,null,null,108]
[{"$f":"+QUESTIONNAIRE!A121","v":0},{"$f":"+QUESTIONNAIRE!B121","v":0},{"$f":"+QUESTIONNAIRE!C121","v":0},{"$f":"+QUESTIONNAIRE!D121","v":0},{"$f":"+QUESTIONNAIRE!E121","v":"Da li ta procjena uzima u obzir potrebnu razinu stručnosti i količinu ljudskih resursa? "},{"$f":"+HLOOKUP($D$6,$J$13:$S$488,I121,FALSE)","v":"--Molimo odaberite--"},null,null,109,"--Molimo odaberite--","DA","--Molimo odaberite--","DA"]
[{"$f":"+QUESTIONNAIRE!A122","v":0},{"$f":"+QUESTIONNAIRE!B122","v":0},{"$f":"+QUESTIONNAIRE!C122","v":0},{"$f":"+QUESTIONNAIRE!D122","v":0},{"$f":"+QUESTIONNAIRE!E122","v":0},null,null,null,110]
[{"$f":"+QUESTIONNAIRE!A123","v":0},{"$f":"+QUESTIONNAIRE!B123","v":0},{"$f":"+QUESTIONNAIRE!C123","v":0},{"$f":"+QUESTIONNAIRE!D123","v":0},{"$f":"+QUESTIONNAIRE!E123","v":"Da li se ta procjena temelji na analizi ljudskih resursa u ranijim sličnim projektima?"},{"$f":"+HLOOKUP($D$6,$J$13:$S$488,I123,FALSE)","v":"--Molimo odaberite--"},null,null,111,"--Molimo odaberite--","DA","--Molimo odaberite--","DA"]
[{"$f":"+QUESTIONNAIRE!A124","v":0},{"$f":"+QUESTIONNAIRE!B124","v":0},{"$f":"+QUESTIONNAIRE!C124","v":0},{"$f":"+QUESTIONNAIRE!D124","v":0},{"$f":"+QUESTIONNAIRE!E124","v":0},null,null,null,112]
[{"$f":"+QUESTIONNAIRE!A125","v":0},{"$f":"+QUESTIONNAIRE!B125","v":0},{"$f":"+QUESTIONNAIRE!C125","v":0},{"$f":"+QUESTIONNAIRE!D125","v":0},{"$f":"+QUESTIONNAIRE!E125","v":"Da li ova analiza sadrži ljudske resurse dostupne u javnom tijelu i javnom sektoru te vanjske usluge konzultanata koje trebaju biti ugovorene?"},{"$f":"+HLOOKUP($D$6,$J$13:$S$488,I125,FALSE)","v":"--Molimo odaberite--"},null,null,113,"--Molimo odaberite--","DA","--Molimo odaberite--","DA"]
[{"$f":"+QUESTIONNAIRE!A126","v":0},{"$f":"+QUESTIONNAIRE!B126","v":0},{"$f":"+QUESTIONNAIRE!C126","v":0},{"$f":"+QUESTIONNAIRE!D126","v":0},{"$f":"+QUESTIONNAIRE!E126","v":0},null,null,null,114]
[{"$f":"+QUESTIONNAIRE!A127","v":0},{"$f":"+QUESTIONNAIRE!B127","v":0},{"$f":"+QUESTIONNAIRE!C127","v":0},{"$f":"+QUESTIONNAIRE!D127","v":0},{"$f":"+QUESTIONNAIRE!E127","v":"Jesu li procijenjeni ukupni troškovi potrebnih internih i vanjskih aktivnosti?"},{"$f":"+HLOOKUP($D$6,$J$13:$S$488,I127,FALSE)","v":"--Molimo odaberite--"},null,null,115,"--Molimo odaberite--","DA","--Molimo odaberite--","DA"]
[{"$f":"+QUESTIONNAIRE!A128","v":0},{"$f":"+QUESTIONNAIRE!B128","v":0},{"$f":"+QUESTIONNAIRE!C128","v":0},{"$f":"+QUESTIONNAIRE!D128","v":0},{"$f":"+QUESTIONNAIRE!E128","v":0},null,null,null,116]
[{"$f":"+QUESTIONNAIRE!A129","v":0},{"$f":"+QUESTIONNAIRE!B129","v":0},{"$f":"+QUESTIONNAIRE!C129","v":0},{"$f":"+QUESTIONNAIRE!#REF!","v":{"$error":"#REF!"}},{"$f":"+QUESTIONNAIRE!D129","v":"Je li odobren proračun koji će pokriti potrebne ljudske resurse?"},{"$f":"+HLOOKUP($D$6,$J$13:$S$488,I129,FALSE)","v":"--Molimo odaberite--"},null,null,117,"--Molimo odaberite--","DA","--Molimo odaberite--","DA"]
[{"$f":"+QUESTIONNAIRE!A130","v":0},{"$f":"+QUESTIONNAIRE!B130","v":0},{"$f":"+QUESTIONNAIRE!C130","v":0},{"$f":"+QUESTIONNAIRE!D130","v":0},{"$f":"+QUESTIONNAIRE!E130","v":0},null,null,null,118]
[{"$f":"+QUESTIONNAIRE!A131","v":0},{"$f":"+QUESTIONNAIRE!B131","v":0},{"$f":"+QUESTIONNAIRE!C131","v":0},{"$f":"+QUESTIONNAIRE!D131","v":0},{"$f":"+QUESTIONNAIRE!E131","v":"Je li proračun za vanjske usluge konzultanata utemeljen na procjeni tržisnih troškova?"},{"$f":"+HLOOKUP($D$6,$J$13:$S$488,I131,FALSE)","v":"--Molimo odaberite--"},null,null,119,"--Molimo odaberite--","DA","--Molimo odaberite--","DA"]
[{"$f":"+QUESTIONNAIRE!A132","v":0},{"$f":"+QUESTIONNAIRE!B132","v":0},{"$f":"+QUESTIONNAIRE!C132","v":0},{"$f":"+QUESTIONNAIRE!D132","v":0},{"$f":"+QUESTIONNAIRE!E132","v":0},null,null,null,120]
[{"$f":"+QUESTIONNAIRE!A133","v":0},{"$f":"+QUESTIONNAIRE!B133","v":0},{"$f":"+QUESTIONNAIRE!C133","v":0},{"$f":"+QUESTIONNAIRE!D133","v":"Jesu li Projektnom timu dodijeljene ovlasti potrebne za provođenje pripreme i nabave projekta?"},{"$f":"+QUESTIONNAIRE!E133","v":0},{"$f":"+HLOOKUP($D$6,$J$13:$S$488,I133,FALSE)","v":"--Molimo odaberite--"},null,null,121,"--Molimo odaberite--","DA","--Molimo odaberite--","DA"]
[{"$f":"+QUESTIONNAIRE!A134","v":0},{"$f":"+QUESTIONNAIRE!B134","v":0},{"$f":"+QUESTIONNAIRE!C134","v":0},{"$f":"+QUESTIONNAIRE!D134","v":0},{"$f":"+QUESTIONNAIRE!E134","v":0},null,null,null,122]
[{"$f":"+QUESTIONNAIRE!A135","v":0},{"$f":"+QUESTIONNAIRE!B135","v":0},{"$f":"+QUESTIONNAIRE!C135","v":"Jesu li ugovoreni iskusni pravni, financijski i tehnički konzultanti?"},{"$f":"+QUESTIONNAIRE!D135","v":0},{"$f":"+QUESTIONNAIRE!E135","v":0},{"$f":"+HLOOKUP($D$6,$J$13:$S$488,I135,FALSE)","v":"--Molimo odaberite--"},null,null,123,"--Molimo odaberite--","DA","--Molimo odaberite--","DA"]
[{"$f":"+QUESTIONNAIRE!A136","v":0},{"$f":"+QUESTIONNAIRE!B136","v":0},{"$f":"+QUESTIONNAIRE!C136","v":"Ako DA:"},{"$f":"+QUESTIONNAIRE!D136","v":0},{"$f":"+QUESTIONNAIRE!E136","v":0},null,null,null,124]
[{"$f":"+QUESTIONNAIRE!A137","v":0},{"$f":"+QUESTIONNAIRE!B137","v":0},{"$f":"+QUESTIONNAIRE!C137","v":0},{"$f":"+QUESTIONNAIRE!D137","v":"Jesu li konzultanti odabrani u postupku javnog nadmetanja?"},{"$f":"+QUESTIONNAIRE!E137","v":0},{"$f":"+HLOOKUP($D$6,$J$13:$S$488,I137,FALSE)","v":"--Molimo odaberite--"},null,null,125,"--Molimo odaberite--","DA","--Molimo odaberite--","DA"]
[{"$f":"+QUESTIONNAIRE!A138","v":0},{"$f":"+QUESTIONNAIRE!B138","v":0},{"$f":"+QUESTIONNAIRE!C138","v":0},{"$f":"+QUESTIONNAIRE!D138","v":0},{"$f":"+QUESTIONNAIRE!E138","v":0},null,null,null,126]
[{"$f":"+QUESTIONNAIRE!A139","v":0},{"$f":"+QUESTIONNAIRE!B139","v":0},{"$f":"+QUESTIONNAIRE!C139","v":0},{"$f":"+QUESTIONNAIRE!D139","v":"Da li je javno tijelo konzultantima dalo jasan projektni zadatak za konzultantske usluge? "},{"$f":"+QUESTIONNAIRE!E139","v":0},{"$f":"+HLOOKUP($D$6,$J$13:$S$488,I139,FALSE)","v":"--Molimo odaberite--"},null,null,127,"--Molimo odaberite--","DA","--Molimo odaberite--","DA"]
[{"$f":"+QUESTIONNAIRE!A140","v":0},{"$f":"+QUESTIONNAIRE!B140","v":0},{"$f":"+QUESTIONNAIRE!C140","v":0},{"$f":"+QUESTIONNAIRE!D140","v":0},{"$f":"+QUESTIONNAIRE!E140","v":0},null,null,null,128]
[{"$f":"+QUESTIONNAIRE!A141","v":0},{"$f":"+QUESTIONNAIRE!B141","v":0},{"$f":"+QUESTIONNAIRE!C141","v":0},{"$f":"+QUESTIONNAIRE!D141","v":"Jesu li mogući sukobi interesa između konzultanata i potencijalnih ponuditelja uzeti u obzir?"},{"$f":"+QUESTIONNAIRE!E141","v":0},{"$f":"+HLOOKUP($D$6,$J$13:$S$488,I141,FALSE)","v":"--Molimo odaberite--"},null,null,129,"--Molimo odaberite--","DA","--Molimo odaberite--","DA"]
[{"$f":"+QUESTIONNAIRE!A142","v":0},{"$f":"+QUESTIONNAIRE!B142","v":0},{"$f":"+QUESTIONNAIRE!C142","v":0},{"$f":"+QUESTIONNAIRE!D142","v":0},{"$f":"+QUESTIONNAIRE!E142","v":0},null,null,null,130]
[{"$f":"+QUESTIONNAIRE!A143","v":0},{"$f":"+QUESTIONNAIRE!B143","v":0},{"$f":"+QUESTIONNAIRE!C143","v":0},{"$f":"+QUESTIONNAIRE!D143","v":"Imaju li pojedinci iz konzultantskih kompanija, koji će raditi na projektu, dokazano iskustvo i stručnost u svojim područjima?"},{"$f":"+QUESTIONNAIRE!E143","v":0},{"$f":"+HLOOKUP($D$6,$J$13:$S$488,I143,FALSE)","v":"--Molimo odaberite--"},null,null,{"$f":"+I142+1","v":131},"--Molimo odaberite--","DA","--Molimo odaberite--","DA"]
[{"$f":"+QUESTIONNAIRE!A144","v":0},{"$f":"+QUESTIONNAIRE!B144","v":0},{"$f":"+QUESTIONNAIRE!C144","v":0},{"$f":"+QUESTIONNAIRE!D144","v":0},{"$f":"+QUESTIONNAIRE!E144","v":0},null,null,null,132]
[{"$f":"+QUESTIONNAIRE!A145","v":0},{"$f":"+QUESTIONNAIRE!B145","v":0},{"$f":"+QUESTIONNAIRE!C145","v":0},{"$f":"+QUESTIONNAIRE!D145","v":"Jesu li procijenjene potrebe za ostalim konzultantskim uslugama (npr. pitanje osiguranja, porezna pitanja, financijsko modeliranje, zaštita okoliša)? "},{"$f":"+QUESTIONNAIRE!E145","v":0},{"$f":"+HLOOKUP($D$6,$J$13:$S$488,I145,FALSE)","v":"--Molimo odaberite--"},null,null,133,"--Molimo odaberite--","DA","--Molimo odaberite--","DA"]
[{"$f":"+QUESTIONNAIRE!A146","v":0},{"$f":"+QUESTIONNAIRE!B146","v":0},{"$f":"+QUESTIONNAIRE!C146","v":0},{"$f":"+QUESTIONNAIRE!D146","v":0},{"$f":"+QUESTIONNAIRE!E146","v":0},null,null,null,134]
[{"$f":"+QUESTIONNAIRE!A147","v":0},{"$f":"+QUESTIONNAIRE!B147","v":0},{"$f":"+QUESTIONNAIRE!C147","v":0},{"$f":"+QUESTIONNAIRE!D147","v":0},{"$f":"+QUESTIONNAIRE!E147","v":0},null,null,null,135]
[{"$f":"+QUESTIONNAIRE!A148","v":0},{"$f":"+QUESTIONNAIRE!B148","v":0},{"$f":"+QUESTIONNAIRE!C148","v":0},{"$f":"+QUESTIONNAIRE!D148","v":0},{"$f":"+QUESTIONNAIRE!E148","v":0},null,null,null,136]
[{"$f":"+QUESTIONNAIRE!A149","v":0},{"$f":"+QUESTIONNAIRE!B149","v":"Dobivanje potrebnih dozvola i odobrenja"},{"$f":"+QUESTIONNAIRE!C149","v":0},{"$f":"+QUESTIONNAIRE!D149","v":0},{"$f":"+QUESTIONNAIRE!E149","v":0},null,null,null,137]
[{"$f":"+QUESTIONNAIRE!A150","v":0},{"$f":"+QUESTIONNAIRE!B150","v":0},{"$f":"+QUESTIONNAIRE!C150","v":0},{"$f":"+QUESTIONNAIRE!D150","v":0},{"$f":"+QUESTIONNAIRE!E150","v":0},null,null,null,138]
[{"$f":"+QUESTIONNAIRE!A151","v":0},{"$f":"+QUESTIONNAIRE!B151","v":0},{"$f":"+QUESTIONNAIRE!C151","v":0},{"$f":"+QUESTIONNAIRE!D151","v":0},{"$f":"+QUESTIONNAIRE!E151","v":0},null,null,null,139]
[{"$f":"+QUESTIONNAIRE!A152","v":0},{"$f":"+QUESTIONNAIRE!B152","v":0},{"$f":"+QUESTIONNAIRE!C152","v":0},{"$f":"+QUESTIONNAIRE!D152","v":0},{"$f":"+QUESTIONNAIRE!E152","v":0},null,null,null,140]
[{"$f":"+QUESTIONNAIRE!A153","v":0},{"$f":"+QUESTIONNAIRE!B153","v":0},{"$f":"+QUESTIONNAIRE!C153","v":"Je li izvršena procjena svih neophodnih autorizacija, dozvola i odobrenja potrebnih za implementaciju projekta?"},{"$f":"+QUESTIONNAIRE!D153","v":0},{"$f":"+QUESTIONNAIRE!E153","v":0},{"$f":"+HLOOKUP($D$6,$J$13:$S$488,I153,FALSE)","v":"--Molimo odaberite--"},null,null,141,"--Molimo odaberite--","DA","--Molimo odaberite--","DA"]
[{"$f":"+QUESTIONNAIRE!A154","v":0},{"$f":"+QUESTIONNAIRE!B154","v":0},{"$f":"+QUESTIONNAIRE!C154","v":"Ako DA:"},{"$f":"+QUESTIONNAIRE!D154","v":0},{"$f":"+QUESTIONNAIRE!E154","v":0},null,null,null,142]
[{"$f":"+QUESTIONNAIRE!A155","v":0},{"$f":"+QUESTIONNAIRE!B155","v":0},{"$f":"+QUESTIONNAIRE!C155","v":0},{"$f":"+QUESTIONNAIRE!D155","v":"Da li ta procjena uključuje dostupnost zemljišta, eksproprijaciju, pitanja zaštite okoliša, zdravlja i sigurnosti? "},{"$f":"+QUESTIONNAIRE!E155","v":0},{"$f":"+HLOOKUP($D$6,$J$13:$S$488,I155,FALSE)","v":"--Molimo odaberite--"},null,null,143,"--Molimo odaberite--","DA","--Molimo odaberite--","DA"]
[{"$f":"+QUESTIONNAIRE!A156","v":0},{"$f":"+QUESTIONNAIRE!B156","v":0},{"$f":"+QUESTIONNAIRE!C156","v":0},{"$f":"+QUESTIONNAIRE!D156","v":0},{"$f":"+QUESTIONNAIRE!E156","v":0},null,null,null,144]
[{"$f":"+QUESTIONNAIRE!A157","v":0},{"$f":"+QUESTIONNAIRE!B157","v":"∞ "},{"$f":"+QUESTIONNAIRE!C157","v":0},{"$f":"+QUESTIONNAIRE!D157","v":"Da li proračun za pripremu projekta uključuje troškove dobivanja dozvola i odobrenja? (Pogledajte Osnivanje i struktura projektnog tima)"},{"$f":"+QUESTIONNAIRE!E157","v":0},{"$f":"+HLOOKUP($D$6,$J$13:$S$488,I157,FALSE)","v":"--Molimo odaberite--"},null,null,145,"--Molimo odaberite--","DA","--Molimo odaberite--","DA"]
[{"$f":"+QUESTIONNAIRE!A158","v":0},{"$f":"+QUESTIONNAIRE!B158","v":0},{"$f":"+QUESTIONNAIRE!C158","v":0},{"$f":"+QUESTIONNAIRE!D158","v":0},{"$f":"+QUESTIONNAIRE!E158","v":0},null,null,null,146]
[{"$f":"+QUESTIONNAIRE!A159","v":0},{"$f":"+QUESTIONNAIRE!B159","v":0},{"$f":"+QUESTIONNAIRE!C159","v":0},{"$f":"+QUESTIONNAIRE!D159","v":"Da li procjena identificira osobe/tijela koja su zadužena za dobivanje dozvola i odobrenja?"},{"$f":"+QUESTIONNAIRE!E159","v":0},{"$f":"+HLOOKUP($D$6,$J$13:$S$488,I159,FALSE)","v":"--Molimo odaberite--"},null,null,147,"--Molimo odaberite--","DA","--Molimo odaberite--","DA"]
[{"$f":"+QUESTIONNAIRE!A160","v":0},{"$f":"+QUESTIONNAIRE!B160","v":0},{"$f":"+QUESTIONNAIRE!C160","v":0},{"$f":"+QUESTIONNAIRE!D160","v":0},{"$f":"+QUESTIONNAIRE!E160","v":" "},null,null,null,148]
[{"$f":"+QUESTIONNAIRE!A161","v":0},{"$f":"+QUESTIONNAIRE!B161","v":0},{"$f":"+QUESTIONNAIRE!C161","v":0},{"$f":"+QUESTIONNAIRE!D161","v":"Jesu li procijenjeni rizici povezani s dobivanjem dozvola i odobrenja te jesu li ti rizici uneseni u tablicu rizika?"},{"$f":"+QUESTIONNAIRE!E161","v":0},{"$f":"+HLOOKUP($D$6,$J$13:$S$488,I161,FALSE)","v":"--Molimo odaberite--"},null,null,149,"--Molimo odaberite--","DA","--Molimo odaberite--","DA"]
[{"$f":"+QUESTIONNAIRE!A162","v":0},{"$f":"+QUESTIONNAIRE!B162","v":0},{"$f":"+QUESTIONNAIRE!C162","v":0},{"$f":"+QUESTIONNAIRE!D162","v":0},{"$f":"+QUESTIONNAIRE!E162","v":0},null,null,null,150]
[{"$f":"+QUESTIONNAIRE!A163","v":0},{"$f":"+QUESTIONNAIRE!B163","v":0},{"$f":"+QUESTIONNAIRE!C163","v":0},{"$f":"+QUESTIONNAIRE!D163","v":0},{"$f":"+QUESTIONNAIRE!E163","v":0},null,null,null,151]
[{"$f":"+QUESTIONNAIRE!A164","v":0},{"$f":"+QUESTIONNAIRE!B164","v":"Razvoj plana i rasporeda aktivnosti"},{"$f":"+QUESTIONNAIRE!C164","v":0},{"$f":"+QUESTIONNAIRE!D164","v":0},{"$f":"+QUESTIONNAIRE!E164","v":0},null,null,null,152]
[{"$f":"+QUESTIONNAIRE!A165","v":0},{"$f":"+QUESTIONNAIRE!B165","v":0},{"$f":"+QUESTIONNAIRE!C165","v":0},{"$f":"+QUESTIONNAIRE!D165","v":0},{"$f":"+QUESTIONNAIRE!E165","v":0},null,null,null,153]
[{"$f":"+QUESTIONNAIRE!A166","v":0},{"$f":"+QUESTIONNAIRE!B166","v":0},{"$f":"+QUESTIONNAIRE!C166","v":0},{"$f":"+QUESTIONNAIRE!D166","v":0},{"$f":"+QUESTIONNAIRE!E166","v":0},null,null,null,154]
[{"$f":"+QUESTIONNAIRE!A167","v":0},{"$f":"+QUESTIONNAIRE!B167","v":0},{"$f":"+QUESTIONNAIRE!C167","v":0},{"$f":"+QUESTIONNAIRE!D167","v":0},{"$f":"+QUESTIONNAIRE!E167","v":0},null,null,null,155]
[{"$f":"+QUESTIONNAIRE!A168","v":0},{"$f":"+QUESTIONNAIRE!B168","v":0},{"$f":"+QUESTIONNAIRE!C168","v":"Ima li javno tijelo usvojen plan za upravljanje pripremom i nabavom projekta?"},{"$f":"+QUESTIONNAIRE!D168","v":0},{"$f":"+QUESTIONNAIRE!E168","v":0},{"$f":"+HLOOKUP($D$6,$J$13:$S$488,I168,FALSE)","v":"--Molimo odaberite--"},null,null,156,"--Molimo odaberite--","DA","--Molimo odaberite--","DA"]
[{"$f":"+QUESTIONNAIRE!A169","v":0},{"$f":"+QUESTIONNAIRE!B169","v":0},{"$f":"+QUESTIONNAIRE!C169","v":"Ako DA:"},{"$f":"+QUESTIONNAIRE!D169","v":0},{"$f":"+QUESTIONNAIRE!E169","v":0},null,null,null,157]
[{"$f":"+QUESTIONNAIRE!A170","v":0},{"$f":"+QUESTIONNAIRE!B170","v":0},{"$f":"+QUESTIONNAIRE!C170","v":0},{"$f":"+QUESTIONNAIRE!D170","v":"Jesu li definirane uloge svih članova projektnog tima?"},{"$f":"+QUESTIONNAIRE!E170","v":0},{"$f":"+HLOOKUP($D$6,$J$13:$S$488,I170,FALSE)","v":"--Molimo odaberite--"},null,null,158,"--Molimo odaberite--","DA","--Molimo odaberite--","DA"]
[{"$f":"+QUESTIONNAIRE!A171","v":0},{"$f":"+QUESTIONNAIRE!B171","v":0},{"$f":"+QUESTIONNAIRE!C171","v":0},{"$f":"+QUESTIONNAIRE!D171","v":0},{"$f":"+QUESTIONNAIRE!E171","v":0},null,null,null,159]
[{"$f":"+QUESTIONNAIRE!A172","v":0},{"$f":"+QUESTIONNAIRE!B172","v":0},{"$f":"+QUESTIONNAIRE!C172","v":0},{"$f":"+QUESTIONNAIRE!D172","v":"Postoji li postupak za zapisivanje bilo koje izmjene tehničkih karakteristika i ugovornih odredbi projekta za vrijeme njegove pripreme?"},{"$f":"+QUESTIONNAIRE!E172","v":0},{"$f":"+HLOOKUP($D$6,$J$13:$S$488,I172,FALSE)","v":"--Molimo odaberite--"},null,null,160,"--Molimo odaberite--","DA","--Molimo odaberite--","DA"]
[{"$f":"+QUESTIONNAIRE!A173","v":0},{"$f":"+QUESTIONNAIRE!B173","v":0},{"$f":"+QUESTIONNAIRE!C173","v":0},{"$f":"+QUESTIONNAIRE!D173","v":0},{"$f":"+QUESTIONNAIRE!E173","v":0},null,null,null,161]
[{"$f":"+QUESTIONNAIRE!A174","v":0},{"$f":"+QUESTIONNAIRE!B174","v":0},{"$f":"+QUESTIONNAIRE!C174","v":0},{"$f":"+QUESTIONNAIRE!D174","v":"Postoji li plan za dobivanje svih potrebnih autorizacija, dozvola i odobrenja za vrijeme procesa pripreme i nabave projekta?"},{"$f":"+QUESTIONNAIRE!E174","v":0},{"$f":"+HLOOKUP($D$6,$J$13:$S$488,I174,FALSE)","v":"--Molimo odaberite--"},null,null,162,"--Molimo odaberite--","DA","--Molimo odaberite--","DA"]
[{"$f":"+QUESTIONNAIRE!A175","v":0},{"$f":"+QUESTIONNAIRE!B175","v":0},{"$f":"+QUESTIONNAIRE!C175","v":0},{"$f":"+QUESTIONNAIRE!D175","v":0},{"$f":"+QUESTIONNAIRE!E175","v":0},null,null,null,163]
[{"$f":"+QUESTIONNAIRE!A176","v":0},{"$f":"+QUESTIONNAIRE!B176","v":0},{"$f":"+QUESTIONNAIRE!C176","v":"Je li donesen raspored aktivnosti koji odražava zahtjeve pripreme i nabave projekta? "},{"$f":"+QUESTIONNAIRE!D176","v":0},{"$f":"+QUESTIONNAIRE!E176","v":0},{"$f":"+HLOOKUP($D$6,$J$13:$S$488,I176,FALSE)","v":"--Molimo odaberite--"},null,null,164,"--Molimo odaberite--","DA","--Molimo odaberite--","DA"]
[{"$f":"+QUESTIONNAIRE!A177","v":0},{"$f":"+QUESTIONNAIRE!B177","v":0},{"$f":"+QUESTIONNAIRE!C177","v":"Ako DA:"},{"$f":"+QUESTIONNAIRE!D177","v":0},{"$f":"+QUESTIONNAIRE!E177","v":0},null,null,null,165]
[{"$f":"+QUESTIONNAIRE!A178","v":0},{"$f":"+QUESTIONNAIRE!B178","v":0},{"$f":"+QUESTIONNAIRE!C178","v":0},{"$f":"+QUESTIONNAIRE!D178","v":"Da li raspored aktivnosti uključuje bilo koji neophodan postupak javnih konzultacija?"},{"$f":"+QUESTIONNAIRE!E178","v":0},{"$f":"+HLOOKUP($D$6,$J$13:$S$488,I178,FALSE)","v":"--Molimo odaberite--"},null,null,166,"--Molimo odaberite--","DA","--Molimo odaberite--","DA"]
[{"$f":"+QUESTIONNAIRE!A179","v":0},{"$f":"+QUESTIONNAIRE!B179","v":0},{"$f":"+QUESTIONNAIRE!C179","v":0},{"$f":"+QUESTIONNAIRE!D179","v":0},{"$f":"+QUESTIONNAIRE!E179","v":0},null,null,null,167]
[{"$f":"+QUESTIONNAIRE!A180","v":0},{"$f":"+QUESTIONNAIRE!B180","v":"∞ "},{"$f":"+QUESTIONNAIRE!C180","v":0},{"$f":"+QUESTIONNAIRE!D180","v":"Da li raspored aktivnosti omogućava dovoljno vremena za dobivanje svih potrebnih dozvola i odobrenja?"},{"$f":"+QUESTIONNAIRE!E180","v":0},{"$f":"+HLOOKUP($D$6,$J$13:$S$488,I180,FALSE)","v":"--Molimo odaberite--"},null,null,168,"--Molimo odaberite--","DA","--Molimo odaberite--","DA"]
[{"$f":"+QUESTIONNAIRE!A181","v":0},{"$f":"+QUESTIONNAIRE!B181","v":0},{"$f":"+QUESTIONNAIRE!C181","v":0},{"$f":"+QUESTIONNAIRE!D181","v":"(Pogledaje Dobivanje potrebnih dozvola i odobrenja)"},{"$f":"+QUESTIONNAIRE!E181","v":0},null,null,null,169]
[{"$f":"+QUESTIONNAIRE!A182","v":0},{"$f":"+QUESTIONNAIRE!B182","v":0},{"$f":"+QUESTIONNAIRE!C182","v":0},{"$f":"+QUESTIONNAIRE!D182","v":0},{"$f":"+QUESTIONNAIRE!E182","v":0},null,null,null,170]
[{"$f":"+QUESTIONNAIRE!A183","v":0},{"$f":"+QUESTIONNAIRE!B183","v":"∞ "},{"$f":"+QUESTIONNAIRE!C183","v":0},{"$f":"+QUESTIONNAIRE!D183","v":"Da li raspored aktivnosti omogućava dovoljno vremena za dobivanje odobrenja za bilo koje vanjske izvore sredstava (npr.nepovratna sredstva - \"grants\")?"},{"$f":"+QUESTIONNAIRE!E183","v":0},{"$f":"+HLOOKUP($D$6,$J$13:$S$488,I183,FALSE)","v":"--Molimo odaberite--"},null,null,171,"--Molimo odaberite--","DA","--Molimo odaberite--","DA"]
[{"$f":"+QUESTIONNAIRE!A184","v":0},{"$f":"+QUESTIONNAIRE!B184","v":0},{"$f":"+QUESTIONNAIRE!C184","v":0},{"$f":"+QUESTIONNAIRE!D184","v":"Pogledajte Razvoj analize priuštivosti"},{"$f":"+QUESTIONNAIRE!E184","v":0},null,null,null,172]
[{"$f":"+QUESTIONNAIRE!A185","v":0},{"$f":"+QUESTIONNAIRE!B185","v":0},{"$f":"+QUESTIONNAIRE!C185","v":0},{"$f":"+QUESTIONNAIRE!D185","v":0},{"$f":"+QUESTIONNAIRE!E185","v":0},null,null,null,173]
[{"$f":"+QUESTIONNAIRE!A186","v":0},{"$f":"+QUESTIONNAIRE!B186","v":"∞ "},{"$f":"+QUESTIONNAIRE!C186","v":0},{"$f":"+QUESTIONNAIRE!D186","v":"Da li raspored aktivnosti omogućava dovoljno vremena za adekvatno provođenje procesa nabave, uključujući prikupljanje financijskih sredstava?"},{"$f":"+QUESTIONNAIRE!E186","v":0},{"$f":"+HLOOKUP($D$6,$J$13:$S$488,I186,FALSE)","v":"--Molimo odaberite--"},null,null,174,"--Molimo odaberite--","DA","--Molimo odaberite--","DA"]
[{"$f":"+QUESTIONNAIRE!A187","v":0},{"$f":"+QUESTIONNAIRE!B187","v":0},{"$f":"+QUESTIONNAIRE!C187","v":0},{"$f":"+QUESTIONNAIRE!D187","v":"(Pogledajte Provođenje ispitivanja tržišta i analize bankabilnosti)"},{"$f":"+QUESTIONNAIRE!E187","v":0},null,null,null,175]
[{"$f":"+QUESTIONNAIRE!A188","v":0},{"$f":"+QUESTIONNAIRE!B188","v":0},{"$f":"+QUESTIONNAIRE!C188","v":0},{"$f":"+QUESTIONNAIRE!D188","v":0},{"$f":"+QUESTIONNAIRE!E188","v":0},null,null,null,176]
[{"$f":"+QUESTIONNAIRE!A189","v":0},{"$f":"+QUESTIONNAIRE!B189","v":0},{"$f":"+QUESTIONNAIRE!C189","v":0},{"$f":"+QUESTIONNAIRE!D189","v":"Da li raspored aktivnosti identificira ključne korake u postupku pripreme i nabave te prikazuje odnose između zadataka?"},{"$f":"+QUESTIONNAIRE!E189","v":0},{"$f":"+HLOOKUP($D$6,$J$13:$S$488,I189,FALSE)","v":"--Molimo odaberite--"},null,null,177,"--Molimo odaberite--","DA","--Molimo odaberite--","DA"]
[{"$f":"+QUESTIONNAIRE!A190","v":0},{"$f":"+QUESTIONNAIRE!B190","v":0},{"$f":"+QUESTIONNAIRE!C190","v":0},{"$f":"+QUESTIONNAIRE!D190","v":0},{"$f":"+QUESTIONNAIRE!E190","v":0},null,null,null,178]
[{"$f":"+QUESTIONNAIRE!A191","v":0},{"$f":"+QUESTIONNAIRE!B191","v":0},{"$f":"+QUESTIONNAIRE!C191","v":0},{"$f":"+QUESTIONNAIRE!D191","v":"Da li je raspored aktivnosti u potpunosti prihvaćen i odobren od stručnog povjerenstva (stručne komisije) te odgovarajućeg javnog tijela?"},{"$f":"+QUESTIONNAIRE!E191","v":0},{"$f":"+HLOOKUP($D$6,$J$13:$S$488,I191,FALSE)","v":"--Molimo odaberite--"},null,null,179,"--Molimo odaberite--","DA","--Molimo odaberite--","DA"]
[{"$f":"+QUESTIONNAIRE!A192","v":0},{"$f":"+QUESTIONNAIRE!B192","v":0},{"$f":"+QUESTIONNAIRE!C192","v":0},{"$f":"+QUESTIONNAIRE!D192","v":0},{"$f":"+QUESTIONNAIRE!E192","v":0},null,null,null,180]
[{"$f":"+QUESTIONNAIRE!A193","v":0},{"$f":"+QUESTIONNAIRE!B193","v":0},{"$f":"+QUESTIONNAIRE!C193","v":0},{"$f":"+QUESTIONNAIRE!D193","v":"Da li je razvijen početni plan za vođenje projeka u fazi nakon potpisivanja ugovora, uključujući upravljanje ugovorom, identifikaciju i obuku ključnih pojedinaca te osiguravanje učinkovitog podnošenja izvještaja i informacija o projektu?"},{"$f":"+QUESTIONNAIRE!E193","v":0},{"$f":"+HLOOKUP($D$6,$J$13:$S$488,I193,FALSE)","v":"--Molimo odaberite--"},null,null,181,"--Molimo odaberite--","DA","--Molimo odaberite--","DA"]
[{"$f":"+QUESTIONNAIRE!A194","v":0},{"$f":"+QUESTIONNAIRE!B194","v":0},{"$f":"+QUESTIONNAIRE!C194","v":0},{"$f":"+QUESTIONNAIRE!D194","v":0},{"$f":"+QUESTIONNAIRE!E194","v":0},null,null,null,182]
[{"$f":"+QUESTIONNAIRE!A195","v":0},{"$f":"+QUESTIONNAIRE!B195","v":0},{"$f":"+QUESTIONNAIRE!C195","v":0},{"$f":"+QUESTIONNAIRE!D195","v":0},{"$f":"+QUESTIONNAIRE!E195","v":0},null,null,null,183]
[{"$f":"+QUESTIONNAIRE!A196","v":0},{"$f":"+QUESTIONNAIRE!B196","v":0},{"$f":"+QUESTIONNAIRE!C196","v":0},{"$f":"+QUESTIONNAIRE!D196","v":0},{"$f":"+QUESTIONNAIRE!E196","v":0},null,null,null,184]
[{"$f":"+QUESTIONNAIRE!A197","v":0},{"$f":"+QUESTIONNAIRE!B197","v":0},{"$f":"+QUESTIONNAIRE!C197","v":0},{"$f":"+QUESTIONNAIRE!D197","v":0},{"$f":"+QUESTIONNAIRE!E197","v":0},null,null,null,185]
[{"$f":"+QUESTIONNAIRE!A198","v":0},{"$f":"+QUESTIONNAIRE!B198","v":"Razvoj JPP projekta"},null,null,{"$f":"+QUESTIONNAIRE!E198","v":0},null,null,null,186]
[{"$f":"+QUESTIONNAIRE!A199","v":0},{"$f":"+QUESTIONNAIRE!B199","v":0},{"$f":"+QUESTIONNAIRE!C199","v":0},{"$f":"+QUESTIONNAIRE!D199","v":0},{"$f":"+QUESTIONNAIRE!E199","v":0},null,null,null,187]
[{"$f":"+QUESTIONNAIRE!A200","v":0},{"$f":"+QUESTIONNAIRE!B200","v":"Razvoj analize priuštivosti"},{"$f":"+QUESTIONNAIRE!C200","v":0},{"$f":"+QUESTIONNAIRE!D200","v":0},{"$f":"+QUESTIONNAIRE!E200","v":0},null,null,null,188]
[{"$f":"+QUESTIONNAIRE!A201","v":0},{"$f":"+QUESTIONNAIRE!B201","v":0},{"$f":"+QUESTIONNAIRE!C201","v":0},{"$f":"+QUESTIONNAIRE!D201","v":0},{"$f":"+QUESTIONNAIRE!E201","v":0},null,null,null,189]
[{"$f":"+QUESTIONNAIRE!A202","v":0},{"$f":"+QUESTIONNAIRE!B202","v":0},{"$f":"+QUESTIONNAIRE!C202","v":0},{"$f":"+QUESTIONNAIRE!D202","v":0},{"$f":"+QUESTIONNAIRE!E202","v":0},null,null,null,190]
[{"$f":"+QUESTIONNAIRE!A203","v":0},{"$f":"+QUESTIONNAIRE!B203","v":0},{"$f":"+QUESTIONNAIRE!C203","v":0},{"$f":"+QUESTIONNAIRE!D203","v":0},{"$f":"+QUESTIONNAIRE!E203","v":0},null,null,null,191]
[{"$f":"+QUESTIONNAIRE!A204","v":0},{"$f":"+QUESTIONNAIRE!B204","v":0},{"$f":"+QUESTIONNAIRE!C204","v":"Je li pripremljena analiza priuštivosti da bi se dokazalo da su javno tijelo i/ili krajnji korisnici sposobni plaćati za projekt?"},{"$f":"+QUESTIONNAIRE!D204","v":0},{"$f":"+QUESTIONNAIRE!E204","v":0},{"$f":"+HLOOKUP($D$6,$J$13:$S$488,I204,FALSE)","v":"--Molimo odaberite--"},null,null,192,"--Molimo odaberite--","DA","--Molimo odaberite--","DA"]
[{"$f":"+QUESTIONNAIRE!A205","v":0},{"$f":"+QUESTIONNAIRE!B205","v":0},{"$f":"+QUESTIONNAIRE!C205","v":"Ako DA:"},{"$f":"+QUESTIONNAIRE!D205","v":0},{"$f":"+QUESTIONNAIRE!E205","v":0},null,null,null,193]
[{"$f":"+QUESTIONNAIRE!A206","v":0},{"$f":"+QUESTIONNAIRE!B206","v":0},{"$f":"+QUESTIONNAIRE!C206","v":0},{"$f":"+QUESTIONNAIRE!D206","v":"Jesu li procijenjeni ukupni životni troškovi projekta?"},{"$f":"+QUESTIONNAIRE!E206","v":0},{"$f":"+HLOOKUP($D$6,$J$13:$S$488,I206,FALSE)","v":"--Molimo odaberite--"},null,null,194,"--Molimo odaberite--","DA","--Molimo odaberite--","DA"]
[{"$f":"+QUESTIONNAIRE!A207","v":0},{"$f":"+QUESTIONNAIRE!B207","v":0},{"$f":"+QUESTIONNAIRE!C207","v":0},{"$f":"+QUESTIONNAIRE!D207","v":0},{"$f":"+QUESTIONNAIRE!E207","v":0},null,null,null,{"$f":"+I206+1","v":195}]
[{"$f":"+QUESTIONNAIRE!A208","v":0},{"$f":"+QUESTIONNAIRE!B208","v":0},{"$f":"+QUESTIONNAIRE!C208","v":0},{"$f":"+QUESTIONNAIRE!D208","v":"Da li analiza troškova uključuje kapitalne troškove, troškove poslovanja i održavanja, troškove životnog ciklusa građevine, troškove financiranja, troškove dostupnosti zemljišta, troškove javnog sektora za upravljanje projektom, troškove osiguranja, troškove pripreme projekta, transakcijske troškove i poreze?"},{"$f":"+QUESTIONNAIRE!E208","v":0},{"$f":"+HLOOKUP($D$6,$J$13:$S$488,I208,FALSE)","v":"--Molimo odaberite--"},null,null,196,"--Molimo odaberite--","DA","--Molimo odaberite--","DA"]
[{"$f":"+QUESTIONNAIRE!A209","v":0},{"$f":"+QUESTIONNAIRE!B209","v":0},{"$f":"+QUESTIONNAIRE!C209","v":0},{"$f":"+QUESTIONNAIRE!D209","v":0},{"$f":"+QUESTIONNAIRE!E209","v":0},null,null,null,197]
[{"$f":"+QUESTIONNAIRE!A210","v":0},{"$f":"+QUESTIONNAIRE!B210","v":0},{"$f":"+QUESTIONNAIRE!C210","v":0},{"$f":"+QUESTIONNAIRE!D210","v":"Da li analiza troškova financiranja odražava trenutne tržišne uvjete za cijenu duga, rok dospijeća duga, povrat na kapital, odnos duga i kapitala - \"gearing\" i koeficijent pokrića duga?"},{"$f":"+QUESTIONNAIRE!E210","v":0},{"$f":"+HLOOKUP($D$6,$J$13:$S$488,I210,FALSE)","v":"--Molimo odaberite--"},null,null,198,"--Molimo odaberite--","DA","--Molimo odaberite--","DA"]
[{"$f":"+QUESTIONNAIRE!A211","v":0},{"$f":"+QUESTIONNAIRE!B211","v":0},{"$f":"+QUESTIONNAIRE!C211","v":0},{"$f":"+QUESTIONNAIRE!D211","v":0},{"$f":"+QUESTIONNAIRE!E211","v":0},null,null,null,199]
[{"$f":"+QUESTIONNAIRE!A212","v":0},{"$f":"+QUESTIONNAIRE!B212","v":"∞ "},{"$f":"+QUESTIONNAIRE!C212","v":0},{"$f":"+QUESTIONNAIRE!D212","v":"Je li procjena troškova usklađena s nalazima ispitivanja tržišta i analize bankabilnosti,  analize pojedinaca/organizacija te traženim izlaznim specifikacijama projekta?"},{"$f":"+QUESTIONNAIRE!E212","v":0},{"$f":"+HLOOKUP($D$6,$J$13:$S$488,I212,FALSE)","v":"--Molimo odaberite--"},null,null,200,"--Molimo odaberite--","DA","--Molimo odaberite--","DA"]
[{"$f":"+QUESTIONNAIRE!A213","v":0},{"$f":"+QUESTIONNAIRE!B213","v":0},{"$f":"+QUESTIONNAIRE!C213","v":0},{"$f":"+QUESTIONNAIRE!D213","v":0},{"$f":"+QUESTIONNAIRE!E213","v":0},null,null,null,201]
[{"$f":"+QUESTIONNAIRE!A214","v":0},{"$f":"+QUESTIONNAIRE!B214","v":"∞ "},{"$f":"+QUESTIONNAIRE!C214","v":0},{"$f":"+QUESTIONNAIRE!D214","v":"Jesu li za pomoć u pripremi procjene troškova i financijskih pretpostavki korišteni konzultanti? (Pogledajte Osnivanje i struktura projektnog tima)"},{"$f":"+QUESTIONNAIRE!E214","v":0},{"$f":"+HLOOKUP($D$6,$J$13:$S$488,I214,FALSE)","v":"--Molimo odaberite--"},null,null,202,"--Molimo odaberite--","DA","--Molimo odaberite--","DA"]
[{"$f":"+QUESTIONNAIRE!A215","v":0},{"$f":"+QUESTIONNAIRE!B215","v":0},{"$f":"+QUESTIONNAIRE!C215","v":0},{"$f":"+QUESTIONNAIRE!D215","v":0},{"$f":"+QUESTIONNAIRE!E215","v":0},null,null,null,203]
[{"$f":"+QUESTIONNAIRE!A216","v":0},{"$f":"+QUESTIONNAIRE!B216","v":0},{"$f":"+QUESTIONNAIRE!C216","v":0},{"$f":"+QUESTIONNAIRE!D216","v":"Jesu li identificirani izvori sredstava za projekt? (npr. plaćanja korisnika, nepovratna sredstva za kapitalne troškove - \"capital grants\", proračunska sredstva javnog tijela)"},{"$f":"+QUESTIONNAIRE!E216","v":0},{"$f":"+HLOOKUP($D$6,$J$13:$S$488,I216,FALSE)","v":"--Molimo odaberite--"},null,null,204,"--Molimo odaberite--","DA","--Molimo odaberite--","DA"]
[{"$f":"+QUESTIONNAIRE!A217","v":0},{"$f":"+QUESTIONNAIRE!B217","v":0},{"$f":"+QUESTIONNAIRE!C217","v":0},{"$f":"+QUESTIONNAIRE!D217","v":0},{"$f":"+QUESTIONNAIRE!E217","v":0},null,null,null,205]
[{"$f":"+QUESTIONNAIRE!A218","v":0},{"$f":"+QUESTIONNAIRE!B218","v":0},{"$f":"+QUESTIONNAIRE!C218","v":0},{"$f":"+QUESTIONNAIRE!D218","v":"Je li provedena analiza da se utvrdi izvodljivost bilo kakvog plaćanja krajnjih korisnika?"},{"$f":"+QUESTIONNAIRE!E218","v":0},{"$f":"+HLOOKUP($D$6,$J$13:$S$488,I218,FALSE)","v":"--Molimo odaberite--"},null,null,206,"--Molimo odaberite--","DA","--Molimo odaberite--","DA"]
[{"$f":"+QUESTIONNAIRE!A219","v":0},{"$f":"+QUESTIONNAIRE!B219","v":0},{"$f":"+QUESTIONNAIRE!C219","v":0},{"$f":"+QUESTIONNAIRE!D219","v":0},{"$f":"+QUESTIONNAIRE!E219","v":0},null,null,null,207]
[{"$f":"+QUESTIONNAIRE!A220","v":0},{"$f":"+QUESTIONNAIRE!B220","v":0},{"$f":"+QUESTIONNAIRE!C220","v":0},{"$f":"+QUESTIONNAIRE!D220","v":0},{"$f":"+QUESTIONNAIRE!E220","v":"Ako DA, da li analiza pokriva spremnost krajnjih korisnika da plaćaju usluge?"},{"$f":"+HLOOKUP($D$6,$J$13:$S$488,I220,FALSE)","v":"--Molimo odaberite--"},null,null,208,"--Molimo odaberite--","DA","--Molimo odaberite--","DA"]
[{"$f":"+QUESTIONNAIRE!A221","v":0},{"$f":"+QUESTIONNAIRE!B221","v":0},{"$f":"+QUESTIONNAIRE!C221","v":0},{"$f":"+QUESTIONNAIRE!D221","v":0},{"$f":"+QUESTIONNAIRE!E221","v":0},null,null,null,209]
[{"$f":"+QUESTIONNAIRE!A222","v":0},{"$f":"+QUESTIONNAIRE!B222","v":0},{"$f":"+QUESTIONNAIRE!C222","v":0},{"$f":"+QUESTIONNAIRE!D222","v":0},{"$f":"+QUESTIONNAIRE!E222","v":"Ako DA, da li analiza slijedi priznatu sektorsku medodologiju?"},{"$f":"+HLOOKUP($D$6,$J$13:$S$488,I222,FALSE)","v":"--Molimo odaberite--"},null,null,210,"--Molimo odaberite--","DA","--Molimo odaberite--","DA"]
[{"$f":"+QUESTIONNAIRE!A223","v":0},{"$f":"+QUESTIONNAIRE!B223","v":0},{"$f":"+QUESTIONNAIRE!C223","v":0},{"$f":"+QUESTIONNAIRE!D223","v":0},{"$f":"+QUESTIONNAIRE!E223","v":0},null,null,null,211]
[{"$f":"+QUESTIONNAIRE!A224","v":0},{"$f":"+QUESTIONNAIRE!B224","v":0},{"$f":"+QUESTIONNAIRE!C224","v":0},{"$f":"+QUESTIONNAIRE!D224","v":"Je li procijenjena dostupnost, vjerojatnost i pravovremenost - \"tajming\" nepovratnih sredstava - \"grants\" trećih strana?"},{"$f":"+QUESTIONNAIRE!E224","v":0},{"$f":"+HLOOKUP($D$6,$J$13:$S$488,I224,FALSE)","v":"--Molimo odaberite--"},null,null,212,"--Molimo odaberite--","DA","--Molimo odaberite--","DA"]
[{"$f":"+QUESTIONNAIRE!A225","v":0},{"$f":"+QUESTIONNAIRE!B225","v":0},{"$f":"+QUESTIONNAIRE!C225","v":0},{"$f":"+QUESTIONNAIRE!D225","v":0},{"$f":"+QUESTIONNAIRE!E225","v":0},null,null,null,213]
[{"$f":"+QUESTIONNAIRE!A226","v":0},{"$f":"+QUESTIONNAIRE!B226","v":0},{"$f":"+QUESTIONNAIRE!C226","v":0},{"$f":"+QUESTIONNAIRE!D226","v":"Je li procijenjena dostupnost i pravovremenost - \"tajming\" unutarnjih proračunskih sredstava za financiranje dijela kapitalnih troškova projekta?"},{"$f":"+QUESTIONNAIRE!E226","v":0},{"$f":"+HLOOKUP($D$6,$J$13:$S$488,I226,FALSE)","v":"--Molimo odaberite--"},null,null,214,"--Molimo odaberite--","DA","--Molimo odaberite--","DA"]
[{"$f":"+QUESTIONNAIRE!A227","v":0},{"$f":"+QUESTIONNAIRE!B227","v":0},{"$f":"+QUESTIONNAIRE!C227","v":0},{"$f":"+QUESTIONNAIRE!D227","v":0},{"$f":"+QUESTIONNAIRE!E227","v":0},null,null,null,215]
[{"$f":"+QUESTIONNAIRE!A228","v":0},{"$f":"+QUESTIONNAIRE!B228","v":0},{"$f":"+QUESTIONNAIRE!C228","v":0},{"$f":"+QUESTIONNAIRE!D228","v":"Je li procijenjena dostupnost i pravovremenost - \"tajming\" javnih sredstava (osim sredstava samog javnog partnera) za podršku redovnom plaćanju naknade tijekom cjelokupnog životnog vijeka projekta?"},{"$f":"+QUESTIONNAIRE!E228","v":0},{"$f":"+HLOOKUP($D$6,$J$13:$S$488,I228,FALSE)","v":"--Molimo odaberite--"},null,null,216,"--Molimo odaberite--","DA","--Molimo odaberite--","DA"]
[{"$f":"+QUESTIONNAIRE!A229","v":0},{"$f":"+QUESTIONNAIRE!B229","v":0},{"$f":"+QUESTIONNAIRE!C229","v":0},{"$f":"+QUESTIONNAIRE!D229","v":0},{"$f":"+QUESTIONNAIRE!E229","v":0},null,null,null,217]
[{"$f":"+QUESTIONNAIRE!A230","v":0},{"$f":"+QUESTIONNAIRE!B230","v":0},{"$f":"+QUESTIONNAIRE!C230","v":0},{"$f":"+QUESTIONNAIRE!D230","v":"Je li raspolaganje postojećom imovinom javnog tijela predviđeno kao potencijalni izvor financiranja?"},{"$f":"+QUESTIONNAIRE!E230","v":0},{"$f":"+HLOOKUP($D$6,$J$13:$S$488,I230,FALSE)","v":"--Molimo odaberite--"},null,null,218,"--Molimo odaberite--","DA","--Molimo odaberite--","DA"]
[{"$f":"+QUESTIONNAIRE!A231","v":0},{"$f":"+QUESTIONNAIRE!B231","v":0},{"$f":"+QUESTIONNAIRE!C231","v":0},{"$f":"+QUESTIONNAIRE!D231","v":0},{"$f":"+QUESTIONNAIRE!E231","v":0},null,null,null,219]
[{"$f":"+QUESTIONNAIRE!A232","v":0},{"$f":"+QUESTIONNAIRE!B232","v":0},{"$f":"+QUESTIONNAIRE!C232","v":0},{"$f":"+QUESTIONNAIRE!D232","v":0},{"$f":"+QUESTIONNAIRE!E232","v":"Ako DA, je li provedena analiza radi procjene vrijednosti i pravovremenosti - \"tajminga\" povezanih prihoda?"},{"$f":"+HLOOKUP($D$6,$J$13:$S$488,I232,FALSE)","v":"--Molimo odaberite--"},null,null,220,"--Molimo odaberite--","DA","--Molimo odaberite--","DA"]
[{"$f":"+QUESTIONNAIRE!A233","v":0},{"$f":"+QUESTIONNAIRE!B233","v":0},{"$f":"+QUESTIONNAIRE!C233","v":0},{"$f":"+QUESTIONNAIRE!D233","v":0},{"$f":"+QUESTIONNAIRE!E233","v":0},null,null,null,221]
[{"$f":"+QUESTIONNAIRE!A234","v":0},{"$f":"+QUESTIONNAIRE!B234","v":0},{"$f":"+QUESTIONNAIRE!C234","v":0},{"$f":"+QUESTIONNAIRE!D234","v":"Je li pripremljen financijski model radi procjene hoće li identificirani izvori financiranja pokriti troškove projekta, kada bude potrebno, za vrijeme cjelokupnog životnog vijeka projekta?"},{"$f":"+QUESTIONNAIRE!E234","v":0},{"$f":"+HLOOKUP($D$6,$J$13:$S$488,I234,FALSE)","v":"--Molimo odaberite--"},null,null,222,"--Molimo odaberite--","DA","--Molimo odaberite--","DA"]
[{"$f":"+QUESTIONNAIRE!A235","v":0},{"$f":"+QUESTIONNAIRE!B235","v":0},{"$f":"+QUESTIONNAIRE!C235","v":0},{"$f":"+QUESTIONNAIRE!D235","v":0},{"$f":"+QUESTIONNAIRE!E235","v":0},null,null,null,223]
[{"$f":"+QUESTIONNAIRE!A236","v":0},{"$f":"+QUESTIONNAIRE!B236","v":"∞ "},{"$f":"+QUESTIONNAIRE!C236","v":0},{"$f":"+QUESTIONNAIRE!D236","v":0},{"$f":"+QUESTIONNAIRE!E236","v":"Ako DA, jesu li konzultanti bili uključeni u pripremu financijskog modela? (pogledajte Osnivanje i struktura projektnog tima)"},{"$f":"+HLOOKUP($D$6,$J$13:$S$488,I236,FALSE)","v":"--Molimo odaberite--"},null,null,224,"--Molimo odaberite--","DA","--Molimo odaberite--","DA"]
[{"$f":"+QUESTIONNAIRE!A237","v":0},{"$f":"+QUESTIONNAIRE!B237","v":0},{"$f":"+QUESTIONNAIRE!C237","v":0},{"$f":"+QUESTIONNAIRE!D237","v":0},{"$f":"+QUESTIONNAIRE!E237","v":0},null,null,null,225]
[{"$f":"+QUESTIONNAIRE!A238","v":0},{"$f":"+QUESTIONNAIRE!B238","v":0},{"$f":"+QUESTIONNAIRE!C238","v":0},{"$f":"+QUESTIONNAIRE!D238","v":"Je li provedena analiza osjetljivosti radi testiranja opstojnosti (robustnosti) priuštivosti projekta?"},{"$f":"+QUESTIONNAIRE!E238","v":0},{"$f":"+HLOOKUP($D$6,$J$13:$S$488,I238,FALSE)","v":"--Molimo odaberite--"},null,null,226,"--Molimo odaberite--","DA","--Molimo odaberite--","DA"]
[{"$f":"+QUESTIONNAIRE!A239","v":0},{"$f":"+QUESTIONNAIRE!B239","v":0},{"$f":"+QUESTIONNAIRE!C239","v":0},{"$f":"+QUESTIONNAIRE!D239","v":0},{"$f":"+QUESTIONNAIRE!E239","v":0},null,null,null,227]
[{"$f":"+QUESTIONNAIRE!A240","v":0},{"$f":"+QUESTIONNAIRE!B240","v":0},{"$f":"+QUESTIONNAIRE!C240","v":0},{"$f":"+QUESTIONNAIRE!D240","v":"Je li analiza priuštivosti uzela u obzir skrivene (potencijalne) obveze plaćanja javnog tijela (npr. garanciju prihoda)?"},{"$f":"+QUESTIONNAIRE!E240","v":0},{"$f":"+HLOOKUP($D$6,$J$13:$S$488,I240,FALSE)","v":"--Molimo odaberite--"},null,null,228,"--Molimo odaberite--","DA","--Molimo odaberite--","DA"]
[{"$f":"+QUESTIONNAIRE!A241","v":0},{"$f":"+QUESTIONNAIRE!B241","v":0},{"$f":"+QUESTIONNAIRE!C241","v":0},{"$f":"+QUESTIONNAIRE!D241","v":0},{"$f":"+QUESTIONNAIRE!E241","v":0},null,null,null,229]
[{"$f":"+QUESTIONNAIRE!A242","v":0},{"$f":"+QUESTIONNAIRE!B242","v":0},{"$f":"+QUESTIONNAIRE!C242","v":0},{"$f":"+QUESTIONNAIRE!D242","v":0},{"$f":"+QUESTIONNAIRE!E242","v":0},null,null,null,230]
[{"$f":"+QUESTIONNAIRE!A243","v":0},{"$f":"+QUESTIONNAIRE!B243","v":"Razvoj analize rizika"},{"$f":"+QUESTIONNAIRE!C243","v":0},{"$f":"+QUESTIONNAIRE!D243","v":0},{"$f":"+QUESTIONNAIRE!E243","v":0},null,null,null,231]
[{"$f":"+QUESTIONNAIRE!A244","v":0},{"$f":"+QUESTIONNAIRE!B244","v":0},{"$f":"+QUESTIONNAIRE!C244","v":0},{"$f":"+QUESTIONNAIRE!D244","v":0},{"$f":"+QUESTIONNAIRE!E244","v":0},null,null,null,232]
[{"$f":"+QUESTIONNAIRE!A245","v":0},{"$f":"+QUESTIONNAIRE!B245","v":0},{"$f":"+QUESTIONNAIRE!C245","v":0},{"$f":"+QUESTIONNAIRE!D245","v":0},{"$f":"+QUESTIONNAIRE!E245","v":0},null,null,null,233]
[{"$f":"+QUESTIONNAIRE!A246","v":0},{"$f":"+QUESTIONNAIRE!B246","v":0},{"$f":"+QUESTIONNAIRE!C246","v":0},{"$f":"+QUESTIONNAIRE!D246","v":0},{"$f":"+QUESTIONNAIRE!E246","v":0},null,null,null,234]
[{"$f":"+QUESTIONNAIRE!A247","v":0},{"$f":"+QUESTIONNAIRE!B247","v":0},{"$f":"+QUESTIONNAIRE!C247","v":"Jesu li identificirani rizici povezani s projektom?"},{"$f":"+QUESTIONNAIRE!D247","v":0},{"$f":"+QUESTIONNAIRE!E247","v":0},{"$f":"+HLOOKUP($D$6,$J$13:$S$488,I247,FALSE)","v":"--Molimo odaberite--"},null,null,235,"--Molimo odaberite--","DA","--Molimo odaberite--","DA"]
[{"$f":"+QUESTIONNAIRE!A248","v":0},{"$f":"+QUESTIONNAIRE!B248","v":0},{"$f":"+QUESTIONNAIRE!C248","v":"Ako DA:"},{"$f":"+QUESTIONNAIRE!D248","v":0},{"$f":"+QUESTIONNAIRE!E248","v":0},null,null,null,236]
[{"$f":"+QUESTIONNAIRE!A249","v":0},{"$f":"+QUESTIONNAIRE!B249","v":0},{"$f":"+QUESTIONNAIRE!C249","v":0},{"$f":"+QUESTIONNAIRE!D249","v":"Da li analiza pokriva sve faze projekta i sve grupe rizika (npr. pravni, tehnički, financijski, rizici okoliša)?"},{"$f":"+QUESTIONNAIRE!E249","v":0},{"$f":"+HLOOKUP($D$6,$J$13:$S$488,I249,FALSE)","v":"--Molimo odaberite--"},null,null,237,"--Molimo odaberite--","DA","--Molimo odaberite--","DA"]
[{"$f":"+QUESTIONNAIRE!A250","v":0},{"$f":"+QUESTIONNAIRE!B250","v":0},{"$f":"+QUESTIONNAIRE!C250","v":0},{"$f":"+QUESTIONNAIRE!D250","v":0},{"$f":"+QUESTIONNAIRE!E250","v":0},null,null,null,238]
[{"$f":"+QUESTIONNAIRE!A251","v":0},{"$f":"+QUESTIONNAIRE!B251","v":0},{"$f":"+QUESTIONNAIRE!C251","v":0},{"$f":"+QUESTIONNAIRE!D251","v":"Da li analiza pokriva rizike povezane s obvezama javnog sektora i njegovom sposobnošću da realizira projekt?"},{"$f":"+QUESTIONNAIRE!E251","v":0},{"$f":"+HLOOKUP($D$6,$J$13:$S$488,I251,FALSE)","v":"--Molimo odaberite--"},null,null,239,"--Molimo odaberite--","DA","--Molimo odaberite--","DA"]
[{"$f":"+QUESTIONNAIRE!A252","v":0},{"$f":"+QUESTIONNAIRE!B252","v":0},{"$f":"+QUESTIONNAIRE!C252","v":0},{"$f":"+QUESTIONNAIRE!D252","v":0},{"$f":"+QUESTIONNAIRE!E252","v":0},null,null,null,240]
[{"$f":"+QUESTIONNAIRE!A253","v":0},{"$f":"+QUESTIONNAIRE!B253","v":0},{"$f":"+QUESTIONNAIRE!C253","v":0},{"$f":"+QUESTIONNAIRE!D253","v":"Da li je pripremljena detaljna matrica rizika da se zabilježe ti rizici?"},{"$f":"+QUESTIONNAIRE!E253","v":0},{"$f":"+HLOOKUP($D$6,$J$13:$S$488,I253,FALSE)","v":"--Molimo odaberite--"},null,null,241,"--Molimo odaberite--","DA","--Molimo odaberite--","DA"]
[{"$f":"+QUESTIONNAIRE!A254","v":0},{"$f":"+QUESTIONNAIRE!B254","v":0},{"$f":"+QUESTIONNAIRE!C254","v":0},{"$f":"+QUESTIONNAIRE!D254","v":0},{"$f":"+QUESTIONNAIRE!E254","v":0},null,null,null,242]
[{"$f":"+QUESTIONNAIRE!A255","v":0},{"$f":"+QUESTIONNAIRE!B255","v":0},{"$f":"+QUESTIONNAIRE!C255","v":0},{"$f":"+QUESTIONNAIRE!D255","v":"Jesu li rizici podijeljeni u odgovarajuće podrizike da bi se osiguralo potpuno i jasno razumijevanje opsega svakog rizika?"},{"$f":"+QUESTIONNAIRE!E255","v":0},{"$f":"+HLOOKUP($D$6,$J$13:$S$488,I255,FALSE)","v":"--Molimo odaberite--"},null,null,243,"--Molimo odaberite--","DA","--Molimo odaberite--","DA"]
[{"$f":"+QUESTIONNAIRE!A256","v":0},{"$f":"+QUESTIONNAIRE!B256","v":0},{"$f":"+QUESTIONNAIRE!C256","v":0},{"$f":"+QUESTIONNAIRE!D256","v":0},{"$f":"+QUESTIONNAIRE!E256","v":0},null,null,null,244]
[{"$f":"+QUESTIONNAIRE!A257","v":0},{"$f":"+QUESTIONNAIRE!B257","v":0},{"$f":"+QUESTIONNAIRE!C257","v":"Je li provedena procjena rizika?"},{"$f":"+QUESTIONNAIRE!D257","v":0},{"$f":"+QUESTIONNAIRE!E257","v":0},{"$f":"+HLOOKUP($D$6,$J$13:$S$488,I257,FALSE)","v":"--Molimo odaberite--"},null,null,245,"--Molimo odaberite--","DA","--Molimo odaberite--","DA"]
[{"$f":"+QUESTIONNAIRE!A258","v":0},{"$f":"+QUESTIONNAIRE!B258","v":0},{"$f":"+QUESTIONNAIRE!C258","v":"Ako DA:"},{"$f":"+QUESTIONNAIRE!D258","v":0},{"$f":"+QUESTIONNAIRE!E258","v":0},null,null,null,246]
[{"$f":"+QUESTIONNAIRE!A259","v":0},{"$f":"+QUESTIONNAIRE!B259","v":0},{"$f":"+QUESTIONNAIRE!C259","v":0},{"$f":"+QUESTIONNAIRE!D259","v":"Je li procijenjena vjerojatnost svakog rizika?"},{"$f":"+QUESTIONNAIRE!E259","v":0},{"$f":"+HLOOKUP($D$6,$J$13:$S$488,I259,FALSE)","v":"--Molimo odaberite--"},null,null,247,"--Molimo odaberite--","DA","--Molimo odaberite--","DA"]
[{"$f":"+QUESTIONNAIRE!A260","v":0},{"$f":"+QUESTIONNAIRE!B260","v":0},{"$f":"+QUESTIONNAIRE!C260","v":0},{"$f":"+QUESTIONNAIRE!D260","v":0},{"$f":"+QUESTIONNAIRE!E260","v":0},null,null,null,248]
[{"$f":"+QUESTIONNAIRE!A261","v":0},{"$f":"+QUESTIONNAIRE!B261","v":0},{"$f":"+QUESTIONNAIRE!C261","v":0},{"$f":"+QUESTIONNAIRE!D261","v":"Je li utjecaj rizika procijenjen u smislu troškova i vremena?"},{"$f":"+QUESTIONNAIRE!E261","v":0},{"$f":"+HLOOKUP($D$6,$J$13:$S$488,I261,FALSE)","v":"--Molimo odaberite--"},null,null,249,"--Molimo odaberite--","DA","--Molimo odaberite--","DA"]
[{"$f":"+QUESTIONNAIRE!A262","v":0},{"$f":"+QUESTIONNAIRE!B262","v":0},{"$f":"+QUESTIONNAIRE!C262","v":0},{"$f":"+QUESTIONNAIRE!D262","v":0},{"$f":"+QUESTIONNAIRE!E262","v":0},null,null,null,250]
[{"$f":"+QUESTIONNAIRE!A263","v":0},{"$f":"+QUESTIONNAIRE!B263","v":0},{"$f":"+QUESTIONNAIRE!C263","v":"Je li provedena preliminarna alokacija/podjela rizika na temelju alokacije svakog rizika na stranku koja je sposobna najbolje upravljati rizikom (javnog ili privatnog partnera)?"},{"$f":"+QUESTIONNAIRE!D263","v":0},{"$f":"+QUESTIONNAIRE!E263","v":0},{"$f":"+HLOOKUP($D$6,$J$13:$S$488,I263,FALSE)","v":"--Molimo odaberite--"},null,null,251,"--Molimo odaberite--","DA","--Molimo odaberite--","DA"]
[{"$f":"+QUESTIONNAIRE!A264","v":0},{"$f":"+QUESTIONNAIRE!B264","v":0},{"$f":"+QUESTIONNAIRE!C264","v":0},{"$f":"+QUESTIONNAIRE!D264","v":0},{"$f":"+QUESTIONNAIRE!E264","v":0},null,null,null,252]
[{"$f":"+QUESTIONNAIRE!A265","v":0},{"$f":"+QUESTIONNAIRE!B265","v":0},{"$f":"+QUESTIONNAIRE!C265","v":"Jesu li mjere za ublažavanje bilo kojeg rizika projekta procijenjene i uključene u projektni plan te tehničke karakteristike i ugovorne odredbe projekta?"},{"$f":"+QUESTIONNAIRE!D265","v":0},{"$f":"+QUESTIONNAIRE!E265","v":0},{"$f":"+HLOOKUP($D$6,$J$13:$S$488,I265,FALSE)","v":"--Molimo odaberite--"},null,null,253,"--Molimo odaberite--","DA","--Molimo odaberite--","DA"]
[{"$f":"+QUESTIONNAIRE!A266","v":0},{"$f":"+QUESTIONNAIRE!B266","v":0},{"$f":"+QUESTIONNAIRE!C266","v":0},{"$f":"+QUESTIONNAIRE!D266","v":0},{"$f":"+QUESTIONNAIRE!E266","v":0},null,null,null,254]
[{"$f":"+QUESTIONNAIRE!A267","v":0},{"$f":"+QUESTIONNAIRE!B267","v":"∞ "},{"$f":"+QUESTIONNAIRE!C267","v":"Je li ukupna analiza rizika uključila konzultante, posebno prilikom zadatka identifikacije, procjene i alokacije? (pogledajte Osnivanje i struktura projektnog tima)"},{"$f":"+QUESTIONNAIRE!D267","v":0},{"$f":"+QUESTIONNAIRE!E267","v":0},{"$f":"+HLOOKUP($D$6,$J$13:$S$488,I267,FALSE)","v":"--Molimo odaberite--"},null,null,255,"--Molimo odaberite--","DA","--Molimo odaberite--","DA"]
[{"$f":"+QUESTIONNAIRE!A268","v":0},{"$f":"+QUESTIONNAIRE!B268","v":0},{"$f":"+QUESTIONNAIRE!C268","v":0},{"$f":"+QUESTIONNAIRE!D268","v":0},{"$f":"+QUESTIONNAIRE!E268","v":0},null,null,null,256]
[{"$f":"+QUESTIONNAIRE!A269","v":0},{"$f":"+QUESTIONNAIRE!B269","v":"∞ "},{"$f":"+QUESTIONNAIRE!C269","v":"Da li je analiza rizika utemeljena na procjeni izlaznih specifikacija usluge, ispitivanju tržišta & bankabilnosti te procjeni priuštivosti?"},{"$f":"+QUESTIONNAIRE!D269","v":0},{"$f":"+QUESTIONNAIRE!E269","v":0},{"$f":"+HLOOKUP($D$6,$J$13:$S$488,I269,FALSE)","v":"--Molimo odaberite--"},null,null,257,"--Molimo odaberite--","DA","--Molimo odaberite--","DA"]
[{"$f":"+QUESTIONNAIRE!A270","v":0},{"$f":"+QUESTIONNAIRE!B270","v":0},{"$f":"+QUESTIONNAIRE!C270","v":0},{"$f":"+QUESTIONNAIRE!D270","v":0},{"$f":"+QUESTIONNAIRE!E270","v":0},null,null,null,258]
[{"$f":"+QUESTIONNAIRE!A271","v":0},{"$f":"+QUESTIONNAIRE!B271","v":0},{"$f":"+QUESTIONNAIRE!C271","v":"Da li je analiza rizika utemeljena na relevantnom presedanu (sličnom projektu)?"},{"$f":"+QUESTIONNAIRE!D271","v":0},{"$f":"+QUESTIONNAIRE!E271","v":0},{"$f":"+HLOOKUP($D$6,$J$13:$S$488,I271,FALSE)","v":"--Molimo odaberite--"},null,null,{"$f":"+I270+1","v":259},"--Molimo odaberite--","DA","--Molimo odaberite--","DA"]
[{"$f":"+QUESTIONNAIRE!A272","v":0},{"$f":"+QUESTIONNAIRE!B272","v":0},{"$f":"+QUESTIONNAIRE!C272","v":0},{"$f":"+QUESTIONNAIRE!D272","v":0},{"$f":"+QUESTIONNAIRE!E272","v":0},null,null,null,260]
[{"$f":"+QUESTIONNAIRE!A273","v":0},{"$f":"+QUESTIONNAIRE!B273","v":0},{"$f":"+QUESTIONNAIRE!C273","v":"Je li uspostavljen proces upravljanja rizicima koji će omogućiti da rizici projekta  budu praćeni, ponovno sagledani i ažurirani za vrijeme razvoja i poslovanja projekta?"},{"$f":"+QUESTIONNAIRE!D273","v":0},{"$f":"+QUESTIONNAIRE!E273","v":0},{"$f":"+HLOOKUP($D$6,$J$13:$S$488,I273,FALSE)","v":"--Molimo odaberite--"},null,null,261,"--Molimo odaberite--","DA","--Molimo odaberite--","DA"]
[{"$f":"+QUESTIONNAIRE!A274","v":0},{"$f":"+QUESTIONNAIRE!B274","v":0},{"$f":"+QUESTIONNAIRE!C274","v":0},{"$f":"+QUESTIONNAIRE!D274","v":0},{"$f":"+QUESTIONNAIRE!E274","v":0},null,null,null,262]
[{"$f":"+QUESTIONNAIRE!A275","v":0},{"$f":"+QUESTIONNAIRE!B275","v":0},{"$f":"+QUESTIONNAIRE!C275","v":0},{"$f":"+QUESTIONNAIRE!D275","v":0},{"$f":"+QUESTIONNAIRE!E275","v":0},null,null,null,263]
[{"$f":"+QUESTIONNAIRE!A276","v":0},{"$f":"+QUESTIONNAIRE!B276","v":"Provođenje ispitivanja tržišta i analize bankabilnosti"},{"$f":"+QUESTIONNAIRE!C276","v":0},{"$f":"+QUESTIONNAIRE!D276","v":0},{"$f":"+QUESTIONNAIRE!E276","v":0},null,null,null,264]
[{"$f":"+QUESTIONNAIRE!A277","v":0},{"$f":"+QUESTIONNAIRE!B277","v":0},{"$f":"+QUESTIONNAIRE!C277","v":0},{"$f":"+QUESTIONNAIRE!D277","v":0},{"$f":"+QUESTIONNAIRE!E277","v":0},null,null,null,265]
[{"$f":"+QUESTIONNAIRE!A278","v":0},{"$f":"+QUESTIONNAIRE!B278","v":0},{"$f":"+QUESTIONNAIRE!C278","v":0},{"$f":"+QUESTIONNAIRE!D278","v":0},{"$f":"+QUESTIONNAIRE!E278","v":0},null,null,null,266]
[{"$f":"+QUESTIONNAIRE!A279","v":0},{"$f":"+QUESTIONNAIRE!B279","v":0},{"$f":"+QUESTIONNAIRE!C279","v":0},{"$f":"+QUESTIONNAIRE!D279","v":0},{"$f":"+QUESTIONNAIRE!E279","v":0},null,null,null,267]
[{"$f":"+QUESTIONNAIRE!A280","v":0},{"$f":"+QUESTIONNAIRE!B280","v":0},{"$f":"+QUESTIONNAIRE!C280","v":"Je li procijenjena razina interesa/kapaciteta privatnog sektora (npr. izvoditelja radova, kreditora) za sudjelovanje u projektu?"},{"$f":"+QUESTIONNAIRE!D280","v":0},{"$f":"+QUESTIONNAIRE!E280","v":0},{"$f":"+HLOOKUP($D$6,$J$13:$S$488,I280,FALSE)","v":"--Molimo odaberite--"},null,null,268,"--Molimo odaberite--","DA","--Molimo odaberite--","DA"]
[{"$f":"+QUESTIONNAIRE!A281","v":0},{"$f":"+QUESTIONNAIRE!B281","v":0},{"$f":"+QUESTIONNAIRE!C281","v":"Ako DA:"},{"$f":"+QUESTIONNAIRE!D281","v":0},{"$f":"+QUESTIONNAIRE!E281","v":0},null,null,null,269]
[{"$f":"+QUESTIONNAIRE!A282","v":0},{"$f":"+QUESTIONNAIRE!B282","v":0},{"$f":"+QUESTIONNAIRE!C282","v":0},{"$f":"+QUESTIONNAIRE!D282","v":"Je li razvijen plan ispitivanja tržišta koji identificira ključne karakteristike projekta (npr. profil rizika, trajanje ugovora) koje će biti testirane na tržištu?"},{"$f":"+QUESTIONNAIRE!E282","v":0},{"$f":"+HLOOKUP($D$6,$J$13:$S$488,I282,FALSE)","v":"--Molimo odaberite--"},null,null,270,"--Molimo odaberite--","DA","--Molimo odaberite--","DA"]
[{"$f":"+QUESTIONNAIRE!A283","v":0},{"$f":"+QUESTIONNAIRE!B283","v":0},{"$f":"+QUESTIONNAIRE!C283","v":0},{"$f":"+QUESTIONNAIRE!D283","v":0},{"$f":"+QUESTIONNAIRE!E283","v":0},null,null,null,271]
[{"$f":"+QUESTIONNAIRE!A284","v":0},{"$f":"+QUESTIONNAIRE!B284","v":0},{"$f":"+QUESTIONNAIRE!C284","v":0},{"$f":"+QUESTIONNAIRE!D284","v":"Da li je planom definiran jasan pristup za suradnju sa svim relevantnim tržišnim igračima u odgovarajuće vrijeme?"},{"$f":"+QUESTIONNAIRE!E284","v":0},{"$f":"+HLOOKUP($D$6,$J$13:$S$488,I284,FALSE)","v":"--Molimo odaberite--"},null,null,272,"--Molimo odaberite--","DA","--Molimo odaberite--","DA"]
[{"$f":"+QUESTIONNAIRE!A285","v":0},{"$f":"+QUESTIONNAIRE!B285","v":0},{"$f":"+QUESTIONNAIRE!C285","v":0},{"$f":"+QUESTIONNAIRE!D285","v":0},{"$f":"+QUESTIONNAIRE!E285","v":0},null,null,null,273]
[{"$f":"+QUESTIONNAIRE!A286","v":0},{"$f":"+QUESTIONNAIRE!B286","v":0},{"$f":"+QUESTIONNAIRE!C286","v":"Je li provedeno istraživanje radi identificiranja usporedivih projekata (npr. veličina, sektor, profil rizika) koji su nedavno financirani u zemlji ili širem okruženju?"},{"$f":"+QUESTIONNAIRE!D286","v":0},{"$f":"+QUESTIONNAIRE!E286","v":0},{"$f":"+HLOOKUP($D$6,$J$13:$S$488,I286,FALSE)","v":"--Molimo odaberite--"},null,null,274,"--Molimo odaberite--","DA","--Molimo odaberite--","DA"]
[{"$f":"+QUESTIONNAIRE!A287","v":0},{"$f":"+QUESTIONNAIRE!B287","v":0},{"$f":"+QUESTIONNAIRE!C287","v":0},{"$f":"+QUESTIONNAIRE!D287","v":0},{"$f":"+QUESTIONNAIRE!E287","v":0},null,null,null,275]
[{"$f":"+QUESTIONNAIRE!A288","v":0},{"$f":"+QUESTIONNAIRE!B288","v":0},{"$f":"+QUESTIONNAIRE!C288","v":"Je li provedena analiza radi procjene sposobnosti izvoditelja radova i pružatelja usluga da izgrade i upravljaju projektom?"},{"$f":"+QUESTIONNAIRE!D288","v":0},{"$f":"+QUESTIONNAIRE!E288","v":0},{"$f":"+HLOOKUP($D$6,$J$13:$S$488,I288,FALSE)","v":"--Molimo odaberite--"},null,null,276,"--Molimo odaberite--","DA","--Molimo odaberite--","DA"]
[{"$f":"+QUESTIONNAIRE!A289","v":0},{"$f":"+QUESTIONNAIRE!B289","v":0},{"$f":"+QUESTIONNAIRE!C289","v":"Ako DA:"},{"$f":"+QUESTIONNAIRE!D289","v":0},{"$f":"+QUESTIONNAIRE!E289","v":0},null,null,null,277]
[{"$f":"+QUESTIONNAIRE!A290","v":0},{"$f":"+QUESTIONNAIRE!B290","v":0},{"$f":"+QUESTIONNAIRE!C290","v":0},{"$f":"+QUESTIONNAIRE!D290","v":"Da li analiza pokriva njihovo prethodno iskustvo u projektima JPP-a?"},{"$f":"+QUESTIONNAIRE!E290","v":0},{"$f":"+HLOOKUP($D$6,$J$13:$S$488,I290,FALSE)","v":"--Molimo odaberite--"},null,null,278,"--Molimo odaberite--","DA","--Molimo odaberite--","DA"]
[{"$f":"+QUESTIONNAIRE!A291","v":0},{"$f":"+QUESTIONNAIRE!B291","v":0},{"$f":"+QUESTIONNAIRE!C291","v":0},{"$f":"+QUESTIONNAIRE!D291","v":0},{"$f":"+QUESTIONNAIRE!E291","v":0},null,null,null,279]
[{"$f":"+QUESTIONNAIRE!A292","v":0},{"$f":"+QUESTIONNAIRE!B292","v":0},{"$f":"+QUESTIONNAIRE!C292","v":0},{"$f":"+QUESTIONNAIRE!D292","v":"Da li opseg analize uključuje kapacitet tržišta da realizira tražene izlazne specifikacije projekta u skladu s očekivanom kvalitetom, troškovima i rasporedom aktivnosti?"},{"$f":"+QUESTIONNAIRE!E292","v":0},{"$f":"+HLOOKUP($D$6,$J$13:$S$488,I292,FALSE)","v":"--Molimo odaberite--"},null,null,280,"--Molimo odaberite--","DA","--Molimo odaberite--","DA"]
[{"$f":"+QUESTIONNAIRE!A293","v":0},{"$f":"+QUESTIONNAIRE!B293","v":0},{"$f":"+QUESTIONNAIRE!C293","v":0},{"$f":"+QUESTIONNAIRE!D293","v":0},{"$f":"+QUESTIONNAIRE!E293","v":0},null,null,null,281]
[{"$f":"+QUESTIONNAIRE!A294","v":0},{"$f":"+QUESTIONNAIRE!B294","v":0},{"$f":"+QUESTIONNAIRE!C294","v":"Je li provedena analiza da bi se procijenio kapacitet/želja potencijalnih kreditora da financiraju projekt?"},{"$f":"+QUESTIONNAIRE!D294","v":0},{"$f":"+QUESTIONNAIRE!E294","v":0},{"$f":"+HLOOKUP($D$6,$J$13:$S$488,I294,FALSE)","v":"--Molimo odaberite--"},null,null,282,"--Molimo odaberite--","DA","--Molimo odaberite--","DA"]
[{"$f":"+QUESTIONNAIRE!A295","v":0},{"$f":"+QUESTIONNAIRE!B295","v":0},{"$f":"+QUESTIONNAIRE!C295","v":"Ako DA:"},{"$f":"+QUESTIONNAIRE!D295","v":0},{"$f":"+QUESTIONNAIRE!E295","v":0},null,null,null,283]
[{"$f":"+QUESTIONNAIRE!A296","v":0},{"$f":"+QUESTIONNAIRE!B296","v":0},{"$f":"+QUESTIONNAIRE!C296","v":0},{"$f":"+QUESTIONNAIRE!D296","v":"Da li analiza pokriva sve potencijalne izvore financiranja (npr. komercijalne banke, međunarodne ili domaće javne financijske institucije, kapitalne ulagače) za projekt?"},{"$f":"+QUESTIONNAIRE!E296","v":0},{"$f":"+HLOOKUP($D$6,$J$13:$S$488,I296,FALSE)","v":"--Molimo odaberite--"},null,null,284,"--Molimo odaberite--","DA","--Molimo odaberite--","DA"]
[{"$f":"+QUESTIONNAIRE!A297","v":0},{"$f":"+QUESTIONNAIRE!B297","v":0},{"$f":"+QUESTIONNAIRE!C297","v":0},{"$f":"+QUESTIONNAIRE!D297","v":0},{"$f":"+QUESTIONNAIRE!E297","v":0},null,null,null,285]
[{"$f":"+QUESTIONNAIRE!A298","v":0},{"$f":"+QUESTIONNAIRE!B298","v":0},{"$f":"+QUESTIONNAIRE!C298","v":0},{"$f":"+QUESTIONNAIRE!D298","v":"Da li se analiza fokusira na njihovo iskustvo u financiranju projekata JPP-a (npr. projektno financiranje - \"non-recourse project financing\")?"},{"$f":"+QUESTIONNAIRE!E298","v":0},{"$f":"+HLOOKUP($D$6,$J$13:$S$488,I298,FALSE)","v":"--Molimo odaberite--"},null,null,286,"--Molimo odaberite--","DA","--Molimo odaberite--","DA"]
[{"$f":"+QUESTIONNAIRE!A299","v":0},{"$f":"+QUESTIONNAIRE!B299","v":0},{"$f":"+QUESTIONNAIRE!C299","v":0},{"$f":"+QUESTIONNAIRE!D299","v":0},{"$f":"+QUESTIONNAIRE!E299","v":0},null,null,null,287]
[{"$f":"+QUESTIONNAIRE!A300","v":0},{"$f":"+QUESTIONNAIRE!B300","v":0},{"$f":"+QUESTIONNAIRE!C300","v":0},{"$f":"+QUESTIONNAIRE!D300","v":"Da li analiza ocjenjuje hoće li karakteristike projekta (npr. profil rizika) vjerojatno privući financiranje po razumnim uvjetima (npr. dugotrajno dospijeće duga)?"},{"$f":"+QUESTIONNAIRE!E300","v":0},{"$f":"+HLOOKUP($D$6,$J$13:$S$488,I300,FALSE)","v":"--Molimo odaberite--"},null,null,288,"--Molimo odaberite--","DA","--Molimo odaberite--","DA"]
[{"$f":"+QUESTIONNAIRE!A301","v":0},{"$f":"+QUESTIONNAIRE!B301","v":0},{"$f":"+QUESTIONNAIRE!C301","v":0},{"$f":"+QUESTIONNAIRE!D301","v":0},{"$f":"+QUESTIONNAIRE!E301","v":0},null,null,null,289]
[{"$f":"+QUESTIONNAIRE!A302","v":0},{"$f":"+QUESTIONNAIRE!B302","v":0},{"$f":"+QUESTIONNAIRE!C302","v":0},{"$f":"+QUESTIONNAIRE!D302","v":"Da li analiza ocjenjuje hoće li kreditori vjerojatno zahtijevati garancije javnog tijela (npr. garanciju minimalne potražnje)?"},{"$f":"+QUESTIONNAIRE!E302","v":0},{"$f":"+HLOOKUP($D$6,$J$13:$S$488,I302,FALSE)","v":"--Molimo odaberite--"},null,null,290,"--Molimo odaberite--","DA","--Molimo odaberite--","DA"]
[{"$f":"+QUESTIONNAIRE!A303","v":0},{"$f":"+QUESTIONNAIRE!B303","v":0},{"$f":"+QUESTIONNAIRE!C303","v":0},{"$f":"+QUESTIONNAIRE!D303","v":0},{"$f":"+QUESTIONNAIRE!E303","v":0},null,null,null,291]
[{"$f":"+QUESTIONNAIRE!A304","v":0},{"$f":"+QUESTIONNAIRE!B304","v":0},{"$f":"+QUESTIONNAIRE!C304","v":0},{"$f":"+QUESTIONNAIRE!D304","v":"U slučajevima kad se očekuje da ce nastati obveze plaćanja javnog sektora, da li analiza ocjenjuje hoće li kreditori biti zadovoljni sa sposobnošću nadležnih javnih tijela da podmire te obveze?"},{"$f":"+QUESTIONNAIRE!E304","v":0},{"$f":"+HLOOKUP($D$6,$J$13:$S$488,I304,FALSE)","v":"--Molimo odaberite--"},null,null,292,"--Molimo odaberite--","DA","--Molimo odaberite--","DA"]
[{"$f":"+QUESTIONNAIRE!A305","v":0},{"$f":"+QUESTIONNAIRE!B305","v":0},{"$f":"+QUESTIONNAIRE!C305","v":0},{"$f":"+QUESTIONNAIRE!D305","v":0},{"$f":"+QUESTIONNAIRE!E305","v":0},null,null,null,293]
[{"$f":"+QUESTIONNAIRE!A306","v":0},{"$f":"+QUESTIONNAIRE!B306","v":0},{"$f":"+QUESTIONNAIRE!C306","v":0},{"$f":"+QUESTIONNAIRE!D306","v":"Da li analiza ocjenjuje hoće li kreditori biti zadovoljni s financijskim stanjem i tehničkim kapacitetima potencijalnih izvoditelja radova i pružatelja usluga?"},{"$f":"+QUESTIONNAIRE!E306","v":0},{"$f":"+HLOOKUP($D$6,$J$13:$S$488,I306,FALSE)","v":"--Molimo odaberite--"},null,null,294,"--Molimo odaberite--","DA","--Molimo odaberite--","DA"]
[{"$f":"+QUESTIONNAIRE!A307","v":0},{"$f":"+QUESTIONNAIRE!B307","v":0},{"$f":"+QUESTIONNAIRE!C307","v":0},{"$f":"+QUESTIONNAIRE!D307","v":0},{"$f":"+QUESTIONNAIRE!E307","v":0},null,null,null,295]
[{"$f":"+QUESTIONNAIRE!A308","v":0},{"$f":"+QUESTIONNAIRE!B308","v":"∞ "},{"$f":"+QUESTIONNAIRE!C308","v":"Da li su konzultanti bili uključeni u Ispitivanje tržišta i analizu bankabilnosti? (pogledajte Osnivanje i struktura projektnog tima)"},{"$f":"+QUESTIONNAIRE!D308","v":0},{"$f":"+QUESTIONNAIRE!E308","v":0},{"$f":"+HLOOKUP($D$6,$J$13:$S$488,I308,FALSE)","v":"--Molimo odaberite--"},null,null,296,"--Molimo odaberite--","DA","--Molimo odaberite--","DA"]
[{"$f":"+QUESTIONNAIRE!A309","v":0},{"$f":"+QUESTIONNAIRE!B309","v":0},{"$f":"+QUESTIONNAIRE!C309","v":0},{"$f":"+QUESTIONNAIRE!D309","v":0},{"$f":"+QUESTIONNAIRE!E309","v":0},null,null,null,297]
[{"$f":"+QUESTIONNAIRE!A310","v":0},{"$f":"+QUESTIONNAIRE!B310","v":0},{"$f":"+QUESTIONNAIRE!C310","v":"Da li analiza osigurava da je broj i opseg kontaktiranih organizacija dovoljno širok?"},{"$f":"+QUESTIONNAIRE!D310","v":0},{"$f":"+QUESTIONNAIRE!E310","v":0},{"$f":"+HLOOKUP($D$6,$J$13:$S$488,I310,FALSE)","v":"--Molimo odaberite--"},null,null,298,"--Molimo odaberite--","DA","--Molimo odaberite--","DA"]
[{"$f":"+QUESTIONNAIRE!A311","v":0},{"$f":"+QUESTIONNAIRE!B311","v":0},{"$f":"+QUESTIONNAIRE!C311","v":0},{"$f":"+QUESTIONNAIRE!D311","v":0},{"$f":"+QUESTIONNAIRE!E311","v":0},null,null,null,299]
[{"$f":"+QUESTIONNAIRE!A312","v":0},{"$f":"+QUESTIONNAIRE!B312","v":0},{"$f":"+QUESTIONNAIRE!C312","v":"Jesu li rezultati analize uzeti u obzir u tehničkim karakteristikama i ugovornim odredbama projekta?"},{"$f":"+QUESTIONNAIRE!D312","v":0},{"$f":"+QUESTIONNAIRE!E312","v":0},{"$f":"+HLOOKUP($D$6,$J$13:$S$488,I312,FALSE)","v":"--Molimo odaberite--"},null,null,300,"--Molimo odaberite--","DA","--Molimo odaberite--","DA"]
[{"$f":"+QUESTIONNAIRE!A313","v":0},{"$f":"+QUESTIONNAIRE!B313","v":0},{"$f":"+QUESTIONNAIRE!C313","v":0},{"$f":"+QUESTIONNAIRE!D313","v":0},{"$f":"+QUESTIONNAIRE!E313","v":0},null,null,null,301]
[{"$f":"+QUESTIONNAIRE!A314","v":0},{"$f":"+QUESTIONNAIRE!B314","v":0},{"$f":"+QUESTIONNAIRE!C314","v":"Da li sveukupna analiza tržišta ocjenjuje je li vjerojatno da će postojati jaka razina konkurencije između ponuditelja u nabavi projekta?"},{"$f":"+QUESTIONNAIRE!D314","v":0},{"$f":"+QUESTIONNAIRE!E314","v":0},{"$f":"+HLOOKUP($D$6,$J$13:$S$488,I314,FALSE)","v":"--Molimo odaberite--"},null,null,302,"--Molimo odaberite--","DA","--Molimo odaberite--","DA"]
[{"$f":"+QUESTIONNAIRE!A315","v":0},{"$f":"+QUESTIONNAIRE!B315","v":0},{"$f":"+QUESTIONNAIRE!C315","v":0},{"$f":"+QUESTIONNAIRE!D315","v":0},{"$f":"+QUESTIONNAIRE!E315","v":0},null,null,null,303]
[{"$f":"+QUESTIONNAIRE!A316","v":0},{"$f":"+QUESTIONNAIRE!B316","v":0},{"$f":"+QUESTIONNAIRE!C316","v":"Je li analiza uključila fokusiranje na identificiranje zapreka jakoj konkurenciji?"},{"$f":"+QUESTIONNAIRE!D316","v":0},{"$f":"+QUESTIONNAIRE!E316","v":0},{"$f":"+HLOOKUP($D$6,$J$13:$S$488,I316,FALSE)","v":"--Molimo odaberite--"},null,null,304,"--Molimo odaberite--","DA","--Molimo odaberite--","DA"]
[{"$f":"+QUESTIONNAIRE!A317","v":0},{"$f":"+QUESTIONNAIRE!B317","v":0},{"$f":"+QUESTIONNAIRE!C317","v":0},{"$f":"+QUESTIONNAIRE!D317","v":0},{"$f":"+QUESTIONNAIRE!E317","v":0},null,null,null,305]
[{"$f":"+QUESTIONNAIRE!A318","v":0},{"$f":"+QUESTIONNAIRE!B318","v":0},{"$f":"+QUESTIONNAIRE!C318","v":0},{"$f":"+QUESTIONNAIRE!D318","v":0},{"$f":"+QUESTIONNAIRE!E318","v":0},null,null,null,306]
[{"$f":"+QUESTIONNAIRE!A319","v":0},{"$f":"+QUESTIONNAIRE!B319","v":0},{"$f":"+QUESTIONNAIRE!C319","v":0},{"$f":"+QUESTIONNAIRE!D319","v":0},{"$f":"+QUESTIONNAIRE!E319","v":0},null,null,null,307]
[{"$f":"+QUESTIONNAIRE!A320","v":0},{"$f":"+QUESTIONNAIRE!B320","v":"Procjena JPP opcije u odnosu na alternativne opcije isporuke projekta"},{"$f":"+QUESTIONNAIRE!C320","v":0},{"$f":"+QUESTIONNAIRE!D320","v":0},{"$f":"+QUESTIONNAIRE!E320","v":0},null,null,null,308]
[{"$f":"+QUESTIONNAIRE!A321","v":0},{"$f":"+QUESTIONNAIRE!B321","v":0},{"$f":"+QUESTIONNAIRE!C321","v":0},{"$f":"+QUESTIONNAIRE!D321","v":0},{"$f":"+QUESTIONNAIRE!E321","v":0},null,null,null,309]
[{"$f":"+QUESTIONNAIRE!A322","v":0},{"$f":"+QUESTIONNAIRE!B322","v":0},{"$f":"+QUESTIONNAIRE!C322","v":0},{"$f":"+QUESTIONNAIRE!D322","v":0},{"$f":"+QUESTIONNAIRE!E322","v":0},null,null,null,310]
[{"$f":"+QUESTIONNAIRE!A323","v":0},{"$f":"+QUESTIONNAIRE!B323","v":0},{"$f":"+QUESTIONNAIRE!C323","v":0},{"$f":"+QUESTIONNAIRE!D323","v":0},{"$f":"+QUESTIONNAIRE!E323","v":0},null,null,null,311]
[{"$f":"+QUESTIONNAIRE!A324","v":0},{"$f":"+QUESTIONNAIRE!B324","v":0},{"$f":"+QUESTIONNAIRE!C324","v":"Da li je JPP opcija bila uspoređena s alternativnim privatnim i javnim opcijama isporuke projekta?"},{"$f":"+QUESTIONNAIRE!D324","v":0},{"$f":"+QUESTIONNAIRE!E324","v":0},{"$f":"+HLOOKUP($D$6,$J$13:$S$488,I324,FALSE)","v":"--Molimo odaberite--"},null,null,312,"--Molimo odaberite--","DA","--Molimo odaberite--","NE"]
[{"$f":"+QUESTIONNAIRE!A325","v":0},{"$f":"+QUESTIONNAIRE!B325","v":0},{"$f":"+QUESTIONNAIRE!C325","v":"Ako DA:"},{"$f":"+QUESTIONNAIRE!D325","v":0},{"$f":"+QUESTIONNAIRE!E325","v":0},null,null,null,313]
[{"$f":"+QUESTIONNAIRE!A326","v":0},{"$f":"+QUESTIONNAIRE!B326","v":0},{"$f":"+QUESTIONNAIRE!C326","v":0},{"$f":"+QUESTIONNAIRE!D326","v":"Postoji li propisana metodologija za takvu usporedbu? "},{"$f":"+QUESTIONNAIRE!E326","v":0},{"$f":"+HLOOKUP($D$6,$J$13:$S$488,I326,FALSE)","v":"--Molimo odaberite--"},null,null,314,"--Molimo odaberite--","DA","--Molimo odaberite--","DA"]
[{"$f":"+QUESTIONNAIRE!A327","v":0},{"$f":"+QUESTIONNAIRE!B327","v":0},{"$f":"+QUESTIONNAIRE!C327","v":0},{"$f":"+QUESTIONNAIRE!D327","v":0},{"$f":"+QUESTIONNAIRE!E327","v":0},null,null,null,315]
[{"$f":"+QUESTIONNAIRE!A328","v":0},{"$f":"+QUESTIONNAIRE!B328","v":0},{"$f":"+QUESTIONNAIRE!C328","v":0},{"$f":"+QUESTIONNAIRE!D328","v":0},{"$f":"+QUESTIONNAIRE!E328","v":"Ako DA, je li ta metodologija bila primijenjena?"},{"$f":"+HLOOKUP($D$6,$J$13:$S$488,I328,FALSE)","v":"--Molimo odaberite--"},null,null,316,"--Molimo odaberite--","DA","--Molimo odaberite--","DA"]
[{"$f":"+QUESTIONNAIRE!A329","v":0},{"$f":"+QUESTIONNAIRE!B329","v":0},{"$f":"+QUESTIONNAIRE!C329","v":0},{"$f":"+QUESTIONNAIRE!D329","v":0},{"$f":"+QUESTIONNAIRE!E329","v":0},null,null,null,317]
[{"$f":"+QUESTIONNAIRE!A330","v":0},{"$f":"+QUESTIONNAIRE!B330","v":0},{"$f":"+QUESTIONNAIRE!C330","v":0},{"$f":"+QUESTIONNAIRE!D330","v":"Da li je procjena uključila uspoređivanje sveukupnih dugoročnih troškova različitih opcija isporuke projekta sličnog opsega i zahtjeva za uslugom?"},{"$f":"+QUESTIONNAIRE!E330","v":0},{"$f":"+HLOOKUP($D$6,$J$13:$S$488,I330,FALSE)","v":"--Molimo odaberite--"},null,null,318,"--Molimo odaberite--","DA","--Molimo odaberite--","DA"]
[{"$f":"+QUESTIONNAIRE!A331","v":0},{"$f":"+QUESTIONNAIRE!B331","v":0},{"$f":"+QUESTIONNAIRE!C331","v":0},{"$f":"+QUESTIONNAIRE!D331","v":0},{"$f":"+QUESTIONNAIRE!E331","v":0},null,null,null,319]
[{"$f":"+QUESTIONNAIRE!A332","v":0},{"$f":"+QUESTIONNAIRE!B332","v":0},{"$f":"+QUESTIONNAIRE!C332","v":0},{"$f":"+QUESTIONNAIRE!D332","v":"Da li je ta procjena ocijenila vrijednost utjecaja rizika povezanih sa svakom od opcija isporuke projekta?"},{"$f":"+QUESTIONNAIRE!E332","v":0},{"$f":"+HLOOKUP($D$6,$J$13:$S$488,I332,FALSE)","v":"--Molimo odaberite--"},null,null,320,"--Molimo odaberite--","DA","--Molimo odaberite--","DA"]
[{"$f":"+QUESTIONNAIRE!A333","v":0},{"$f":"+QUESTIONNAIRE!B333","v":0},{"$f":"+QUESTIONNAIRE!C333","v":0},{"$f":"+QUESTIONNAIRE!D333","v":0},{"$f":"+QUESTIONNAIRE!E333","v":0},null,null,null,321]
[{"$f":"+QUESTIONNAIRE!A334","v":0},{"$f":"+QUESTIONNAIRE!B334","v":0},{"$f":"+QUESTIONNAIRE!C334","v":0},{"$f":"+QUESTIONNAIRE!D334","v":"Da li je ta procjena uzela u obzir kvalitativne faktore za svaku opciju isporuke projekta, kao što su prostor za fleksibilnost, mogućnosti za inovacije, upravljačke i organizacijske posljedice za javno tijelo, raniji početak usluge?"},{"$f":"+QUESTIONNAIRE!E334","v":0},{"$f":"+HLOOKUP($D$6,$J$13:$S$488,I334,FALSE)","v":"--Molimo odaberite--"},null,null,322,"--Molimo odaberite--","DA","--Molimo odaberite--","DA"]
[{"$f":"+QUESTIONNAIRE!A335","v":0},{"$f":"+QUESTIONNAIRE!B335","v":0},{"$f":"+QUESTIONNAIRE!C335","v":0},{"$f":"+QUESTIONNAIRE!D335","v":0},{"$f":"+QUESTIONNAIRE!E335","v":0},null,null,null,{"$f":"+I334+1","v":323}]
[{"$f":"+QUESTIONNAIRE!A336","v":0},{"$f":"+QUESTIONNAIRE!B336","v":0},{"$f":"+QUESTIONNAIRE!C336","v":0},{"$f":"+QUESTIONNAIRE!D336","v":"Da li je ta procjena bila utemeljena na podacima dostupnim iz ranijih projekata?"},{"$f":"+QUESTIONNAIRE!E336","v":0},{"$f":"+HLOOKUP($D$6,$J$13:$S$488,I336,FALSE)","v":"--Molimo odaberite--"},null,null,324,"--Molimo odaberite--","DA","--Molimo odaberite--","DA"]
[{"$f":"+QUESTIONNAIRE!A337","v":0},{"$f":"+QUESTIONNAIRE!B337","v":0},{"$f":"+QUESTIONNAIRE!C337","v":0},{"$f":"+QUESTIONNAIRE!D337","v":0},{"$f":"+QUESTIONNAIRE!E337","v":0},null,null,null,325]
[{"$f":"+QUESTIONNAIRE!A338","v":0},{"$f":"+QUESTIONNAIRE!B338","v":"∞ "},{"$f":"+QUESTIONNAIRE!C338","v":0},{"$f":"+QUESTIONNAIRE!D338","v":"Da li je procjena uključila razinu konkurencije na tržištu za svaku od opcija isporuke projekta? (pogledajte Provođenje ispitivanja tržišta i analize bankabilnosti)"},{"$f":"+QUESTIONNAIRE!E338","v":0},{"$f":"+HLOOKUP($D$6,$J$13:$S$488,I338,FALSE)","v":"--Molimo odaberite--"},null,null,326,"--Molimo odaberite--","DA","--Molimo odaberite--","DA"]
[{"$f":"+QUESTIONNAIRE!A339","v":0},{"$f":"+QUESTIONNAIRE!B339","v":0},{"$f":"+QUESTIONNAIRE!C339","v":0},{"$f":"+QUESTIONNAIRE!D339","v":0},{"$f":"+QUESTIONNAIRE!E339","v":0},null,null,null,327]
[{"$f":"+QUESTIONNAIRE!A340","v":0},{"$f":"+QUESTIONNAIRE!B340","v":"∞ "},{"$f":"+QUESTIONNAIRE!C340","v":0},{"$f":"+QUESTIONNAIRE!D340","v":"Jesu li procijenjeni kapacitet i ljudski resursi projektnog tima da upravlja svakom opcijom isporuke projekta? (pogledajte Osnivanje i struktura projektnog tima)"},{"$f":"+QUESTIONNAIRE!E340","v":0},{"$f":"+HLOOKUP($D$6,$J$13:$S$488,I340,FALSE)","v":"--Molimo odaberite--"},null,null,328,"--Molimo odaberite--","DA","--Molimo odaberite--","DA"]
[{"$f":"+QUESTIONNAIRE!A341","v":0},{"$f":"+QUESTIONNAIRE!B341","v":0},{"$f":"+QUESTIONNAIRE!C341","v":0},{"$f":"+QUESTIONNAIRE!D341","v":0},{"$f":"+QUESTIONNAIRE!E341","v":0},null,null,null,329]
[{"$f":"+QUESTIONNAIRE!A342","v":0},{"$f":"+QUESTIONNAIRE!B342","v":"∞ "},{"$f":"+QUESTIONNAIRE!C342","v":0},{"$f":"+QUESTIONNAIRE!D342","v":"Da li je procijenjen raspored aktivnosti za svaku opciju isporuke projekta s obzirom na vrijeme potrebno za početak pružanja usluge?  (pogledajte Razvoj plana i rasporeda aktivnosti)"},{"$f":"+QUESTIONNAIRE!E342","v":0},{"$f":"+HLOOKUP($D$6,$J$13:$S$488,I342,FALSE)","v":"--Molimo odaberite--"},null,null,330,"--Molimo odaberite--","DA","--Molimo odaberite--","DA"]
[{"$f":"+QUESTIONNAIRE!A343","v":0},{"$f":"+QUESTIONNAIRE!B343","v":0},{"$f":"+QUESTIONNAIRE!C343","v":0},{"$f":"+QUESTIONNAIRE!D343","v":0},{"$f":"+QUESTIONNAIRE!E343","v":0},null,null,null,331]
[{"$f":"+QUESTIONNAIRE!A344","v":0},{"$f":"+QUESTIONNAIRE!B344","v":0},{"$f":"+QUESTIONNAIRE!C344","v":0},{"$f":"+QUESTIONNAIRE!D344","v":0},{"$f":"+QUESTIONNAIRE!E344","v":0},null,null,null,332]
[{"$f":"+QUESTIONNAIRE!A345","v":0},{"$f":"+QUESTIONNAIRE!B345","v":"Kreiranje proračuna, računovodstveni i statistički tretman"},{"$f":"+QUESTIONNAIRE!C345","v":0},{"$f":"+QUESTIONNAIRE!D345","v":0},{"$f":"+QUESTIONNAIRE!E345","v":0},null,null,null,333]
[{"$f":"+QUESTIONNAIRE!A346","v":0},{"$f":"+QUESTIONNAIRE!B346","v":0},{"$f":"+QUESTIONNAIRE!C346","v":0},{"$f":"+QUESTIONNAIRE!D346","v":0},{"$f":"+QUESTIONNAIRE!E346","v":0},null,null,null,334]
[{"$f":"+QUESTIONNAIRE!A347","v":0},{"$f":"+QUESTIONNAIRE!B347","v":0},{"$f":"+QUESTIONNAIRE!C347","v":0},{"$f":"+QUESTIONNAIRE!D347","v":0},{"$f":"+QUESTIONNAIRE!E347","v":0},null,null,null,335]
[{"$f":"+QUESTIONNAIRE!A348","v":0},{"$f":"+QUESTIONNAIRE!B348","v":0},{"$f":"+QUESTIONNAIRE!C348","v":0},{"$f":"+QUESTIONNAIRE!D348","v":0},{"$f":"+QUESTIONNAIRE!E348","v":0},null,null,null,336]
[{"$f":"+QUESTIONNAIRE!A349","v":0},{"$f":"+QUESTIONNAIRE!B349","v":0},{"$f":"+QUESTIONNAIRE!C349","v":"Da li je provedena procjena utjecaja projekta na proračun javnog tijela u skladu s internim proračunskim pravilima javnog tijela?"},{"$f":"+QUESTIONNAIRE!D349","v":0},{"$f":"+QUESTIONNAIRE!E349","v":0},{"$f":"+HLOOKUP($D$6,$J$13:$S$488,I349,FALSE)","v":"--Molimo odaberite--"},null,null,337,"--Molimo odaberite--","DA","--Molimo odaberite--","NE"]
[{"$f":"+QUESTIONNAIRE!A350","v":0},{"$f":"+QUESTIONNAIRE!B350","v":0},{"$f":"+QUESTIONNAIRE!C350","v":0},{"$f":"+QUESTIONNAIRE!D350","v":0},{"$f":"+QUESTIONNAIRE!E350","v":0},null,null,null,338]
[{"$f":"+QUESTIONNAIRE!A351","v":0},{"$f":"+QUESTIONNAIRE!B351","v":0},{"$f":"+QUESTIONNAIRE!C351","v":"Da li je provedena analiza vjerojatnog računovodstvenog tretmana projekta u financijskim izvještajima javnog tijela?"},{"$f":"+QUESTIONNAIRE!D351","v":0},{"$f":"+QUESTIONNAIRE!E351","v":0},{"$f":"+HLOOKUP($D$6,$J$13:$S$488,I351,FALSE)","v":"--Molimo odaberite--"},null,null,339,"--Molimo odaberite--","DA","--Molimo odaberite--","NE"]
[{"$f":"+QUESTIONNAIRE!A352","v":0},{"$f":"+QUESTIONNAIRE!B352","v":0},{"$f":"+QUESTIONNAIRE!C352","v":0},{"$f":"+QUESTIONNAIRE!D352","v":0},{"$f":"+QUESTIONNAIRE!E352","v":0},null,null,null,340]
[{"$f":"+QUESTIONNAIRE!A353","v":0},{"$f":"+QUESTIONNAIRE!B353","v":0},{"$f":"+QUESTIONNAIRE!C353","v":"Da li je država dužna podnositi izvještaj Eurostat-u u skladu s Europskim računovodstvenim sustavom?"},{"$f":"+QUESTIONNAIRE!D353","v":0},{"$f":"+QUESTIONNAIRE!E353","v":0},{"$f":"+HLOOKUP($D$6,$J$13:$S$488,I353,FALSE)","v":"--Molimo odaberite--"},null,null,341,"--Molimo odaberite--","DA","--Molimo odaberite--","NE"]
[{"$f":"+QUESTIONNAIRE!A354","v":0},{"$f":"+QUESTIONNAIRE!B354","v":0},{"$f":"+QUESTIONNAIRE!C354","v":0},{"$f":"+QUESTIONNAIRE!D354","v":0},{"$f":"+QUESTIONNAIRE!E354","v":0},null,null,null,342]
[{"$f":"+QUESTIONNAIRE!A355","v":0},{"$f":"+QUESTIONNAIRE!B355","v":0},{"$f":"+QUESTIONNAIRE!C355","v":0},{"$f":"+QUESTIONNAIRE!D355","v":"Ako DA, je li provedena analiza vjerojatnog statističkog tretmana projekta (u skladu s Eurostatovim pravilima za JPP i koncesije)?"},{"$f":"+QUESTIONNAIRE!E355","v":0},{"$f":"+HLOOKUP($D$6,$J$13:$S$488,I355,FALSE)","v":"--Molimo odaberite--"},null,null,343,"--Molimo odaberite--","DA","--Molimo odaberite--","NE"]
[{"$f":"+QUESTIONNAIRE!A356","v":0},{"$f":"+QUESTIONNAIRE!B356","v":0},{"$f":"+QUESTIONNAIRE!C356","v":0},{"$f":"+QUESTIONNAIRE!D356","v":0},{"$f":"+QUESTIONNAIRE!E356","v":0},null,null,null,344]
[{"$f":"+QUESTIONNAIRE!A357","v":0},{"$f":"+QUESTIONNAIRE!B357","v":"∞ "},{"$f":"+QUESTIONNAIRE!C357","v":0},{"$f":"+QUESTIONNAIRE!D357","v":"Ako DA, je li ta analiza provedena uz podršku konzultanata ili nacionalnog statističkog ureda? (pogledajte Osnivanje i struktura projektnog tima)"},{"$f":"+QUESTIONNAIRE!E357","v":0},{"$f":"+HLOOKUP($D$6,$J$13:$S$488,I357,FALSE)","v":"--Molimo odaberite--"},null,null,345,"--Molimo odaberite--","DA","--Molimo odaberite--","NE"]
[{"$f":"+QUESTIONNAIRE!A358","v":0},{"$f":"+QUESTIONNAIRE!B358","v":0},{"$f":"+QUESTIONNAIRE!C358","v":0},{"$f":"+QUESTIONNAIRE!D358","v":0},{"$f":"+QUESTIONNAIRE!E358","v":0},null,null,null,346]
[{"$f":"+QUESTIONNAIRE!A359","v":0},{"$f":"+QUESTIONNAIRE!B359","v":0},{"$f":"+QUESTIONNAIRE!C359","v":0},{"$f":"+QUESTIONNAIRE!D359","v":0},{"$f":"+QUESTIONNAIRE!E359","v":0},null,null,null,347]
[{"$f":"+QUESTIONNAIRE!A360","v":0},{"$f":"+QUESTIONNAIRE!B360","v":0},{"$f":"+QUESTIONNAIRE!C360","v":0},{"$f":"+QUESTIONNAIRE!D360","v":0},{"$f":"+QUESTIONNAIRE!E360","v":0},null,null,null,348]
[{"$f":"+QUESTIONNAIRE!A361","v":0},{"$f":"+QUESTIONNAIRE!B361","v":"Priprema za nabavu"},{"$f":"+QUESTIONNAIRE!C361","v":0},{"$f":"+QUESTIONNAIRE!D361","v":0},{"$f":"+QUESTIONNAIRE!E361","v":0},null,null,null,349]
[{"$f":"+QUESTIONNAIRE!A362","v":0},{"$f":"+QUESTIONNAIRE!B362","v":0},{"$f":"+QUESTIONNAIRE!C362","v":0},{"$f":"+QUESTIONNAIRE!D362","v":0},{"$f":"+QUESTIONNAIRE!E362","v":0},null,null,null,350]
[{"$f":"+QUESTIONNAIRE!A363","v":0},{"$f":"+QUESTIONNAIRE!B363","v":0},{"$f":"+QUESTIONNAIRE!C363","v":0},{"$f":"+QUESTIONNAIRE!D363","v":0},{"$f":"+QUESTIONNAIRE!E363","v":0},null,null,null,351]
[{"$f":"+QUESTIONNAIRE!A364","v":0},{"$f":"+QUESTIONNAIRE!B364","v":"Odabiranje oblika nabave"},{"$f":"+QUESTIONNAIRE!C364","v":0},{"$f":"+QUESTIONNAIRE!D364","v":0},{"$f":"+QUESTIONNAIRE!E364","v":0},null,null,null,352]
[{"$f":"+QUESTIONNAIRE!A365","v":0},{"$f":"+QUESTIONNAIRE!B365","v":0},{"$f":"+QUESTIONNAIRE!C365","v":0},{"$f":"+QUESTIONNAIRE!D365","v":0},{"$f":"+QUESTIONNAIRE!E365","v":0},null,null,null,353]
[{"$f":"+QUESTIONNAIRE!A366","v":0},{"$f":"+QUESTIONNAIRE!B366","v":0},{"$f":"+QUESTIONNAIRE!C366","v":0},{"$f":"+QUESTIONNAIRE!D366","v":0},{"$f":"+QUESTIONNAIRE!E366","v":0},null,null,null,354]
[{"$f":"+QUESTIONNAIRE!A367","v":0},{"$f":"+QUESTIONNAIRE!B367","v":0},{"$f":"+QUESTIONNAIRE!C367","v":0},{"$f":"+QUESTIONNAIRE!D367","v":0},{"$f":"+QUESTIONNAIRE!E367","v":0},null,null,null,355]
[{"$f":"+QUESTIONNAIRE!A368","v":0},{"$f":"+QUESTIONNAIRE!B368","v":0},{"$f":"+QUESTIONNAIRE!C368","v":"Je li provedena analiza da bi se odabrao najprikladniji oblik nabave (npr. natjecateljski dijalog, pregovarački postupak) za projekt?"},{"$f":"+QUESTIONNAIRE!D368","v":0},{"$f":"+QUESTIONNAIRE!E368","v":0},{"$f":"+HLOOKUP($D$6,$J$13:$S$488,I368,FALSE)","v":"--Molimo odaberite--"},null,null,356,"--Molimo odaberite--","DA","--Molimo odaberite--","NE"]
[{"$f":"+QUESTIONNAIRE!A369","v":0},{"$f":"+QUESTIONNAIRE!B369","v":0},{"$f":"+QUESTIONNAIRE!C369","v":"Ako DA:"},{"$f":"+QUESTIONNAIRE!D369","v":0},{"$f":"+QUESTIONNAIRE!E369","v":0},null,null,null,357]
[{"$f":"+QUESTIONNAIRE!A370","v":0},{"$f":"+QUESTIONNAIRE!B370","v":0},{"$f":"+QUESTIONNAIRE!C370","v":0},{"$f":"+QUESTIONNAIRE!D370","v":"Da li je ta analiza uzela u obzir zahtjeve nadležnog zakonodavstva (npr. nacionalno zakonodavstvo za javnu nabavu)?"},{"$f":"+QUESTIONNAIRE!E370","v":0},{"$f":"+HLOOKUP($D$6,$J$13:$S$488,I370,FALSE)","v":"--Molimo odaberite--"},null,null,358,"--Molimo odaberite--","DA","--Molimo odaberite--","NE"]
[{"$f":"+QUESTIONNAIRE!A371","v":0},{"$f":"+QUESTIONNAIRE!B371","v":0},{"$f":"+QUESTIONNAIRE!C371","v":0},{"$f":"+QUESTIONNAIRE!D371","v":0},{"$f":"+QUESTIONNAIRE!E371","v":0},null,null,null,359]
[{"$f":"+QUESTIONNAIRE!A372","v":0},{"$f":"+QUESTIONNAIRE!B372","v":0},{"$f":"+QUESTIONNAIRE!C372","v":0},{"$f":"+QUESTIONNAIRE!D372","v":"Da li je ta analiza uzela u obzir karakteristike projekta (npr. složenost, veličinu) kao i volju i kapacitet javnog tijela da preddefinira tehnička i ugovorna rješenja?"},{"$f":"+QUESTIONNAIRE!E372","v":0},{"$f":"+HLOOKUP($D$6,$J$13:$S$488,I372,FALSE)","v":"--Molimo odaberite--"},null,null,360,"--Molimo odaberite--","DA","--Molimo odaberite--","NE"]
[{"$f":"+QUESTIONNAIRE!A373","v":0},{"$f":"+QUESTIONNAIRE!B373","v":0},{"$f":"+QUESTIONNAIRE!C373","v":0},{"$f":"+QUESTIONNAIRE!D373","v":0},{"$f":"+QUESTIONNAIRE!E373","v":0},null,null,null,361]
[{"$f":"+QUESTIONNAIRE!A374","v":0},{"$f":"+QUESTIONNAIRE!B374","v":"∞ "},{"$f":"+QUESTIONNAIRE!C374","v":0},{"$f":"+QUESTIONNAIRE!D374","v":"Da li je ta analiza uzela u obzir kapacitet javnog tijela da vodi odabrani oblik nabave (pogledajte Osnivanje i struktura projektnog tima)?"},{"$f":"+QUESTIONNAIRE!E374","v":0},{"$f":"+HLOOKUP($D$6,$J$13:$S$488,I374,FALSE)","v":"--Molimo odaberite--"},null,null,362,"--Molimo odaberite--","DA","--Molimo odaberite--","NE"]
[{"$f":"+QUESTIONNAIRE!A375","v":0},{"$f":"+QUESTIONNAIRE!B375","v":0},{"$f":"+QUESTIONNAIRE!C375","v":0},{"$f":"+QUESTIONNAIRE!D375","v":0},{"$f":"+QUESTIONNAIRE!E375","v":0},null,null,null,363]
[{"$f":"+QUESTIONNAIRE!A376","v":0},{"$f":"+QUESTIONNAIRE!B376","v":0},{"$f":"+QUESTIONNAIRE!C376","v":0},{"$f":"+QUESTIONNAIRE!D376","v":0},{"$f":"+QUESTIONNAIRE!E376","v":0},null,null,null,364]
[{"$f":"+QUESTIONNAIRE!A377","v":0},{"$f":"+QUESTIONNAIRE!B377","v":"Definiranje postupka nabave"},{"$f":"+QUESTIONNAIRE!C377","v":0},{"$f":"+QUESTIONNAIRE!D377","v":0},{"$f":"+QUESTIONNAIRE!E377","v":0},null,null,null,365]
[{"$f":"+QUESTIONNAIRE!A378","v":0},{"$f":"+QUESTIONNAIRE!B378","v":0},{"$f":"+QUESTIONNAIRE!C378","v":0},{"$f":"+QUESTIONNAIRE!D378","v":0},{"$f":"+QUESTIONNAIRE!E378","v":0},null,null,null,366]
[{"$f":"+QUESTIONNAIRE!A379","v":0},{"$f":"+QUESTIONNAIRE!B379","v":0},{"$f":"+QUESTIONNAIRE!C379","v":0},{"$f":"+QUESTIONNAIRE!D379","v":0},{"$f":"+QUESTIONNAIRE!E379","v":0},null,null,null,367]
[{"$f":"+QUESTIONNAIRE!A380","v":0},{"$f":"+QUESTIONNAIRE!B380","v":0},{"$f":"+QUESTIONNAIRE!C380","v":0},{"$f":"+QUESTIONNAIRE!D380","v":0},{"$f":"+QUESTIONNAIRE!E380","v":0},null,null,null,368]
[{"$f":"+QUESTIONNAIRE!A381","v":0},{"$f":"+QUESTIONNAIRE!B381","v":0},{"$f":"+QUESTIONNAIRE!C381","v":"Je li provedena analiza da bi se definirali kriteriji za pretkvalifikaciju koji će biti korišteni u izboru potencijalnih ponuditelja?"},{"$f":"+QUESTIONNAIRE!D381","v":0},{"$f":"+QUESTIONNAIRE!E381","v":0},{"$f":"+HLOOKUP($D$6,$J$13:$S$488,I381,FALSE)","v":"--Molimo odaberite--"},null,null,369,"--Molimo odaberite--","DA","--Molimo odaberite--","NE"]
[{"$f":"+QUESTIONNAIRE!A382","v":0},{"$f":"+QUESTIONNAIRE!B382","v":0},{"$f":"+QUESTIONNAIRE!C382","v":"Ako DA:"},{"$f":"+QUESTIONNAIRE!D382","v":0},{"$f":"+QUESTIONNAIRE!E382","v":0},null,null,null,370]
[{"$f":"+QUESTIONNAIRE!A383","v":0},{"$f":"+QUESTIONNAIRE!B383","v":0},{"$f":"+QUESTIONNAIRE!C383","v":0},{"$f":"+QUESTIONNAIRE!D383","v":"Ja li ta analiza uzela u obzir kako će se ocjenjivati tehnički, financijski i pravni kapaciteti potencijalnih ponuditelja?"},{"$f":"+QUESTIONNAIRE!E383","v":0},{"$f":"+HLOOKUP($D$6,$J$13:$S$488,I383,FALSE)","v":"--Molimo odaberite--"},null,null,371,"--Molimo odaberite--","DA","--Molimo odaberite--","NE"]
[{"$f":"+QUESTIONNAIRE!A384","v":0},{"$f":"+QUESTIONNAIRE!B384","v":0},{"$f":"+QUESTIONNAIRE!C384","v":0},{"$f":"+QUESTIONNAIRE!D384","v":0},{"$f":"+QUESTIONNAIRE!E384","v":0},null,null,null,372]
[{"$f":"+QUESTIONNAIRE!A385","v":0},{"$f":"+QUESTIONNAIRE!B385","v":0},{"$f":"+QUESTIONNAIRE!C385","v":0},{"$f":"+QUESTIONNAIRE!D385","v":"Da li je pripremljen pretkvalifikacijski upitnik koji opisuje informacije koje moraju pružiti potencijalni ponuditelji?"},{"$f":"+QUESTIONNAIRE!E385","v":0},{"$f":"+HLOOKUP($D$6,$J$13:$S$488,I385,FALSE)","v":"--Molimo odaberite--"},null,null,373,"--Molimo odaberite--","DA","--Molimo odaberite--","NE"]
[{"$f":"+QUESTIONNAIRE!A386","v":0},{"$f":"+QUESTIONNAIRE!B386","v":0},{"$f":"+QUESTIONNAIRE!C386","v":0},{"$f":"+QUESTIONNAIRE!D386","v":0},{"$f":"+QUESTIONNAIRE!E386","v":0},null,null,null,374]
[{"$f":"+QUESTIONNAIRE!A387","v":0},{"$f":"+QUESTIONNAIRE!B387","v":0},{"$f":"+QUESTIONNAIRE!C387","v":0},{"$f":"+QUESTIONNAIRE!D387","v":"Da li je ta analiza uzela u obzir maksimalni broj potencijalnih ponuditelja koji mogu biti pretkvalificirani?"},{"$f":"+QUESTIONNAIRE!E387","v":0},{"$f":"+HLOOKUP($D$6,$J$13:$S$488,I387,FALSE)","v":"--Molimo odaberite--"},null,null,375,"--Molimo odaberite--","DA","--Molimo odaberite--","NE"]
[{"$f":"+QUESTIONNAIRE!A388","v":0},{"$f":"+QUESTIONNAIRE!B388","v":0},{"$f":"+QUESTIONNAIRE!C388","v":0},{"$f":"+QUESTIONNAIRE!D388","v":0},{"$f":"+QUESTIONNAIRE!E388","v":0},null,null,null,376]
[{"$f":"+QUESTIONNAIRE!A389","v":0},{"$f":"+QUESTIONNAIRE!B389","v":0},{"$f":"+QUESTIONNAIRE!C389","v":"Je li provedena analiza da bi se definirao odabir kriterija za ocjenjivanje ponuda?"},{"$f":"+QUESTIONNAIRE!D389","v":0},{"$f":"+QUESTIONNAIRE!E389","v":0},{"$f":"+HLOOKUP($D$6,$J$13:$S$488,I389,FALSE)","v":"--Molimo odaberite--"},null,null,377,"--Molimo odaberite--","DA","--Molimo odaberite--","NE"]
[{"$f":"+QUESTIONNAIRE!A390","v":0},{"$f":"+QUESTIONNAIRE!B390","v":0},{"$f":"+QUESTIONNAIRE!C390","v":"Ako DA:"},{"$f":"+QUESTIONNAIRE!D390","v":0},{"$f":"+QUESTIONNAIRE!E390","v":0},null,null,null,378]
[{"$f":"+QUESTIONNAIRE!A391","v":0},{"$f":"+QUESTIONNAIRE!B391","v":0},{"$f":"+QUESTIONNAIRE!C391","v":0},{"$f":"+QUESTIONNAIRE!D391","v":"Da li je ta analiza uzela u obzir tehničke, financijske i pravne aspekte kao područja za ocjenjivanje?"},{"$f":"+QUESTIONNAIRE!E391","v":0},{"$f":"+HLOOKUP($D$6,$J$13:$S$488,I391,FALSE)","v":"--Molimo odaberite--"},null,null,379,"--Molimo odaberite--","DA","--Molimo odaberite--","NE"]
[{"$f":"+QUESTIONNAIRE!A392","v":0},{"$f":"+QUESTIONNAIRE!B392","v":0},{"$f":"+QUESTIONNAIRE!C392","v":0},{"$f":"+QUESTIONNAIRE!D392","v":0},{"$f":"+QUESTIONNAIRE!E392","v":0},null,null,null,380]
[{"$f":"+QUESTIONNAIRE!A393","v":0},{"$f":"+QUESTIONNAIRE!B393","v":0},{"$f":"+QUESTIONNAIRE!C393","v":0},{"$f":"+QUESTIONNAIRE!D393","v":"Da li je ta analiza identificirala sustav bodovanja i ponderiranja za svaki od kriterija za ocjenjivanje?"},{"$f":"+QUESTIONNAIRE!E393","v":0},{"$f":"+HLOOKUP($D$6,$J$13:$S$488,I393,FALSE)","v":"--Molimo odaberite--"},null,null,381,"--Molimo odaberite--","DA","--Molimo odaberite--","NE"]
[{"$f":"+QUESTIONNAIRE!A394","v":0},{"$f":"+QUESTIONNAIRE!B394","v":0},{"$f":"+QUESTIONNAIRE!C394","v":0},{"$f":"+QUESTIONNAIRE!D394","v":0},{"$f":"+QUESTIONNAIRE!E394","v":0},null,null,null,382]
[{"$f":"+QUESTIONNAIRE!A395","v":0},{"$f":"+QUESTIONNAIRE!B395","v":0},{"$f":"+QUESTIONNAIRE!C395","v":0},{"$f":"+QUESTIONNAIRE!D395","v":"Jesu li kriteriji, bodovanje i ponderiranje provjereni da odražavaju prioritete javnog tijela (npr. funkcionalnost, cijenu, izgled)?"},{"$f":"+QUESTIONNAIRE!E395","v":0},{"$f":"+HLOOKUP($D$6,$J$13:$S$488,I395,FALSE)","v":"--Molimo odaberite--"},null,null,383,"--Molimo odaberite--","DA","--Molimo odaberite--","NE"]
[{"$f":"+QUESTIONNAIRE!A396","v":0},{"$f":"+QUESTIONNAIRE!B396","v":0},{"$f":"+QUESTIONNAIRE!C396","v":0},{"$f":"+QUESTIONNAIRE!D396","v":0},{"$f":"+QUESTIONNAIRE!E396","v":0},null,null,null,384]
[{"$f":"+QUESTIONNAIRE!A397","v":0},{"$f":"+QUESTIONNAIRE!B397","v":0},{"$f":"+QUESTIONNAIRE!C397","v":0},{"$f":"+QUESTIONNAIRE!D397","v":"Da li je stručno povjerenstvo (stručna komisija)/viši menadžment odobrilo kriterije za odabir?"},{"$f":"+QUESTIONNAIRE!E397","v":0},{"$f":"+HLOOKUP($D$6,$J$13:$S$488,I397,FALSE)","v":"--Molimo odaberite--"},null,null,385,"--Molimo odaberite--","DA","--Molimo odaberite--","NE"]
[{"$f":"+QUESTIONNAIRE!A398","v":0},{"$f":"+QUESTIONNAIRE!B398","v":0},{"$f":"+QUESTIONNAIRE!C398","v":0},{"$f":"+QUESTIONNAIRE!D398","v":0},{"$f":"+QUESTIONNAIRE!E398","v":0},null,null,null,386]
[{"$f":"+QUESTIONNAIRE!A399","v":0},{"$f":"+QUESTIONNAIRE!B399","v":0},{"$f":"+QUESTIONNAIRE!C399","v":"Je li osnovan tim za ocjenjivanje ponuda?"},null,null,{"$f":"+HLOOKUP($D$6,$J$13:$S$488,I399,FALSE)","v":"--Molimo odaberite--"},null,null,{"$f":"+I398+1","v":387},"--Molimo odaberite--","DA","--Molimo odaberite--","NE"]
[{"$f":"+QUESTIONNAIRE!A400","v":0},{"$f":"+QUESTIONNAIRE!B400","v":0},{"$f":"+QUESTIONNAIRE!C400","v":"Ako DA:"},{"$f":"+QUESTIONNAIRE!D400","v":0},{"$f":"+QUESTIONNAIRE!E400","v":0},null,null,null,388]
[{"$f":"+QUESTIONNAIRE!A401","v":0},{"$f":"+QUESTIONNAIRE!B401","v":0},{"$f":"+QUESTIONNAIRE!C401","v":0},{"$f":"+QUESTIONNAIRE!D401","v":"Jesu li članovi tima za ocjenjivanje ponuda identificirani uzimajući u obzir njihove sposobnosti?"},{"$f":"+QUESTIONNAIRE!E401","v":0},{"$f":"+HLOOKUP($D$6,$J$13:$S$488,I401,FALSE)","v":"--Molimo odaberite--"},null,null,389,"--Molimo odaberite--","DA","--Molimo odaberite--","NE"]
[{"$f":"+QUESTIONNAIRE!A402","v":0},{"$f":"+QUESTIONNAIRE!B402","v":0},{"$f":"+QUESTIONNAIRE!C402","v":0},{"$f":"+QUESTIONNAIRE!D402","v":0},{"$f":"+QUESTIONNAIRE!E402","v":0},null,null,null,390]
[{"$f":"+QUESTIONNAIRE!A403","v":0},{"$f":"+QUESTIONNAIRE!B403","v":0},{"$f":"+QUESTIONNAIRE!C403","v":0},{"$f":"+QUESTIONNAIRE!D403","v":"Jesu li imenovane osobe u timu koje će biti nadležne za ocjenjivanje svakog od kriterija?"},{"$f":"+QUESTIONNAIRE!E403","v":0},{"$f":"+HLOOKUP($D$6,$J$13:$S$488,I403,FALSE)","v":"--Molimo odaberite--"},null,null,391,"--Molimo odaberite--","DA","--Molimo odaberite--","NE"]
[{"$f":"+QUESTIONNAIRE!A404","v":0},{"$f":"+QUESTIONNAIRE!B404","v":0},{"$f":"+QUESTIONNAIRE!C404","v":0},{"$f":"+QUESTIONNAIRE!D404","v":0},{"$f":"+QUESTIONNAIRE!E404","v":0},null,null,null,392]
[{"$f":"+QUESTIONNAIRE!A405","v":0},{"$f":"+QUESTIONNAIRE!B405","v":0},{"$f":"+QUESTIONNAIRE!C405","v":0},{"$f":"+QUESTIONNAIRE!D405","v":"Jesu li prilikom osnivanja tima za ocjenjivanje ponuda riješena pitanja potencijalnog sukoba interesa?"},{"$f":"+QUESTIONNAIRE!E405","v":0},{"$f":"+HLOOKUP($D$6,$J$13:$S$488,I405,FALSE)","v":"--Molimo odaberite--"},null,null,393,"--Molimo odaberite--","DA","--Molimo odaberite--","NE"]
[{"$f":"+QUESTIONNAIRE!A406","v":0},{"$f":"+QUESTIONNAIRE!B406","v":0},{"$f":"+QUESTIONNAIRE!C406","v":0},{"$f":"+QUESTIONNAIRE!D406","v":0},{"$f":"+QUESTIONNAIRE!E406","v":0},null,null,null,394]
[{"$f":"+QUESTIONNAIRE!A407","v":0},{"$f":"+QUESTIONNAIRE!B407","v":0},{"$f":"+QUESTIONNAIRE!C407","v":0},{"$f":"+QUESTIONNAIRE!D407","v":"Jesu li uspostavljeni i odobreni proces upravljanja radom tima za ocjenjivanje ponuda i proces donošenja odluka?"},{"$f":"+QUESTIONNAIRE!E407","v":0},{"$f":"+HLOOKUP($D$6,$J$13:$S$488,I407,FALSE)","v":"--Molimo odaberite--"},null,null,395,"--Molimo odaberite--","DA","--Molimo odaberite--","NE"]
[{"$f":"+QUESTIONNAIRE!A408","v":0},{"$f":"+QUESTIONNAIRE!B408","v":0},{"$f":"+QUESTIONNAIRE!C408","v":0},{"$f":"+QUESTIONNAIRE!D408","v":0},{"$f":"+QUESTIONNAIRE!E408","v":0},null,null,null,396]
[{"$f":"+QUESTIONNAIRE!A409","v":0},{"$f":"+QUESTIONNAIRE!B409","v":0},{"$f":"+QUESTIONNAIRE!C409","v":"Jesu li plan za promociju projekta (npr.  turneja) i obavijest o nabavi pripremljeni uzimajući u obzir tehničke karakteristike i ugovorne odredbe projekta kako bi se povećao interes tržišta?"},{"$f":"+QUESTIONNAIRE!D409","v":0},{"$f":"+QUESTIONNAIRE!E409","v":0},{"$f":"+HLOOKUP($D$6,$J$13:$S$488,I409,FALSE)","v":"--Molimo odaberite--"},null,null,397,"--Molimo odaberite--","DA","--Molimo odaberite--","NE"]
[{"$f":"+QUESTIONNAIRE!A410","v":0},{"$f":"+QUESTIONNAIRE!B410","v":0},{"$f":"+QUESTIONNAIRE!C410","v":0},{"$f":"+QUESTIONNAIRE!D410","v":0},{"$f":"+QUESTIONNAIRE!E410","v":0},null,null,null,398]
[{"$f":"+QUESTIONNAIRE!A411","v":0},{"$f":"+QUESTIONNAIRE!B411","v":0},{"$f":"+QUESTIONNAIRE!C411","v":"Je li pripremljen nacrt dokumentacije koju sadrži poziv za nadmetanje?"},{"$f":"+QUESTIONNAIRE!D411","v":0},{"$f":"+QUESTIONNAIRE!E411","v":0},{"$f":"+HLOOKUP($D$6,$J$13:$S$488,I411,FALSE)","v":"--Molimo odaberite--"},null,null,399,"--Molimo odaberite--","DA","--Molimo odaberite--","NE"]
[{"$f":"+QUESTIONNAIRE!A412","v":0},{"$f":"+QUESTIONNAIRE!B412","v":0},{"$f":"+QUESTIONNAIRE!C412","v":"Ako DA:"},{"$f":"+QUESTIONNAIRE!D412","v":0},{"$f":"+QUESTIONNAIRE!E412","v":0},null,null,null,400]
[{"$f":"+QUESTIONNAIRE!A413","v":0},{"$f":"+QUESTIONNAIRE!B413","v":0},{"$f":"+QUESTIONNAIRE!C413","v":0},{"$f":"+QUESTIONNAIRE!D413","v":"Da li ta dokumentacija opisuje ključna pravila, korake i zahtjeve koji moraju biti zadovoljeni (npr. odredbe o povjerljivosti, rokovi i glavni elementi ključnih ugovora)?"},{"$f":"+QUESTIONNAIRE!E413","v":0},{"$f":"+HLOOKUP($D$6,$J$13:$S$488,I413,FALSE)","v":"--Molimo odaberite--"},null,null,401,"--Molimo odaberite--","DA","--Molimo odaberite--","NE"]
[{"$f":"+QUESTIONNAIRE!A414","v":0},{"$f":"+QUESTIONNAIRE!B414","v":0},{"$f":"+QUESTIONNAIRE!C414","v":0},{"$f":"+QUESTIONNAIRE!D414","v":0},{"$f":"+QUESTIONNAIRE!E414","v":0},null,null,null,402]
[{"$f":"+QUESTIONNAIRE!A415","v":0},{"$f":"+QUESTIONNAIRE!B415","v":0},{"$f":"+QUESTIONNAIRE!C415","v":0},{"$f":"+QUESTIONNAIRE!D415","v":"Da li ta dokumentacija pruža potencijalnim ponuditeljima dovoljno suštinskih informacija da im pomogne u razumijevanju karakteristika projekta i zahtjeva javnog tijela (npr. memorandum informacija o projektu, prostorija za dokumentaciju - \"document dataroom\")?"},{"$f":"+QUESTIONNAIRE!E415","v":0},{"$f":"+HLOOKUP($D$6,$J$13:$S$488,I415,FALSE)","v":"--Molimo odaberite--"},null,null,403,"--Molimo odaberite--","DA","--Molimo odaberite--","NE"]
[{"$f":"+QUESTIONNAIRE!A416","v":0},{"$f":"+QUESTIONNAIRE!B416","v":0},{"$f":"+QUESTIONNAIRE!C416","v":0},{"$f":"+QUESTIONNAIRE!D416","v":0},{"$f":"+QUESTIONNAIRE!E416","v":0},null,null,null,404]
[{"$f":"+QUESTIONNAIRE!A417","v":0},{"$f":"+QUESTIONNAIRE!B417","v":0},{"$f":"+QUESTIONNAIRE!C417","v":0},{"$f":"+QUESTIONNAIRE!D417","v":0},{"$f":"+QUESTIONNAIRE!E417","v":0},null,null,null,405]
[{"$f":"+QUESTIONNAIRE!A418","v":0},{"$f":"+QUESTIONNAIRE!B418","v":"Razvoj izlaznih specifikacija usluge i priprema nacrta ugovora o JPP"},{"$f":"+QUESTIONNAIRE!C418","v":0},{"$f":"+QUESTIONNAIRE!D418","v":0},{"$f":"+QUESTIONNAIRE!E418","v":0},null,null,null,406]
[{"$f":"+QUESTIONNAIRE!A419","v":0},{"$f":"+QUESTIONNAIRE!B419","v":0},{"$f":"+QUESTIONNAIRE!C419","v":0},{"$f":"+QUESTIONNAIRE!D419","v":0},{"$f":"+QUESTIONNAIRE!E419","v":0},null,null,null,407]
[{"$f":"+QUESTIONNAIRE!A420","v":0},{"$f":"+QUESTIONNAIRE!B420","v":0},{"$f":"+QUESTIONNAIRE!C420","v":0},{"$f":"+QUESTIONNAIRE!D420","v":0},{"$f":"+QUESTIONNAIRE!E420","v":0},null,null,null,408]
[{"$f":"+QUESTIONNAIRE!A421","v":0},{"$f":"+QUESTIONNAIRE!B421","v":0},{"$f":"+QUESTIONNAIRE!C421","v":0},{"$f":"+QUESTIONNAIRE!D421","v":0},{"$f":"+QUESTIONNAIRE!E421","v":0},null,null,null,409]
[{"$f":"+QUESTIONNAIRE!A422","v":0},{"$f":"+QUESTIONNAIRE!B422","v":0},{"$f":"+QUESTIONNAIRE!C422","v":"Jesu li razvijene izlazne specifikacije usluge i mehanizam plaćanja? "},{"$f":"+QUESTIONNAIRE!D422","v":0},{"$f":"+QUESTIONNAIRE!E422","v":0},{"$f":"+HLOOKUP($D$6,$J$13:$S$488,I422,FALSE)","v":"--Molimo odaberite--"},null,null,410,"--Molimo odaberite--","DA","--Molimo odaberite--","NE"]
[{"$f":"+QUESTIONNAIRE!A423","v":0},{"$f":"+QUESTIONNAIRE!B423","v":0},{"$f":"+QUESTIONNAIRE!C423","v":"Ako DA:"},{"$f":"+QUESTIONNAIRE!D423","v":0},{"$f":"+QUESTIONNAIRE!E423","v":0},null,null,null,411]
[{"$f":"+QUESTIONNAIRE!A424","v":0},{"$f":"+QUESTIONNAIRE!B424","v":0},{"$f":"+QUESTIONNAIRE!C424","v":0},{"$f":"+QUESTIONNAIRE!D424","v":"Jesu li izlazne specifikacije usluge provjerene da se osigura da one i dalje odražavaju potrebu za investicijom?"},{"$f":"+QUESTIONNAIRE!E424","v":0},{"$f":"+HLOOKUP($D$6,$J$13:$S$488,I424,FALSE)","v":"--Molimo odaberite--"},null,null,412,"--Molimo odaberite--","DA","--Molimo odaberite--","NE"]
[{"$f":"+QUESTIONNAIRE!A425","v":0},{"$f":"+QUESTIONNAIRE!B425","v":0},{"$f":"+QUESTIONNAIRE!C425","v":0},{"$f":"+QUESTIONNAIRE!D425","v":0},{"$f":"+QUESTIONNAIRE!E425","v":0},null,null,null,413]
[{"$f":"+QUESTIONNAIRE!A426","v":0},{"$f":"+QUESTIONNAIRE!B426","v":0},{"$f":"+QUESTIONNAIRE!C426","v":0},{"$f":"+QUESTIONNAIRE!D426","v":"Da li je mehanizam plaćanja dizajniran na način na pruži odgovarajuće poticaje privatnom partneru da ostvari izlazne specifikacije usluge?"},{"$f":"+QUESTIONNAIRE!E426","v":0},{"$f":"+HLOOKUP($D$6,$J$13:$S$488,I426,FALSE)","v":"--Molimo odaberite--"},null,null,414,"--Molimo odaberite--","DA","--Molimo odaberite--","NE"]
[{"$f":"+QUESTIONNAIRE!A427","v":0},{"$f":"+QUESTIONNAIRE!B427","v":0},{"$f":"+QUESTIONNAIRE!C427","v":0},{"$f":"+QUESTIONNAIRE!D427","v":0},{"$f":"+QUESTIONNAIRE!E427","v":0},null,null,null,415]
[{"$f":"+QUESTIONNAIRE!A428","v":0},{"$f":"+QUESTIONNAIRE!B428","v":0},{"$f":"+QUESTIONNAIRE!C428","v":0},{"$f":"+QUESTIONNAIRE!D428","v":"Je li procijenjen mehanizam plaćanja da bi bio u skladu s analizom priuštivosti, ispitivanjem tržišta i analizom bankabilnosti?"},{"$f":"+QUESTIONNAIRE!E428","v":0},{"$f":"+HLOOKUP($D$6,$J$13:$S$488,I428,FALSE)","v":"--Molimo odaberite--"},null,null,416,"--Molimo odaberite--","DA","--Molimo odaberite--","NE"]
[{"$f":"+QUESTIONNAIRE!A429","v":0},{"$f":"+QUESTIONNAIRE!B429","v":0},{"$f":"+QUESTIONNAIRE!C429","v":0},{"$f":"+QUESTIONNAIRE!D429","v":0},{"$f":"+QUESTIONNAIRE!E429","v":0},null,null,null,417]
[{"$f":"+QUESTIONNAIRE!A430","v":0},{"$f":"+QUESTIONNAIRE!B430","v":0},{"$f":"+QUESTIONNAIRE!C430","v":"Jesu li prilikom pripreme nacrta ugovora o JPP-u slijedeća pitanja uzeta u obzir:"},{"$f":"+QUESTIONNAIRE!D430","v":0},{"$f":"+QUESTIONNAIRE!E430","v":0},null,null,null,418]
[{"$f":"+QUESTIONNAIRE!A431","v":0},{"$f":"+QUESTIONNAIRE!B431","v":0},{"$f":"+QUESTIONNAIRE!C431","v":0},{"$f":"+QUESTIONNAIRE!D431","v":0},{"$f":"+QUESTIONNAIRE!E431","v":0},null,null,null,419]
[{"$f":"+QUESTIONNAIRE!A432","v":0},{"$f":"+QUESTIONNAIRE!B432","v":0},{"$f":"+QUESTIONNAIRE!C432","v":0},{"$f":"+QUESTIONNAIRE!D432","v":"Trajanje ugovora o JPP?"},{"$f":"+QUESTIONNAIRE!E432","v":0},{"$f":"+HLOOKUP($D$6,$J$13:$S$488,I432,FALSE)","v":"--Molimo odaberite--"},null,null,420,"--Molimo odaberite--","DA","--Molimo odaberite--","NE"]
[{"$f":"+QUESTIONNAIRE!A433","v":0},{"$f":"+QUESTIONNAIRE!B433","v":0},{"$f":"+QUESTIONNAIRE!C433","v":0},{"$f":"+QUESTIONNAIRE!D433","v":0},{"$f":"+QUESTIONNAIRE!E433","v":0},null,null,null,421]
[{"$f":"+QUESTIONNAIRE!A434","v":0},{"$f":"+QUESTIONNAIRE!B434","v":"∞ "},{"$f":"+QUESTIONNAIRE!C434","v":0},{"$f":"+QUESTIONNAIRE!D434","v":"Alokacija i podjela rizika? (pogledajte Razvoj analize rizika)"},{"$f":"+QUESTIONNAIRE!E434","v":0},{"$f":"+HLOOKUP($D$6,$J$13:$S$488,I434,FALSE)","v":"--Molimo odaberite--"},null,null,422,"--Molimo odaberite--","DA","--Molimo odaberite--","NE"]
[{"$f":"+QUESTIONNAIRE!A435","v":0},{"$f":"+QUESTIONNAIRE!B435","v":0},{"$f":"+QUESTIONNAIRE!C435","v":0},{"$f":"+QUESTIONNAIRE!D435","v":0},{"$f":"+QUESTIONNAIRE!E435","v":0},null,null,null,423]
[{"$f":"+QUESTIONNAIRE!A436","v":0},{"$f":"+QUESTIONNAIRE!B436","v":0},{"$f":"+QUESTIONNAIRE!C436","v":0},{"$f":"+QUESTIONNAIRE!D436","v":"Izlazne specifikacije usluge zadane od javnog tijela?"},{"$f":"+QUESTIONNAIRE!E436","v":0},{"$f":"+HLOOKUP($D$6,$J$13:$S$488,I436,FALSE)","v":"--Molimo odaberite--"},null,null,424,"--Molimo odaberite--","DA","--Molimo odaberite--","NE"]
[{"$f":"+QUESTIONNAIRE!A437","v":0},{"$f":"+QUESTIONNAIRE!B437","v":0},{"$f":"+QUESTIONNAIRE!C437","v":0},{"$f":"+QUESTIONNAIRE!D437","v":0},{"$f":"+QUESTIONNAIRE!E437","v":0},null,null,null,425]
[{"$f":"+QUESTIONNAIRE!A438","v":0},{"$f":"+QUESTIONNAIRE!B438","v":0},{"$f":"+QUESTIONNAIRE!C438","v":0},{"$f":"+QUESTIONNAIRE!D438","v":"Mehanizam plaćanja?"},{"$f":"+QUESTIONNAIRE!E438","v":0},{"$f":"+HLOOKUP($D$6,$J$13:$S$488,I438,FALSE)","v":"--Molimo odaberite--"},null,null,426,"--Molimo odaberite--","DA","--Molimo odaberite--","NE"]
[{"$f":"+QUESTIONNAIRE!A439","v":0},{"$f":"+QUESTIONNAIRE!B439","v":0},{"$f":"+QUESTIONNAIRE!C439","v":0},{"$f":"+QUESTIONNAIRE!D439","v":0},{"$f":"+QUESTIONNAIRE!E439","v":0},null,null,null,427]
[{"$f":"+QUESTIONNAIRE!A440","v":0},{"$f":"+QUESTIONNAIRE!B440","v":0},{"$f":"+QUESTIONNAIRE!C440","v":0},{"$f":"+QUESTIONNAIRE!D440","v":"Pravila za postupanje s izmjenama (npr. indeksacija cijena,  izmjene izlaznih specifikacija usluge)?"},{"$f":"+QUESTIONNAIRE!E440","v":0},{"$f":"+HLOOKUP($D$6,$J$13:$S$488,I440,FALSE)","v":"--Molimo odaberite--"},null,null,428,"--Molimo odaberite--","DA","--Molimo odaberite--","NE"]
[{"$f":"+QUESTIONNAIRE!A441","v":0},{"$f":"+QUESTIONNAIRE!B441","v":0},{"$f":"+QUESTIONNAIRE!C441","v":0},{"$f":"+QUESTIONNAIRE!D441","v":0},{"$f":"+QUESTIONNAIRE!E441","v":0},null,null,null,429]
[{"$f":"+QUESTIONNAIRE!A442","v":0},{"$f":"+QUESTIONNAIRE!B442","v":0},{"$f":"+QUESTIONNAIRE!C442","v":0},{"$f":"+QUESTIONNAIRE!D442","v":"Postupak za završetak građenja?"},{"$f":"+QUESTIONNAIRE!E442","v":0},{"$f":"+HLOOKUP($D$6,$J$13:$S$488,I442,FALSE)","v":"--Molimo odaberite--"},null,null,430,"--Molimo odaberite--","DA","--Molimo odaberite--","NE"]
[{"$f":"+QUESTIONNAIRE!A443","v":0},{"$f":"+QUESTIONNAIRE!B443","v":0},{"$f":"+QUESTIONNAIRE!C443","v":0},{"$f":"+QUESTIONNAIRE!D443","v":0},{"$f":"+QUESTIONNAIRE!E443","v":0},null,null,null,431]
[{"$f":"+QUESTIONNAIRE!A444","v":0},{"$f":"+QUESTIONNAIRE!B444","v":0},{"$f":"+QUESTIONNAIRE!C444","v":0},{"$f":"+QUESTIONNAIRE!D444","v":"Događaji više sile?"},{"$f":"+QUESTIONNAIRE!E444","v":0},{"$f":"+HLOOKUP($D$6,$J$13:$S$488,I444,FALSE)","v":"--Molimo odaberite--"},null,null,432,"--Molimo odaberite--","DA","--Molimo odaberite--","NE"]
[{"$f":"+QUESTIONNAIRE!A445","v":0},{"$f":"+QUESTIONNAIRE!B445","v":0},{"$f":"+QUESTIONNAIRE!C445","v":0},{"$f":"+QUESTIONNAIRE!D445","v":0},{"$f":"+QUESTIONNAIRE!E445","v":0},null,null,null,433]
[{"$f":"+QUESTIONNAIRE!A446","v":0},{"$f":"+QUESTIONNAIRE!B446","v":0},{"$f":"+QUESTIONNAIRE!C446","v":0},{"$f":"+QUESTIONNAIRE!D446","v":"Prelazak osoblja kod privatnog partnera?"},{"$f":"+QUESTIONNAIRE!E446","v":0},{"$f":"+HLOOKUP($D$6,$J$13:$S$488,I446,FALSE)","v":"--Molimo odaberite--"},null,null,434,"--Molimo odaberite--","DA","--Molimo odaberite--","NE"]
[{"$f":"+QUESTIONNAIRE!A447","v":0},{"$f":"+QUESTIONNAIRE!B447","v":0},{"$f":"+QUESTIONNAIRE!C447","v":0},{"$f":"+QUESTIONNAIRE!D447","v":0},{"$f":"+QUESTIONNAIRE!E447","v":0},null,null,null,435]
[{"$f":"+QUESTIONNAIRE!A448","v":0},{"$f":"+QUESTIONNAIRE!B448","v":0},{"$f":"+QUESTIONNAIRE!C448","v":0},{"$f":"+QUESTIONNAIRE!D448","v":"Obaveze javnog tijela u praćenju (nadzoru) ugovora za vrijeme cjelokupnog životnog vijeka ugovora?"},{"$f":"+QUESTIONNAIRE!E448","v":0},{"$f":"+HLOOKUP($D$6,$J$13:$S$488,I448,FALSE)","v":"--Molimo odaberite--"},null,null,436,"--Molimo odaberite--","DA","--Molimo odaberite--","NE"]
[{"$f":"+QUESTIONNAIRE!A449","v":0},{"$f":"+QUESTIONNAIRE!B449","v":0},{"$f":"+QUESTIONNAIRE!C449","v":0},{"$f":"+QUESTIONNAIRE!D449","v":0},{"$f":"+QUESTIONNAIRE!E449","v":0},null,null,null,437]
[{"$f":"+QUESTIONNAIRE!A450","v":0},{"$f":"+QUESTIONNAIRE!B450","v":0},{"$f":"+QUESTIONNAIRE!C450","v":0},{"$f":"+QUESTIONNAIRE!D450","v":"Direktni sporazum s kreditorima i pravo kreditora na preuzimanje projekta (\"step-in\")?"},{"$f":"+QUESTIONNAIRE!E450","v":0},{"$f":"+HLOOKUP($D$6,$J$13:$S$488,I450,FALSE)","v":"--Molimo odaberite--"},null,null,438,"--Molimo odaberite--","DA","--Molimo odaberite--","NE"]
[{"$f":"+QUESTIONNAIRE!A451","v":0},{"$f":"+QUESTIONNAIRE!B451","v":0},{"$f":"+QUESTIONNAIRE!C451","v":0},{"$f":"+QUESTIONNAIRE!D451","v":0},{"$f":"+QUESTIONNAIRE!E451","v":0},null,null,null,439]
[{"$f":"+QUESTIONNAIRE!A452","v":0},{"$f":"+QUESTIONNAIRE!B452","v":0},{"$f":"+QUESTIONNAIRE!C452","v":0},{"$f":"+QUESTIONNAIRE!D452","v":"Pravo javnog tijela na preuzimanje projekta (\"step-in\")?"},{"$f":"+QUESTIONNAIRE!E452","v":0},{"$f":"+HLOOKUP($D$6,$J$13:$S$488,I452,FALSE)","v":"--Molimo odaberite--"},null,null,440,"--Molimo odaberite--","DA","--Molimo odaberite--","NE"]
[{"$f":"+QUESTIONNAIRE!A453","v":0},{"$f":"+QUESTIONNAIRE!B453","v":0},{"$f":"+QUESTIONNAIRE!C453","v":0},{"$f":"+QUESTIONNAIRE!D453","v":0},{"$f":"+QUESTIONNAIRE!E453","v":0},null,null,null,441]
[{"$f":"+QUESTIONNAIRE!A454","v":0},{"$f":"+QUESTIONNAIRE!B454","v":0},{"$f":"+QUESTIONNAIRE!C454","v":0},{"$f":"+QUESTIONNAIRE!D454","v":"Rješavanje sporova?"},{"$f":"+QUESTIONNAIRE!E454","v":0},{"$f":"+HLOOKUP($D$6,$J$13:$S$488,I454,FALSE)","v":"--Molimo odaberite--"},null,null,442,"--Molimo odaberite--","DA","--Molimo odaberite--","NE"]
[{"$f":"+QUESTIONNAIRE!A455","v":0},{"$f":"+QUESTIONNAIRE!B455","v":0},{"$f":"+QUESTIONNAIRE!C455","v":0},{"$f":"+QUESTIONNAIRE!D455","v":0},{"$f":"+QUESTIONNAIRE!E455","v":0},null,null,null,443]
[{"$f":"+QUESTIONNAIRE!A456","v":0},{"$f":"+QUESTIONNAIRE!B456","v":0},{"$f":"+QUESTIONNAIRE!C456","v":0},{"$f":"+QUESTIONNAIRE!D456","v":"Osiguranje?"},{"$f":"+QUESTIONNAIRE!E456","v":0},{"$f":"+HLOOKUP($D$6,$J$13:$S$488,I456,FALSE)","v":"--Molimo odaberite--"},null,null,444,"--Molimo odaberite--","DA","--Molimo odaberite--","NE"]
[{"$f":"+QUESTIONNAIRE!A457","v":0},{"$f":"+QUESTIONNAIRE!B457","v":0},{"$f":"+QUESTIONNAIRE!C457","v":0},{"$f":"+QUESTIONNAIRE!D457","v":0},{"$f":"+QUESTIONNAIRE!E457","v":0},null,null,null,445]
[{"$f":"+QUESTIONNAIRE!A458","v":0},{"$f":"+QUESTIONNAIRE!B458","v":0},{"$f":"+QUESTIONNAIRE!C458","v":0},{"$f":"+QUESTIONNAIRE!D458","v":"Podjela koristi koje proizlaze iz refinanciranja?"},{"$f":"+QUESTIONNAIRE!E458","v":0},{"$f":"+HLOOKUP($D$6,$J$13:$S$488,I458,FALSE)","v":"--Molimo odaberite--"},null,null,446,"--Molimo odaberite--","DA","--Molimo odaberite--","NE"]
[{"$f":"+QUESTIONNAIRE!A459","v":0},{"$f":"+QUESTIONNAIRE!B459","v":0},{"$f":"+QUESTIONNAIRE!C459","v":0},{"$f":"+QUESTIONNAIRE!D459","v":0},{"$f":"+QUESTIONNAIRE!E459","v":0},null,null,null,447]
[{"$f":"+QUESTIONNAIRE!A460","v":0},{"$f":"+QUESTIONNAIRE!B460","v":0},{"$f":"+QUESTIONNAIRE!C460","v":0},{"$f":"+QUESTIONNAIRE!D460","v":"Raniji prestanak ugovora o JPP-u i plaćanje naknada za slučaj raskida ugovora?"},{"$f":"+QUESTIONNAIRE!E460","v":0},{"$f":"+HLOOKUP($D$6,$J$13:$S$488,I460,FALSE)","v":"--Molimo odaberite--"},null,null,448,"--Molimo odaberite--","DA","--Molimo odaberite--","NE"]
[{"$f":"+QUESTIONNAIRE!A461","v":0},{"$f":"+QUESTIONNAIRE!B461","v":0},{"$f":"+QUESTIONNAIRE!C461","v":0},{"$f":"+QUESTIONNAIRE!D461","v":0},{"$f":"+QUESTIONNAIRE!E461","v":0},null,null,null,449]
[{"$f":"+QUESTIONNAIRE!A462","v":0},{"$f":"+QUESTIONNAIRE!B462","v":0},{"$f":"+QUESTIONNAIRE!C462","v":0},{"$f":"+QUESTIONNAIRE!D462","v":"Vraćanje imovine projekta javnom tijelu prilikom isteka ugovora o JPP-u?"},{"$f":"+QUESTIONNAIRE!E462","v":0},{"$f":"+HLOOKUP($D$6,$J$13:$S$488,I462,FALSE)","v":"--Molimo odaberite--"},null,null,450,"--Molimo odaberite--","DA","--Molimo odaberite--","NE"]
[{"$f":"+QUESTIONNAIRE!A463","v":0},{"$f":"+QUESTIONNAIRE!B463","v":0},{"$f":"+QUESTIONNAIRE!C463","v":0},{"$f":"+QUESTIONNAIRE!D463","v":0},{"$f":"+QUESTIONNAIRE!E463","v":0},null,null,null,{"$f":"+I462+1","v":451}]
[{"$f":"+QUESTIONNAIRE!A464","v":0},{"$f":"+QUESTIONNAIRE!B464","v":0},{"$f":"+QUESTIONNAIRE!C464","v":0},{"$f":"+QUESTIONNAIRE!D464","v":0},{"$f":"+QUESTIONNAIRE!E464","v":0},null,null,null,452]
[{"$f":"+QUESTIONNAIRE!A465","v":0},{"$f":"+QUESTIONNAIRE!B465","v":0},{"$f":"+QUESTIONNAIRE!C465","v":0},{"$f":"+QUESTIONNAIRE!D465","v":0},{"$f":"+QUESTIONNAIRE!E465","v":0},null,null,null,453]
[{"$f":"+QUESTIONNAIRE!A466","v":0},{"$f":"+QUESTIONNAIRE!B466","v":0},{"$f":"+QUESTIONNAIRE!C466","v":0},{"$f":"+QUESTIONNAIRE!D466","v":0},{"$f":"+QUESTIONNAIRE!E466","v":0},null,null,null,454]
[{"$f":"+QUESTIONNAIRE!A467","v":0},{"$f":"+QUESTIONNAIRE!B467","v":0},{"$f":"+QUESTIONNAIRE!C467","v":0},{"$f":"+QUESTIONNAIRE!D467","v":0},{"$f":"+QUESTIONNAIRE!E467","v":0},null,null,null,455]
[{"$f":"+QUESTIONNAIRE!A468","v":0},{"$f":"+QUESTIONNAIRE!B468","v":0},{"$f":"+QUESTIONNAIRE!C468","v":0},{"$f":"+QUESTIONNAIRE!D468","v":"SPREMNOST ZA NABAVU PROJEKTA"},{"$f":"+QUESTIONNAIRE!E468","v":0},null,null,null,456]
[{"$f":"+QUESTIONNAIRE!A469","v":0},{"$f":"+QUESTIONNAIRE!B469","v":0},{"$f":"+QUESTIONNAIRE!C469","v":0},{"$f":"+QUESTIONNAIRE!D469","v":0},{"$f":"+QUESTIONNAIRE!E469","v":0},null,null,null,457]
[{"$f":"+QUESTIONNAIRE!A470","v":0},{"$f":"+QUESTIONNAIRE!B470","v":0},{"$f":"+QUESTIONNAIRE!C470","v":0},{"$f":"+QUESTIONNAIRE!D470","v":0},{"$f":"+QUESTIONNAIRE!E470","v":0},null,null,null,458]
[{"$f":"+QUESTIONNAIRE!A471","v":0},{"$f":"+QUESTIONNAIRE!B471","v":0},{"$f":"+QUESTIONNAIRE!C471","v":0},{"$f":"+QUESTIONNAIRE!D471","v":0},{"$f":"+QUESTIONNAIRE!E471","v":0},null,null,null,459]
[{"$f":"+QUESTIONNAIRE!A472","v":0},{"$f":"+QUESTIONNAIRE!B472","v":0},{"$f":"+QUESTIONNAIRE!C472","v":0},{"$f":"+QUESTIONNAIRE!D472","v":0},{"$f":"+QUESTIONNAIRE!E472","v":0},null,null,null,460]
[{"$f":"+QUESTIONNAIRE!A473","v":0},{"$f":"+QUESTIONNAIRE!B473","v":0},{"$f":"+QUESTIONNAIRE!C473","v":"Da li je analiza pokazala da je projekt priuštiv?"},{"$f":"+QUESTIONNAIRE!D473","v":0},{"$f":"+QUESTIONNAIRE!E473","v":0},{"$f":"+HLOOKUP($D$6,$J$13:$S$488,I473,FALSE)","v":"--Molimo odaberite--"},null,null,461,"--Molimo odaberite--","YES","--Molimo odaberite--","DA"]
[{"$f":"+QUESTIONNAIRE!A474","v":0},{"$f":"+QUESTIONNAIRE!B474","v":0},{"$f":"+QUESTIONNAIRE!C474","v":0},{"$f":"+QUESTIONNAIRE!D474","v":0},{"$f":"+QUESTIONNAIRE!E474","v":0},null,null,null,462]
[{"$f":"+QUESTIONNAIRE!A475","v":0},{"$f":"+QUESTIONNAIRE!B475","v":0},{"$f":"+QUESTIONNAIRE!C475","v":"Jesu li ispitivanje tržišta i analiza bankabilnosti potvrdili jaki potencijalni interes tržišta za projekt?"},{"$f":"+QUESTIONNAIRE!D475","v":0},{"$f":"+QUESTIONNAIRE!E475","v":0},{"$f":"+HLOOKUP($D$6,$J$13:$S$488,I475,FALSE)","v":"--Molimo odaberite--"},null,null,463,"--Molimo odaberite--","YES","--Molimo odaberite--","DA"]
[{"$f":"+QUESTIONNAIRE!A476","v":0},{"$f":"+QUESTIONNAIRE!B476","v":0},{"$f":"+QUESTIONNAIRE!C476","v":0},{"$f":"+QUESTIONNAIRE!D476","v":0},{"$f":"+QUESTIONNAIRE!E476","v":0},null,null,null,464]
[{"$f":"+QUESTIONNAIRE!A477","v":0},{"$f":"+QUESTIONNAIRE!B477","v":0},{"$f":"+QUESTIONNAIRE!C477","v":"Da li procjena potvrđuje da ce JPP opcija ostvariti najbolju vrijednost za novac?"},{"$f":"+QUESTIONNAIRE!D477","v":0},{"$f":"+QUESTIONNAIRE!E477","v":0},{"$f":"+HLOOKUP($D$6,$J$13:$S$488,I477,FALSE)","v":"--Molimo odaberite--"},null,null,465,"--Molimo odaberite--","YES","--Molimo odaberite--","DA"]
[{"$f":"+QUESTIONNAIRE!A478","v":0},{"$f":"+QUESTIONNAIRE!B478","v":0},{"$f":"+QUESTIONNAIRE!C478","v":0},{"$f":"+QUESTIONNAIRE!D478","v":0},{"$f":"+QUESTIONNAIRE!E478","v":0},null,null,null,466]
[{"$f":"+QUESTIONNAIRE!A479","v":0},{"$f":"+QUESTIONNAIRE!B479","v":0},{"$f":"+QUESTIONNAIRE!C479","v":"Da li je projektni tim, uključujući konzultante, u poziciji da provodi nabavu?"},{"$f":"+QUESTIONNAIRE!D479","v":0},{"$f":"+QUESTIONNAIRE!E479","v":0},{"$f":"+HLOOKUP($D$6,$J$13:$S$488,I479,FALSE)","v":"--Molimo odaberite--"},null,null,467,"--Molimo odaberite--","YES","--Molimo odaberite--","DA"]
[{"$f":"+QUESTIONNAIRE!A480","v":0},{"$f":"+QUESTIONNAIRE!B480","v":0},{"$f":"+QUESTIONNAIRE!C480","v":0},{"$f":"+QUESTIONNAIRE!D480","v":0},{"$f":"+QUESTIONNAIRE!E480","v":0},null,null,null,468]
[{"$f":"+QUESTIONNAIRE!A481","v":0},{"$f":"+QUESTIONNAIRE!B481","v":0},{"$f":"+QUESTIONNAIRE!C481","v":"Jesu li sva relevantna ovlaštenja, autorizacije, dozvole, ugovori, odobrenja za provedbu projekta pribavljena ili se mogu pribaviti u skladu sa zadanim rasporedom aktivnosti?"},{"$f":"+QUESTIONNAIRE!D481","v":0},{"$f":"+QUESTIONNAIRE!E481","v":0},{"$f":"+HLOOKUP($D$6,$J$13:$S$488,I481,FALSE)","v":"--Molimo odaberite--"},null,null,469,"--Molimo odaberite--","YES","--Molimo odaberite--","DA"]
[{"$f":"+QUESTIONNAIRE!A482","v":0},{"$f":"+QUESTIONNAIRE!B482","v":0},{"$f":"+QUESTIONNAIRE!C482","v":0},{"$f":"+QUESTIONNAIRE!D482","v":0},{"$f":"+QUESTIONNAIRE!E482","v":0},null,null,null,470]
[{"$f":"+QUESTIONNAIRE!A483","v":0},{"$f":"+QUESTIONNAIRE!B483","v":0},{"$f":"+QUESTIONNAIRE!C483","v":"Jesu li sve procjene ažurirane i međusobno usklađene, posebno povratne informacije od zainteresiranih pojedinaca/organizacija, priuštivost, postupanje s rizicima, ispitivanje tržišta, bankabilnost, vrijednost za novac, kapacitet/dostupnost tima, raspored aktivnosti te izlazne specifikacije usluge?"},{"$f":"+QUESTIONNAIRE!D483","v":0},{"$f":"+QUESTIONNAIRE!E483","v":0},{"$f":"+HLOOKUP($D$6,$J$13:$S$488,I483,FALSE)","v":"--Molimo odaberite--"},null,null,471,"--Molimo odaberite--","YES","--Molimo odaberite--","DA"]
[{"$f":"+QUESTIONNAIRE!A484","v":0},{"$f":"+QUESTIONNAIRE!B484","v":0},{"$f":"+QUESTIONNAIRE!C484","v":0},{"$f":"+QUESTIONNAIRE!D484","v":0},{"$f":"+QUESTIONNAIRE!E484","v":0},null,null,null,472]
[{"$f":"+QUESTIONNAIRE!A485","v":0},{"$f":"+QUESTIONNAIRE!B485","v":0},{"$f":"+QUESTIONNAIRE!C485","v":"Jesu li stručno povjerenstvo (stručna komisija) i/ili drugi relevantni donosioci odluka odobrili pokretanje nabave projekta?"},{"$f":"+QUESTIONNAIRE!D485","v":0},{"$f":"+QUESTIONNAIRE!E485","v":0},{"$f":"+HLOOKUP($D$6,$J$13:$S$488,I485,FALSE)","v":"--Molimo odaberite--"},null,null,473,"--Molimo odaberite--","YES","--Molimo odaberite--","DA"]
[{"$f":"+QUESTIONNAIRE!A486","v":0},{"$f":"+QUESTIONNAIRE!B486","v":0},{"$f":"+QUESTIONNAIRE!C486","v":0},{"$f":"+QUESTIONNAIRE!D486","v":0},{"$f":"+QUESTIONNAIRE!E486","v":0},null,null,null,474]
[{"$f":"+QUESTIONNAIRE!A487","v":0},{"$f":"+QUESTIONNAIRE!B487","v":0},{"$f":"+QUESTIONNAIRE!C487","v":0},{"$f":"+QUESTIONNAIRE!D487","v":0},{"$f":"+QUESTIONNAIRE!E487","v":0},null,null,null,475]
[]
[]
[]
[null,"Selecting and defining the investment",null,null,null,null,null,null,null,null,0.99999999999999989,0.44444444444444442,0.99999999999999989]
[]
[null,null,"Readiness to start preparing the project as a PPP",null,null,null,null,null,null,null,1,0,1]
[]
[null,"Managing and Planning the process",null,null,null,null,null,null,null,null,1,0,1]
[]
[null,"Developing the PPP project"]
[null,"       - Developing the affordability analysis",null,null,null,null,null,null,null,null,0.94285714285714284,0,0.94285714285714284]
[null,"       - Developing the risk analysis",null,null,null,null,null,null,null,null,0.42857142857142855,0,0.42857142857142855]
[null,"       - Performing market sounding and bankability analysis",null,null,null,null,null,null,null,null,0,0,0]
[null,"       - Assessing the PPP option against alternative project delivery options",null,null,null,null,null,null,null,null,0,0,0]
[null,"       - Budgeting, accounting and statistical treatment",null,null,null,null,null,null,null,null,0,0,0]
[]
[null,"Preparing for procurement",null,null,null,null,null,null,null,null,0,0,0]
[]
[null,null,"Readiness to procure the project",null,null,null,null,null,null,null,0,0,0]

{"sheet":"Lists","index":6,"n_rows":31,"n_cols":4,"rows_kept":31,"cut":false,"hidden":true,"merged":[]}
[]
[]
[]
[null,"PROCUREMENT TOOLS"]
["PROCUREMENTMETHOD","Procurement Method"]
[null,"Open Procurement"]
[null,"Restricted Procurement"]
[null,"Negotiated Procedure"]
[null,"Competitive Dialogue"]
[]
[]
[null,"Maturity Questions"]
["YESNO","Yes / NO",null,"YES/NO"]
[null,"--Molimo odaberite--",null,"DA"]
[null,"DA"]
[null,"NE",null,"NE"]
[]
[]
["WhereIsTheProject","WhereIsTheProject"]
[null,"Identifying and selecting the project investment",1]
[null,"The project has been selected to be implemented",2]
[null,"Assessing the PPP option",3]
[null,"Preparing the PPP project for procurement",4]
[null,"The project is ready to got ot the market",5]
[]
[]
[null,"Identifying and selecting the project investment"]
[null,"Assessing the PPP option"]
[null,"Preparing the PPP project for procurement"]
[null,"Running the procurement process"]
[null,"Reaching contract signature and financial close"]